Workbook

Sheet INICIO

Sheet 0006-01 TUNJUELITO
A1: PLAN DE AUSTERIDAD EN EL GASTO 2025-2027
A2: Entidad
A3: Valores en Pesos Corrientes
A4: CONCEPTO (Decreto 062 de 2024) | B4: Posiciones Presupuestales Asociadas (Funcionamiento e Inversión) | C4: LÍNEA BASE | F4: PLAN DE AUSTERIDAD EN EL GASTO 2025-2027 | K4: SEGUIMIENTO RESULTADOS PLAN DE AUSTERIDAD 2025-2027
F5: ESTRATEGIAS 2025-2027 | G5: ACCIONES 2025-2027 | H5: META INDICADOR DE AUSTERIDAD
C6: AÑO 2023 | D6: AÑO 2024 | K6: AÑO 2025 | M6: AÑO 2026 | O6: AÑO 2027
C7: Valor EJECUTADO a 31/12/2023 | D7: Valor EJECUTADO a 31/12/2024 | E7: Resultado Indicador Austeridad | H7: AÑO 2025 | I7: AÑO 2026 | J7: AÑO 2027 | K7: Valor EJECUTADO a 31/12/2025 | L7: Resultado Indicador Austeridad | M7: Valor EJECUTADO a 31/12/2026 | N7: Resultado Indicador Austeridad | O7: Valor EJECUTADO a 31/12/2027 | P7: Resultado Indicador Austeridad
A8: Servicios de personal
A9: Artículo 6°.- Reducción del gasto en CPS profesionales y de apoyo a la gestión. | B9: N.A. Se registran totales. Corresponde con lo reportado en SIDEAP y SIVICOF | E9: =1-(D9/C9) ->  | H9: -0.01 | L9: =1-(K9/D9) ->  | N9: =1-(M9/K9) ->  | P9: =1-(O9/M9) -> 
A10: Artículo 7°.- Horas extras, dominicales y festivos. | L10: =1-(K10/D10) ->  | N10: =1-(M10/K10) -> 
A11: Artículo 8°.- Viáticos y gastos de viaje.
A12: Artículo 9°.- Compensación por vacaciones.
A13: Artículo 10°.- Bono navideño.
A14: Artículo 11 -. Capacitación.
A15: Artículo 12 -. Bienestar.
A16: Artículo 13 -. Eventos y conmemoraciones.
A17: Artículo 14 -. Fondos educativos.
A18: Servicios Administrativos
A19: Artículo 15. Telefonía. | E19: =1-(D19/C19) -> 
A20: Artículo 16 -. Vehículos oficiales.
A21: Artículo 17 -. Adquisición de vehículos y maquinaria.
A22: Artículo 18 -. Fotocopiado, multicopiado e impresión.
A23: Artículo 19 -. Publicidad distrital.
A24: Artículo 20 -. Cajas menores.
A25: Artículo 21 -. Mantenimiento o reparación de bienes inmuebles o muebles.
A26: Artículo 22 -. Suscripciones.
A27: Artículo 23 -. Servicios públicos.

Sheet 0001-01 USAQUEN
A1: PLAN DE AUSTERIDAD EN EL GASTO 2025-2027
A2: Entidad
A3: Valores en Pesos Corrientes
A4: CONCEPTO (Decreto 062 de 2024) | B4: Posiciones Presupuestales Asociadas (Funcionamiento e Inversión) | C4: LÍNEA BASE | F4: PLAN DE AUSTERIDAD EN EL GASTO 2025-2027 | K4: SEGUIMIENTO RESULTADOS PLAN DE AUSTERIDAD 2025-2027
F5: ESTRATEGIAS 2025-2027 | G5: ACCIONES 2025-2027 | H5: META INDICADOR DE AUSTERIDAD
C6: AÑO 2023 | D6: AÑO 2024 | K6: AÑO 2025 | M6: AÑO 2026 | O6: AÑO 2027
C7: Valor EJECUTADO a 31/12/2023 | D7: Valor EJECUTADO a 31/12/2024 | E7: Resultado Indicador Austeridad | H7: AÑO 2025 | I7: AÑO 2026 | J7: AÑO 2027 | K7: Valor EJECUTADO a 31/12/2025 | L7: Resultado Indicador Austeridad | M7: Valor EJECUTADO a 31/12/2026 | N7: Resultado Indicador Austeridad | O7: Valor EJECUTADO a 31/12/2027 | P7: Resultado Indicador Austeridad
A8: Servicios de personal
A9: Artículo 6°.- Reducción del gasto en CPS profesionales y de apoyo a la gestión. | B9: N.A. Se registran totales. Corresponde con lo reportado en SIDEAP y SIVICOF | C9: 18643428675 | D9: 15985847639 | E9: =1-(D9/C9) -> 0.1425478694 | F9: El Fondo de Desarrollo Local de Usaquén realizara un control extricto a las CPS profesionales y de apoyo a la gestión con el fin de cumplir con la meta cumplida | G9: N/A | H9: -0.052 | I9: -0.03 | J9: -0.03 | K9: 16817111716 | L9: =1-(K9/D9) -> -0.05199999999 | M9: 17321625068 | N9: =1-(M9/K9) -> -0.03000000003 | O9: 17841273820 | P9: =1-(O9/M9) -> -0.03
A10: Artículo 7°.- Horas extras, dominicales y festivos. | C10: 0 | D10: 0 | F10: El Fondo de Desarrollo Local de Usaquén no cuenta con este rubrio en su presupuesto debido a que este concepto esta centralizado en Gobierno | G10: N/A | H10: N/A | I10: N/A | J10: N/A | L10: =1-(K10/D10) ->  | N10: =1-(M10/K10) -> 
A11: Artículo 8°.- Viáticos y gastos de viaje. | C11: 0 | D11: 0 | F11: El Fondo de Desarrollo Local de Usaquén no cuenta con este rubrio en su presupuesto debido a que este concepto esta centralizado en Gobierno | G11: N/A | H11: N/A | I11: N/A | J11: N/A
A12: Artículo 9°.- Compensación por vacaciones. | C12: 0 | D12: 0 | F12: El Fondo de Desarrollo Local de Usaquén no cuenta con este rubrio en su presupuesto debido a que este concepto esta centralizado en Gobierno | G12: N/A | H12: N/A | I12: N/A | J12: N/A
A13: Artículo 10°.- Bono navideño. | C13: 0 | D13: 0 | F13: El Fondo de Desarrollo Local de Usaquén no cuenta con este rubrio en su presupuesto debido a que este concepto esta centralizado en Gobierno | G13: N/A | H13: N/A | I13: N/A | J13: N/A
A14: Artículo 11 -. Capacitación. | C14: 0 | D14: 0 | F14: El Fondo de Desarrollo Local de Usaquén no cuenta con este rubrio en su presupuesto debido a que este concepto esta centralizado en Gobierno | G14: N/A | H14: N/A | I14: N/A | J14: N/A
A15: Artículo 12 -. Bienestar. | C15: 0 | D15: 0 | F15: El Fondo de Desarrollo Local de Usaquén no cuenta con este rubrio en su presupuesto debido a que este concepto esta centralizado en Gobierno | G15: N/A | H15: N/A | I15: N/A | J15: N/A
A16: Artículo 13 -. Eventos y conmemoraciones. | C16: 0 | D16: 0 | F16: El Fondo de Desarrollo Local de Usaquén no cuenta con este rubrio en su presupuesto debido a que este concepto esta centralizado en Gobierno | G16: N/A | H16: N/A | I16: N/A | J16: N/A
A17: Artículo 14 -. Fondos educativos. | C17: 0 | D17: 0 | F17: El Fondo de Desarrollo Local de Usaquén no cuenta con este rubrio en su presupuesto debido a que este concepto esta centralizado en Gobierno | G17: N/A | H17: N/A | I17: N/A | J17: N/A
A18: Servicios Administrativos
A19: Artículo 15. Telefonía. | B19: FUNCIONAMIENTO | C19: 76476412 | D19: 92325930 | E19: =1-(D19/C19) -> -0.2072471444 | F19: 1. Comparación de Proveedores: Realizar un estudio y comparativo de las ofertas de proveedores del mercado y garantizar el mejor servicio al mejor costo | G19: Mensualmente se realizará un control a este rubro cuantificando las variaciones y controlando estrictamente este gasto. | H19: -0.0415 | I19: -0.03 | J19: -0.03 | K19: 96155610 | L19: -0.04148000459 | M19: 99040278 | N19: -0.02999999688 | O19: 102011486 | P19: -0.02999999657
A20: Artículo 16 -. Vehículos oficiales. | B20: FUNCIONAMIENTO | C20: 56879878 | D20: 72321392 | E20: -0.2714758636 | F20: 1. Mantenimiento preventivo : Asegurarse de que los mantenimientos programados se realicen para garantizar el funcionamiento optimo de los vehículos garantizando el rendimiento de combustible. 2. Monitoreo y Seguimiento al consumo de combustibles: Establecer una matriz que permita un control mensual a los km recorridos y galones de combustible consumidos para hacer para el uso eficiente de los recursos. | G20: Controlar el consumo y uso mensual de los insumos para los vehículos de uso exclusivo para actividades oficiales del nivel directivo. | H20: -0.0415 | I20: -0.03 | J20: -0.03 | K20: 75321283 | L20: -0.0414799953 | M20: 77580922 | N20: -0.03000000677 | O20: 79908349 | P20: -0.02999999149
A21: Artículo 17 -. Adquisición de vehículos y maquinaria. | C21: 0 | D21: 0 | F21: El Fondo de Desarrollo Local de Usaquén no tiene presupuestado la adquisición de vehiculos y maquinaria | G21: N/A | K21: 0
A22: Artículo 18 -. Fotocopiado, multicopiado e impresión. | B22: FUNCIONAMIENTO | C22: 43750905 | D22: 49783607 | E22: -0.1378874791 | F22: 1. Digitalización de Documentos : Fomentar la digitalización de documentos en el aplicativo de gestión documental y se prioriza el uso de medios electrónicos para reducir la imprecisión. 2. Revisión de Documentos: Fomentar la revisión digital de documentos antes de imprimir, asegurando que solo se imprima lo que realmente es necesario. 3. Uso de Tecnología de información: Priorizar al máximo las herramientas tecnológicas contribuyendo al uso eficiente de los recursos y cumplir las estrategias distritales de papel cero. | G22: Desarrollar un control exhaustivo y consciente del uso de fotocopiado e impresión para lo que se imprima estrictamente lo necesario. Realizar trimestralmente campañas de concientización en el uso adecuado de papelería con el equipo de trabajo para dinamizar el correcto uso de los recursos | H22: -0.0415 | I22: -0.03 | J22: -0.03 | K22: 51848631 | L22: -0.04147999963 | M22: 53404090 | N22: -0.03000000135 | O22: 55006213 | P22: -0.03000000562
A23: Artículo 19 -. Publicidad distrital. | B23: FUNCIONAMIENTO | C23: 28000000 | D23: 0 | E23: 1 | F23: Uso de medios digitales | G23: Mantener actualizada la pagina Web de la Alcaldía, lo que permitira tener informada a la comunidad de las gestiones y eventos realizados o programados | K23: 0
A24: Artículo 20 -. Cajas menores. | C24: 0 | D24: 0 | F24: El Fondo de Desarrollo Local de Usaquén no cuenta con este rubrio en su presupuesto debido a que este concepto esta centralizado en Gobierno | G24: N/A | K24: 0
A25: Artículo 21 -. Mantenimiento o reparación de bienes inmuebles o muebles. | B25: FUNCIONAMIENTO | C25: 122408485 | D25: 180000000 | E25: -0.4704862984 | F25: 1. Mantenimiento Preventivo: Establecer un programa de mantenimiento preventivo regular para identificar y solucionar problemas . Esto puede prolongar la vida útil de los equipos y reducir costos a largo plazo. 2. Priorización de Necesidades: Evaluar y clasificar las necesidades de mantenimiento y reparaciones según su urgencia e impacto. Enfocandose en las tareas más críticas primero lo que permitirá una optimización de recursos. | G25: Garantizar la optimización de recursos y el cumplimiento de la meta presupuesta realizando un análisis exahustibo del este rubro. Realizar el mantenimiento o reparación de bienes inmuebles o muebles cuando sea estrictamente necesario | H25: -0.0415 | I25: -0.03 | J25: -0.03 | K25: 187466400 | L25: -0.04148 | M25: 193090392 | N25: -0.03 | O25: 198883104 | P25: -0.03000000124
A26: Artículo 22 -. Suscripciones. | C26: 0 | D26: 0 | F26: El Fondo de Desarrollo Local de Usaquén no cuenta con suscripciones por ningun concepto | G26: N/A | K26: 0 | M26: 0
A27: Artículo 23 -. Servicios públicos. | B27: FUNCIONAMIENTO | C27: 83661896 | D27: 108462000 | E27: -0.2964324882 | F27: 1.Educación y Conciencia: Implementar campañas de concienciación para educar a los funcionarios, contratistas y usuarios sobre el uso responsable de los servicios públicos, fomentando hábitos que ayuden a reducir el consumo. 2. Monitoreo y Evaluación: Establecer monitoreos y mediciones para identificar variaciones significativas y sus causas con esto evaluar el uso de recursos y la efectividad de las medidas implementadas, permitiendo ajustes en tiempo real. | G27: Realizar un control mensual y medición al consumo de servicios públicos lo que permitirá verificar la racionalización de los recursos; Adicionalmente se concientizara a los funcionarios, contratistas y comunidad en general de la importancia del uso eficiente de los recursos. | H27: -0.0415 | I27: -0.03 | J27: -0.03 | K27: 112961004 | L27: -0.04148000221 | M27: 116349834 | N27: -0.02999999894 | O27: 119840329 | P27: -0.02999999983
A28: Arriendo, Operador Logistico, Piga, Inventarios, Licencia e Inventarios * | B28: FORTALECIMIENTO | C28: 663359492 | D28: 420356990 | E28: =1-(D28/C28) -> 0.3663209842 | F28: 1. Optimización del uso de servicios y suministros: Establecer estrategias para reducción de costos en la adquisición de bienes que permitan cumplir las metas propuestas. 2. Revisión y optimización de Arrendamientos: Crear estrategias de trabajo en casa lo que permitirá que diferentes equipos de trabajo compartan espacios y se garantice el uso. 3. Evaluación de Proveedores: Realizar un análisis de los servicios prestados por el operador logístico lo que permitirá verificar de que se está obteniendo el mejor servicio con el menor costo posible. | G28: Concientizar a los funcionarios y contratistas del uso adecuado de los suministros de aseo y cafetería para la racionalización en su consumo. Garantizar que los proveedores presten sus servicios a la mejor tarifa disponible sin disminuir el servicio requerido | H28: 0.0006 | I28: -0.03 | J28: -0.03 | K28: 662961476 | L28: =1-(K28/C28) -> 0.0006000004595 | M28: 682850321 | N28: =1-(M28/K28) -> -0.03000000109 | O28: 703335830 | P28: =1-(O28/M28) -> -0.02999999908
A29: *Para estos rubros se tendra en cuenta la linea base del 2023 dado que el año 2024 fue atipico; dado que el gobierno central se encontraba en proceso de empalme, esto genero retrasos en las poseciónes y empalmes de los nuevos alcaldes locales, por ello se presento una variación significativa en la ejecución de los rubros de fortalecimiento, de la vigencia 2023 vs la vigencia 2024.

Sheet 0002-01 CHAPINERO
A1: PLAN DE AUSTERIDAD EN EL GASTO 2025-2027
A2: Entidad
A3: Valores en Pesos Corrientes
A4: CONCEPTO (Decreto 062 de 2024) | B4: Posiciones Presupuestales Asociadas (Funcionamiento e Inversión) | C4: LÍNEA BASE | F4: PLAN DE AUSTERIDAD EN EL GASTO 2025-2027 | K4: SEGUIMIENTO RESULTADOS PLAN DE AUSTERIDAD 2025-2027
F5: ESTRATEGIAS 2025-2027 | G5: ACCIONES 2025-2027 | H5: META INDICADOR DE AUSTERIDAD
C6: AÑO 2023 | D6: AÑO 2024 | K6: AÑO 2025 | M6: AÑO 2026 | O6: AÑO 2027
C7: Valor EJECUTADO a 31/12/2023 | D7: Valor EJECUTADO a 31/12/2024 | E7: Resultado Indicador Austeridad | H7: AÑO 2025 | I7: AÑO 2026 | J7: AÑO 2027 | K7: Valor EJECUTADO a 31/12/2025 | L7: Resultado Indicador Austeridad | M7: Valor EJECUTADO a 31/12/2026 | N7: Resultado Indicador Austeridad | O7: Valor EJECUTADO a 31/12/2027 | P7: Resultado Indicador Austeridad
A8: Servicios de personal
A9: Artículo 6°.- Reducción del gasto en CPS profesionales y de apoyo a la gestión. | B9: N.A. Se registran totales. Corresponde con lo reportado en SIDEAP y SIVICOF | C9: 8793484134 | D9: 6054492000 | E9: =1-(D9/C9) -> 0.311479738 | L9: =1-(K9/D9) -> 1 | N9: =1-(M9/K9) ->  | P9: =1-(O9/M9) -> 
A10: Artículo 7°.- Horas extras, dominicales y festivos. | B10: N/A | C10: 0 | D10: 0 | F10: N/A | G10: N/A | H10: N/A | I10: N/A | J10: N/A | L10: =1-(K10/D10) ->  | N10: =1-(M10/K10) -> 
A11: Artículo 8°.- Viáticos y gastos de viaje. | B11: N/A | C11: 0 | D11: 0 | F11: N/A | G11: N/A | H11: N/A | I11: N/A | J11: N/A
A12: Artículo 9°.- Compensación por vacaciones. | B12: N/A | C12: 0 | D12: 0 | F12: N/A | G12: N/A | H12: N/A | I12: N/A | J12: N/A
A13: Artículo 10°.- Bono navideño. | B13: N/A | C13: 0 | D13: 0 | F13: N/A | G13: N/A | H13: N/A | I13: N/A | J13: N/A
A14: Artículo 11 -. Capacitación. | B14: N/A | C14: 0 | D14: 0 | F14: N/A | G14: N/A | H14: N/A | I14: N/A | J14: N/A
A15: Artículo 12 -. Bienestar. | B15: N/A | C15: 0 | D15: 0 | F15: N/A | G15: N/A | H15: N/A | I15: N/A | J15: N/A
A16: Artículo 13 -. Eventos y conmemoraciones. | B16: N/A | C16: 0 | D16: 0 | F16: N/A | G16: N/A | H16: N/A | I16: N/A | J16: N/A
A17: Artículo 14 -. Fondos educativos. | B17: N/A | C17: 0 | D17: 0 | F17: N/A | G17: N/A | H17: N/A | I17: N/A | J17: N/A
A18: Servicios Administrativos
A19: Artículo 15. Telefonía. | B19: O21202020080484120 - Servicios de telefonía fija (acceso) - O21202020080484222 - Servicios de acceso a Internet de banda ancha | C19: 61400730 | D19: 61563920 | E19: =1-(D19/C19) -> -0.00265778599 | F19: Implementación de medidas de control y optimización del uso de la telefonía fija en todas las dependencias. Fortalecimiento de mecanismos de monitoreo y supervisión del consumo de telefonía fija para garantizar el uso eficiente del servicio. Negociación y optimización de tarifas con los proveedores del servicio de telefonía fija. | G19: Gestionar con el proveedor la renegociación de tarifas y planes, priorizando el uso de servicios con menor costo. Evaluar la efectividad de las medidas implementadas y realizar ajustes según los resultados obtenidos. | H19: 0 | I19: 0 | J19: 0 | L19: 1
A20: Artículo 16 -. Vehículos oficiales. | B20: O2120202008078714102 - Servicio de mantenimiento y reparación de vehículos automóvile | C20: 48720000 | D20: 55000000 | E20: -0.1288998358 | F20: Fortalecer las actividades de mantenimiento preventivo en cada uno de los vehículos propendiendo por la disminución de actividades de caracater correctivo. Identificar el(los) vehículo(s) que más presupuesto demandan con el objetivo de presentar posible propuesta de renovación vehícular. Fortalecer la actividad de prueba de ruta en el momento de recepción de vehículos posterior a una actividad de mantenimiento en aras de optimizar tanto el servicio como el estado integro de los vehículos. Implementar las estrategias contempladas dentro del plan de seguridad vial de la SDG | G20: Diseñar y formular junto con el proveedor de mantenimiento de vehículos, planes de mantenimiento preventivo sistemático. Realizar la identificación de vehículos objeto de renovación Garantizar que en toda recepción de vehículos posterior a actividades de mantenimiento vehicular, la prueba de ruta sea liderada por ingeniero mecánico del FDLCH y taller | H20: 0.001 | I20: 0.0015 | J20: 0.0017 | L20: 1
A21: Artículo 17 -. Adquisición de vehículos y maquinaria. | B21: N/A | C21: 0 | D21: 0 | F21: N/A | G21: N/A | H21: N/A | I21: N/A | J21: N/A
A22: Artículo 18 -. Fotocopiado, multicopiado e impresión. | B22: Se registra información de contrato de impresión de 2023 | C22: 22500000 | D22: 1 | E22: 0.9999999556 | F22: Mantener priorización de la divulgación digital sobre los impresos | G22: Usar en la medida de lo posible menos impresos y más piezas en digital, a menos que sean obligatorios o de un uso altamente justificado. | H22: 0.01 | I22: 0.01 | J22: 0.01 | L22: 1
A23: Artículo 19 -. Publicidad distrital. | B23: N/A | C23: 0 | D23: 0 | F23: N/A | G23: N/A | H23: N/A | I23: N/A | J23: N/A
A24: Artículo 20 -. Cajas menores. | B24: N/A | C24: 0 | D24: 0 | F24: N/A | G24: N/A | H24: N/A | I24: N/A | J24: N/A
A25: Artículo 21 -. Mantenimiento o reparación de bienes inmuebles o muebles. | B25: Se registra informacion de contratos del año 2022 y 2023. en el año 2024 no se contrato mantenimiento para la sede | C25: 193999990 | D25: 23124083 | E25: 0.8808036897 | F25: Realizar las actividades de mantenimiento esenciales. | G25: Adquirir herramientas e insumos que permitan adelantar las actividades de mantenimiento basicas | H25: 0.005 | I25: 0.001 | J25: 0.015 | L25: 1
A26: Artículo 22 -. Suscripciones. | C26: 0 | D26: 0 | F26: No se tiene previsto adquirir suscripciones a medios de comunicación | G26: Mantener el gasto en cero | H26: 0 | I26: 0 | J26: 0
A27: Artículo 23 -. Servicios públicos. | B27: O21202020080686312 - Servicios de distribución de electricidad (a comisión o por contrato) O21202020080686330 - Servicios de distribución de agua por tubería (a comisión o por contrato) O21202020090494239 - Servicios generales de recolección de otros desechos. | C27: 94434736 | D27: 49642590 | E27: 0.4743185389 | F27: Implementación de campañas permanentes de sensibilización para el uso eficiente de agua, energía y gestión de residuos. Monitoreo y control periódico del consumo de los servicios públicos para identificar oportunidades de reducción. Optimización de los sistemas e infraestructura para minimizar el desperdicio de recursos. Fortalecimiento de la cultura organizacional en torno a la sostenibilidad y la eficiencia en el uso de los servicios públicos. | G27: Realizar campañas comunicativas y capacitaciones para funcionarios, contratistas y personal de servicios generales sobre buenas prácticas en el uso eficiente del agua, energía y gestión de residuos. Fortalecer el monitoreo de consumo mensual para identificar patrones y oportunidades de mejora. Implementar controles automatizados para el apagado de luces y equipos en horarios no laborales. Evaluar la viabilidad de implementar tecnologías de eficiencia energética, como bombillas LED y sensores de movimient | H27: 0.005 | I27: 0.01 | J27: 0.015 | L27: 1

Sheet 0003-01 SANTAFE
A1: PLAN DE AUSTERIDAD EN EL GASTO 2025-2027
A2: Entidad | B2: ALCALDIA LOCAL DE SANTA FE
A3: Valores en Pesos Corrientes
A4: CONCEPTO (Decreto 062 de 2024) | B4: Posiciones Presupuestales Asociadas (Funcionamiento e Inversión) | C4: LÍNEA BASE | F4: PLAN DE AUSTERIDAD EN EL GASTO 2025-2027 | K4: SEGUIMIENTO RESULTADOS PLAN DE AUSTERIDAD 2025-2027
F5: ESTRATEGIAS 2025-2027 | G5: ACCIONES 2025-2027 | H5: META INDICADOR DE AUSTERIDAD
C6: AÑO 2023 | D6: AÑO 2024 | K6: AÑO 2025 | M6: AÑO 2026 | O6: AÑO 2027
C7: Valor EJECUTADO a 31/12/2023 | D7: Valor EJECUTADO a 31/12/2024 | E7: Resultado Indicador Austeridad | H7: AÑO 2025 | I7: AÑO 2026 | J7: AÑO 2027 | K7: Valor EJECUTADO a 31/12/2025 | L7: Resultado Indicador Austeridad | M7: Valor EJECUTADO a 31/12/2026 | N7: Resultado Indicador Austeridad | O7: Valor EJECUTADO a 31/12/2027 | P7: Resultado Indicador Austeridad
A8: Servicios de personal
A9: Artículo 6°.- Reducción del gasto en CPS profesionales y de apoyo a la gestión. | B9: Inversión | C9: 12725160659 | D9: 12755568154 | E9: =1-(D9/C9) -> -0.002389556864 | F9: Realizar un analisis de las obligaciones de los contratistas con los diferentes apoyos a la supervisión para que sean ajustados acorde a las metas establecidas en el plan de gestión y plan de desarrollo local. Capacitar y sensibilizar a los contratistas sobre los diferentes procesos y procedimientos establecidos en MATIZ, con el fin de reducir tiempos y optimizar los diferentes procesos. Determinar con los apoyos a la supervisión el número de contratistas necesarios para cada equipo con el cual se puedan desarrollar de forma eficiente las diferentes actividades en la Alcaldia. | G9: * Realizar mesas de trabajo con los apoyos a la supervisión para definir las obligaciones y objetos a contratar. *Generar un plan de capacitaciones, con las tematicas a desarrollar en la Alcaldia Local de Santa Fe, con el apayo del equipo de Nivel Central de la Secretaría Distrital de Gobierno. | H9: 0.01 | I9: 0.1% | J9: 0.1% | L9: =1-(K9/D9) -> 1 | N9: =1-(M9/K9) ->  | P9: =1-(O9/M9) -> 
A10: Artículo 7°.- Horas extras, dominicales y festivos. | B10: N/A | C10: 0 | D10: 0 | F10: N/A | G10: N/A | H10: 0 | I10: 0 | J10: 0 | L10: =1-(K10/D10) ->  | N10: =1-(M10/K10) -> 
A11: Artículo 8°.- Viáticos y gastos de viaje. | B11: N/A | C11: 0 | D11: 0 | F11: N/A | G11: N/A | H11: 0 | I11: 0 | J11: 0
A12: Artículo 9°.- Compensación por vacaciones. | B12: N/A | C12: 0 | D12: 0 | F12: N/A | G12: N/A | H12: 0 | I12: 0 | J12: 0
A13: Artículo 10°.- Bono navideño. | B13: N/A | C13: 0 | D13: 0 | F13: N/A | G13: N/A | H13: 0 | I13: 0 | J13: 0
A14: Artículo 11 -. Capacitación. | B14: N/A | C14: 0 | D14: 0 | F14: N/A | G14: N/A | H14: 0 | I14: 0 | J14: 0
A15: Artículo 12 -. Bienestar. | B15: N/A | C15: 0 | D15: 0 | F15: N/A | G15: N/A | H15: 0 | I15: 0 | J15: 0
A16: Artículo 13 -. Eventos y conmemoraciones. | B16: N/A | C16: 0 | D16: 0 | F16: N/A | G16: N/A | H16: 0 | I16: 0 | J16: 0
A17: Artículo 14 -. Fondos educativos. | B17: N/A | C17: 0 | D17: 0 | F17: N/A | G17: N/A | H17: 0 | I17: 0 | J17: 0
A18: Servicios Administrativos
A19: Artículo 15. Telefonía. | B19: Funcionamiento | C19: 10306100 | D19: 5961600 | E19: =1-(D19/C19) -> 0.4215464628 | F19: Mantener las lineas telefónicas actuales en la Alcaldia Local de Santa Fe y en la sede de inspecciones de policía. | G19: Realizar el mantenimiento semestral de la planta telefónica de la entidad. Identificar el número de extensión de cada area para sumistrar los respectivos telefónos, permitiendo una comunicación mas eficiente con la comunidad. | H19: 0.1% | I19: 0.1% | J19: 0.1% | L19: 1
A20: Artículo 16 -. Vehículos oficiales. | B20: Funcionamiento | C20: 57424802 | D20: 40004066 | E20: 0.3033660612 | F20: Coordinar y conservar de manera apropiada el equipo automotor, optimizando su vida util y correcto funcionamiento. Dar cumplimiento a los lineamientos establecidos para el prestamo de vehiculos. | G20: *Control diario por personal autorizado. *Realizar los procesos de reencauche de llantas para todos los vehiculos. | H20: 0.01 | I20: 0.01 | J20: 0.01 | L20: 1
A21: Artículo 17 -. Adquisición de vehículos y maquinaria. | B21: Inversión | C21: 474389434 | D21: 0 | E21: 1 | F21: Renovar en un 25% el parque automotor haciendo enfasis en el cuidado del medio ambiente e implementando vehiculos eléctricos. | G21: Adquisición de un vehiculo eléctrico para uso de la Alcaldía Local de Santa Fe. | H21: 0.01 | I21: 0.01 | J21: 0.01
A22: Artículo 18 -. Fotocopiado, multicopiado e impresión. | B22: Funcionamiento | C22: 26732160 | D22: 28377450 | E22: -0.06154721504 | F22: Reducir el número de impresoras en la Alcaldia Local de Santa Fe. Realizar proceso de sensibilización en temas de cero papel, reciclaje y buenas practicas ambientales. Adquirir impresoras de mayor tecnologia, con impresiones de 1.5 milisegundos con impresion a doble cara, incluyendo el scaner. Disminuir el consumo de toner. | G22: *Realizar la distribución de las impresoras por cada piso de la Alcaldia. *Generar un plan de capacitaciones, con las tematicas a desarrollar en la Alcaldia Local de Santa Fe, por parte del equipo PIGA. *Realizar un control mensual frente al consumo de papel por cada impresora. *Reducir el contraste o nivel de tinta para las impresiones. | H22: 0.01 | I22: 0.01 | J22: 0.01 | L22: 1
A23: Artículo 19 -. Publicidad distrital. | B23: N/A | C23: 0 | D23: 0 | F23: N/A | G23: N/A | H23: 0 | I23: 0 | J23: 0
A24: Artículo 20 -. Cajas menores. | B24: N/A | C24: 0 | D24: 0 | F24: N/A | G24: N/A | H24: 0 | I24: 0 | J24: 0
A25: Artículo 21 -. Mantenimiento o reparación de bienes inmuebles o muebles. | B25: Funcionamiento | C25: 71471159 | D25: 41066667 | E25: 0.4254092479 | F25: Realizar una matriz que permita identificar las problemáticas, deficits y daños en los bienes inmuebles de las sedes del Fondo de desarrollo Local de Santa Fe. | G25: Evaluar la matriz para determinar que acciones de mantenimiento / reparación se ejecutarán en el punto critico informado. | H25: 0.01 | I25: 0.01 | J25: 0.01 | L25: 1
A26: Artículo 22 -. Suscripciones. | B26: N/A | C26: 0 | D26: 0 | F26: N/A | G26: N/A | H26: 0 | I26: 0 | J26: 0
A27: Artículo 23 -. Servicios públicos. | B27: Funcionamiento | C27: 151040430 | D27: 105633364 | E27: 0.3006285536 | F27: Realizar un seguimiento continuo al consumo de los servicios publicos de la alcaldia. Realizar un proceso de sensibilización en temas de consumo de recursos naturales, separación en la fuente, reciclaje y buenas practicas ambientales. Implementar sistemas de ahorro de energia electrica y agua en la Alcaldia Local de Santa Fe. | G27: *Realizar un control de indicadores mensual de consumo por cada servicio público. *Generar un plan de capacitaciones, con las tematicas a desarrollar en la Alcaldia Local de Santa Fe, por parte del equipo PIGA. *Realizar la compra e instalación de elementos ahorradores tales como: llaves para lavamanos, sensores, sanitarios, luminarias entre otras. Adicionalmente realizar el mantenimiento y revisión de los elementos ahorradores existentes. | H27: 0.01 | I27: 0.01 | J27: 0.01 | L27: 1

Sheet 0004-01 SAN CRISTOBAL
A1: PLAN DE AUSTERIDAD EN EL GASTO 2025-2027
A2: Entidad
A3: Valores en Pesos Corrientes
A4: CONCEPTO (Decreto 062 de 2024) | B4: Posiciones Presupuestales Asociadas (Funcionamiento e Inversión) | C4: LÍNEA BASE | F4: PLAN DE AUSTERIDAD EN EL GASTO 2025-2027 | K4: SEGUIMIENTO RESULTADOS PLAN DE AUSTERIDAD 2025-2027
F5: ESTRATEGIAS 2025-2027 | G5: ACCIONES 2025-2027 | H5: META INDICADOR DE AUSTERIDAD
C6: AÑO 2023 | D6: AÑO 2024 | K6: AÑO 2025 | M6: AÑO 2026 | O6: AÑO 2027
C7: Valor EJECUTADO a 31/12/2023 | D7: Valor EJECUTADO a 31/12/2024 | E7: Resultado Indicador Austeridad | H7: AÑO 2025 | I7: AÑO 2026 | J7: AÑO 2027 | K7: Valor EJECUTADO a 31/12/2025 | L7: Resultado Indicador Austeridad | M7: Valor EJECUTADO a 31/12/2026 | N7: Resultado Indicador Austeridad | O7: Valor EJECUTADO a 31/12/2027 | P7: Resultado Indicador Austeridad
A8: Servicios de personal
A9: Artículo 6°.- Reducción del gasto en CPS profesionales y de apoyo a la gestión. | B9: N.A. Se registran totales. Corresponde con lo reportado en SIDEAP y SIVICOF | C9: 15040600693 | D9: 14836563787 | E9: =1-(D9/C9) -> 0.01356574183 | F9: PARA EL 2025-2027 SE PRETENDE MANTENER EL PORCENTAJE | G9: IMPLEMENTAR HERRAMIENTAS TECNOLÓGICAS QUE PERMITAN DISMINUIR LOS TRAMITES MANUALES EQUIVALENTES A LA REVISIÓN DE CPS NATURALES Y JURÍDICOS | H9: 0.01 | I9: 0.01 | J9: 0.01 | L9: =1-(K9/D9) -> 1 | N9: =1-(M9/K9) ->  | P9: =1-(O9/M9) -> 
A10: Artículo 7°.- Horas extras, dominicales y festivos. | B10: N.A. Valor se establece en cero debido a que no se generan valores proyectados u ejectuados para el item en el FDLSC | C10: 0 | D10: 0 | F10: N.A. | G10: N.A. | H10: N.A. | I10: N.A. | J10: N.A. | L10: =1-(K10/D10) ->  | N10: =1-(M10/K10) -> 
A11: Artículo 8°.- Viáticos y gastos de viaje. | B11: N.A. Valor se establece en cero debido a que no se generan valores proyectados u ejectuados para el item en el FDLSC | C11: 0 | D11: 0 | F11: N.A. | G11: N.A. | H11: N.A. | I11: N.A. | J11: N.A.
A12: Artículo 9°.- Compensación por vacaciones. | B12: N.A. Valor se establece en cero debido a que no se generan valores proyectados u ejectuados para el item en el FDLSC | C12: 0 | D12: 0 | F12: N.A. | G12: N.A. | H12: N.A. | I12: N.A. | J12: N.A.
A13: Artículo 10°.- Bono navideño. | B13: N.A. Valor se establece en cero debido a que no se generan valores proyectados u ejectuados para el item en el FDLSC | C13: 0 | D13: 0 | F13: N.A. | G13: N.A. | H13: N.A. | I13: N.A. | J13: N.A.
A14: Artículo 11 -. Capacitación. | B14: N.A. Valor se establece en cero debido a que no se generan valores proyectados u ejectuados para el item en el FDLSC | C14: 0 | D14: 0 | F14: N.A. | G14: N.A. | H14: N.A. | I14: N.A. | J14: N.A.
A15: Artículo 12 -. Bienestar. | B15: N.A. Valor se establece en cero debido a que no se generan valores proyectados u ejectuados para el item en el FDLSC | C15: 0 | D15: 0 | F15: N.A. | G15: N.A. | H15: N.A. | I15: N.A. | J15: N.A.
A16: Artículo 13 -. Eventos y conmemoraciones. | B16: N.A. Valor se establece en cero debido a que no se generan valores proyectados u ejectuados para el item en el FDLSC | C16: 0 | D16: 0 | F16: N.A. | G16: N.A. | H16: N.A. | I16: N.A. | J16: N.A.
A17: Artículo 14 -. Fondos educativos. | B17: N.A. Valor se establece en cero debido a que no se generan valores proyectados u ejectuados para el item en el FDLSC | C17: 0 | D17: 0 | F17: N.A. | G17: N.A. | H17: N.A. | I17: N.A. | J17: N.A.
A18: Servicios Administrativos
A19: Artículo 15. Telefonía. | B19: Funcionamiento | C19: 17293195 | D19: 19187379 | E19: =1-(D19/C19) -> -0.1095334899 | F19: 1. Mantener la cantidad de extensiones telefónicas | G19: 1. Realizar una buena distrbucion de las extensiones en las instalaciones de FDLSC | H19: 0.01 | I19: 0.01 | J19: 0.01 | L19: 1
A20: Artículo 16 -. Vehículos oficiales. | B20: Funcionamiento, inversión | C20: 62896828 | D20: 42657964 | E20: 0.3217787708 | F20: 1. Optimizacion logistica de recorridos y rutas asignadas a los vehiculos 2. Gestion de cronogramas de mantenimientos preventivos 3. Capacitacion al personal operativo en manejo del parque automotor | G20: 1. Implementacion de Sistemas de GPS controlando recorridos y distancias de los vehiculos segun programacion previa 2.Realizar los mantenimiento preventivos requerido a fin de mantener el vehiculo en optimas condiciones 3. Generar planes de accion logisticos que permitan evitar duplicidad en recorridos 4. Ejecutar capacitacion en buenas practicas de manejo y conduccion. | H20: 0.01 | I20: 0.01 | J20: 0.01 | L20: 1 | Q20: Combustible
A21: Artículo 17 -. Adquisición de vehículos y maquinaria. | B21: N.A. Valor se establece en cero debido a que no se generan valores proyectados u ejectuados para el item en el FDLSC | C21: 0 | D21: 0 | F21: N.A. | G21: N.A. | H21: N.A. | I21: N.A. | J21: N.A.
A22: Artículo 18 -. Fotocopiado, multicopiado e impresión. | B22: Funcionamiento | C22: 23927930 | D22: 13043829 | E22: 0.4548701455 | F22: 1. La informacion borrador no se imprima, sino se realice manejo de forma electronica 2. Realizar control rigoroso en la entrega de papeleria a la disferentes areas 3. Incrementar el uso de papel reciclable | G22: 1. ENviar archivos a traves de correo electronico evitando impresiones 2. Realizar impresiones a doble cara 3. Reutilizacion de hojas impresas a 1 cara 4. Racionalizacion de entrega de resmas 5. Focalizar impresiones en pocos usuarios con el objetivo de ejercer mayor control | H22: 0.01 | I22: 0.01 | J22: 0.01 | L22: 1 | Q22: Papeleria (resmas)
A23: Artículo 19 -. Publicidad distrital. | B23: N.A. Valor se establece en cero debido a que no se generan valores proyectados u ejectuados para el item en el FDLSC | C23: 0 | D23: 0 | F23: N.A. | G23: N.A. | H23: N.A. | I23: N.A. | J23: N.A.
A24: Artículo 20 -. Cajas menores. | B24: N.A. Valor se establece en cero debido a que no se generan valores proyectados u ejectuados para el item en el FDLSC | C24: 0 | D24: 0 | F24: N.A. | G24: N.A. | H24: N.A. | I24: N.A. | J24: N.A.
A25: Artículo 21 -. Mantenimiento o reparación de bienes inmuebles o muebles. | B25: Funcionamiento, inversión | C25: 91394333 | D25: 120321667 | E25: -0.3165112436 | F25: Reducir gastos mayores en mantenimiento de los bienes inmuebles | G25: 1. Mantenimiento programado (mantenimiento preventivo) 2. Verificación periódica (inspección) de buen uso de mobiliario y equipos tecnológico 3. Aprobación de compras exclusivamente necesarias por parte de la supervisión de contrato | H25: 0.01 | I25: 0.01 | J25: 0.01 | L25: 1
A26: Artículo 22 -. Suscripciones. | B26: N.A. Valor se establece en cero debido a que no se generan valores proyectados u ejectuados para el item en el FDLSC | C26: 0 | D26: 0 | F26: N.A. | G26: N.A. | H26: N.A. | I26: N.A. | J26: N.A.
A27: Artículo 23 -. Servicios públicos. | B27: Funcionamiento | C27: 92052871 | D27: 84415392 | E27: 0.08296839541 | F27: Las estrategias a desarrollar se enmarcan en las actividades concertadas en el Plan de Acción del PIGA para la vigencia 2024-2028, para los programas de Uso eficiente de Agua y uso eficiente de energia | G27: Las estrategias a desarrollar se enmarcan en las actividades concertadas en el Plan de Acción del PIGA para la vigencia 2024-2028, para los programas de Uso eficiente de Agua y uso eficiente de energia | H27: 0.0375 | I27: 0.0375 | J27: 0.0375 | L27: 1 | Q27: Agua y luz

Sheet 0005-01 USME
A1: PLAN DE AUSTERIDAD EN EL GASTO 2025-2027
A2: Entidad
A3: Valores en Pesos Corrientes
A4: CONCEPTO (Decreto 062 de 2024) | B4: Posiciones Presupuestales Asociadas (Funcionamiento e Inversión) | C4: LÍNEA BASE | F4: PLAN DE AUSTERIDAD EN EL GASTO 2025-2027 | K4: SEGUIMIENTO RESULTADOS PLAN DE AUSTERIDAD 2025-2027
F5: ESTRATEGIAS 2025-2027 | G5: ACCIONES 2025-2027 | H5: META INDICADOR DE AUSTERIDAD
C6: AÑO 2023 | D6: AÑO 2024 | K6: AÑO 2025 | M6: AÑO 2026 | O6: AÑO 2027
C7: Valor EJECUTADO a 31/12/2023 | D7: Valor EJECUTADO a 31/12/2024 | E7: Resultado Indicador Austeridad | H7: AÑO 2025 | I7: AÑO 2026 | J7: AÑO 2027 | K7: Valor EJECUTADO a 31/12/2025 | L7: Resultado Indicador Austeridad | M7: Valor EJECUTADO a 31/12/2026 | N7: Resultado Indicador Austeridad | O7: Valor EJECUTADO a 31/12/2027 | P7: Resultado Indicador Austeridad
A8: Servicios de personal
A9: Artículo 6°.- Reducción del gasto en CPS profesionales y de apoyo a la gestión. | B9: N.A. Se registran totales. Corresponde con lo reportado en SIDEAP y SIVICOF | E9: =1-(D9/C9) ->  | L9: =1-(K9/D9) ->  | N9: =1-(M9/K9) ->  | P9: =1-(O9/M9) -> 
A10: Artículo 7°.- Horas extras, dominicales y festivos. | L10: =1-(K10/D10) ->  | N10: =1-(M10/K10) -> 
A11: Artículo 8°.- Viáticos y gastos de viaje.
A12: Artículo 9°.- Compensación por vacaciones.
A13: Artículo 10°.- Bono navideño.
A14: Artículo 11 -. Capacitación.
A15: Artículo 12 -. Bienestar.
A16: Artículo 13 -. Eventos y conmemoraciones.
A17: Artículo 14 -. Fondos educativos.
A18: Servicios Administrativos
A19: Artículo 15. Telefonía. | E19: =1-(D19/C19) -> 
A20: Artículo 16 -. Vehículos oficiales.
A21: Artículo 17 -. Adquisición de vehículos y maquinaria.
A22: Artículo 18 -. Fotocopiado, multicopiado e impresión.
A23: Artículo 19 -. Publicidad distrital.
A24: Artículo 20 -. Cajas menores.
A25: Artículo 21 -. Mantenimiento o reparación de bienes inmuebles o muebles.
A26: Artículo 22 -. Suscripciones.
A27: Artículo 23 -. Servicios públicos.

Sheet 0007-01 BOSA
A1: PLAN DE AUSTERIDAD EN EL GASTO 2025-2027
A2: Entidad
A3: Valores en Pesos Corrientes
A4: CONCEPTO (Decreto 062 de 2024) | B4: Posiciones Presupuestales Asociadas (Funcionamiento e Inversión) | C4: LÍNEA BASE | F4: PLAN DE AUSTERIDAD EN EL GASTO 2025-2027 | K4: SEGUIMIENTO RESULTADOS PLAN DE AUSTERIDAD 2025-2027
F5: ESTRATEGIAS 2025-2027 | G5: ACCIONES 2025-2027 | H5: META INDICADOR DE AUSTERIDAD
C6: AÑO 2023 | D6: AÑO 2024 | K6: AÑO 2025 | M6: AÑO 2026 | O6: AÑO 2027
C7: Valor EJECUTADO a 31/12/2023 | D7: Valor EJECUTADO a 31/12/2024 | E7: Resultado Indicador Austeridad | H7: AÑO 2025 | I7: AÑO 2026 | J7: AÑO 2027 | K7: Valor EJECUTADO a 31/12/2025 | L7: Resultado Indicador Austeridad | M7: Valor EJECUTADO a 31/12/2026 | N7: Resultado Indicador Austeridad | O7: Valor EJECUTADO a 31/12/2027 | P7: Resultado Indicador Austeridad
A8: Servicios de personal
A9: Artículo 6°.- Reducción del gasto en CPS profesionales y de apoyo a la gestión. | B9: N.A. Se registran totales. Corresponde con lo reportado en SIDEAP y SIVICOF | C9: 24874653642 | D9: 19877696643 | E9: =1-(D9/C9) -> 0.2008854905 | F9: Evaluar las necesidades de la Alcaldía Local de Bosa, asegurándose de que sean exclusivamente para el cumplimiento de las funciones institucionales y misionales, y que faciliten el cumplimiento de los compromisos derivados de su operatividad. | G9: Evaluar las necesidades de la Alcaldía Local de Bosa, asegurándose de que sean exclusivamente para el cumplimiento de las funciones institucionales y misionales, y que faciliten el cumplimiento de los compromisos derivados de su operatividad. | H9: -0.052 | I9: -0.03 | J9: Incremento se hará según IPC | K9: =+D9*1.052 -> 2.091133687e+10 | L9: =1-(K9/D9) -> -0.052 | M9: =+K9*1.03 -> 2.153867697e+10 | N9: =1-(M9/K9) -> -0.03 | P9: =1-(O9/M9) -> 1
A10: Artículo 7°.- Horas extras, dominicales y festivos. | B10: La entidad no registra gastos asociados a este concepto. | C10: N.A | D10: N.A | F10: N.A | G10: N.A | H10: N.A | L10: =1-(K10/D10) ->  | N10: =1-(M10/K10) -> 
A11: Artículo 8°.- Viáticos y gastos de viaje. | B11: La entidad no registra gastos asociados a este concepto. | C11: N.A | D11: N.A | F11: N.A | G11: N.A | H11: N.A
A12: Artículo 9°.- Compensación por vacaciones. | B12: La entidad no registra gastos asociados a este concepto. | C12: N.A | D12: N.A | F12: N.A | G12: N.A | H12: N.A
A13: Artículo 10°.- Bono navideño. | B13: La entidad no registra gastos asociados a este concepto. | C13: N.A | D13: N.A | F13: N.A | G13: N.A | H13: N.A
A14: Artículo 11 -. Capacitación. | B14: La entidad no registra gastos asociados a este concepto. | C14: N.A | D14: N.A | F14: N.A | G14: N.A | H14: N.A
A15: Artículo 12 -. Bienestar. | B15: La entidad no registra gastos asociados a este concepto. | C15: N.A | D15: N.A | F15: N.A | G15: N.A | H15: N.A
A16: Artículo 13 -. Eventos y conmemoraciones. | B16: La entidad no registra gastos asociados a este concepto. | C16: N.A | D16: N.A | F16: N.A | G16: N.A | H16: N.A
A17: Artículo 14 -. Fondos educativos. | B17: La entidad no registra gastos asociados a este concepto. | C17: N.A | D17: N.A | F17: N.A | G17: N.A | H17: N.A
A18: Servicios Administrativos
A19: Artículo 15. Telefonía. | C19: 34773285 | D19: 29874936 | E19: =1-(D19/C19) -> 0.1408652936 | F19: 1. La Alcaldía Local de Bosa se compromete a no adquirir telefonia celular. 2. Como medida de control se tienen restricciones para la realización de las lamadas nacionales e internacionales, a través de programación en la planta telefónica solo permite llamadas locales. | G19: 1. Mantener la medida de no comprar telefonia celular. 2. Mantener las medidas de control y el consumo con respecto la vigencia anterior, sin desconocer el aumento anual de precios. | H19: -0.052 | I19: -0.03 | J19: Incremento se hará según IPC | L19: 1
A20: Artículo 16 -. Vehículos oficiales. | B20: O2120201003033331101 O2120201003033336103 | C20: 22474795 | D20: 20692481 | E20: 0.07930279231 | F20: Aunque no sea un gasto elegible para esta vigencia, se continuará llevando un control eficiente y efectivo del suministro de combustible a los vehículos de propiedad de la Alcaldía Local de Bosa, los cuales están destinados a realizar actividades dentro de su misiónalidad. | G20: 1. Implementar mecanismos de control a través de un chip o tecnología similar en los vehículos oficiales que registre el consumo combustible. 2. El mantenimiento del parque automotor se adelantará de acuerdo con el plan programado para el año buscando economía en su ejecución. | H20: -0.052 | I20: -0.03 | J20: Incremento se hará según IPC | L20: 1
A21: Artículo 17 -. Adquisición de vehículos y maquinaria.
A22: Artículo 18 -. Fotocopiado, multicopiado e impresión. | B22: La entidad no registra gastos asociados a este concepto. | C22: N.A | D22: N.A | F22: Este concepto no es elegible, sin embargo se continuara implementando la politica de cero papel en la entidad, dando alcance a las directrices de la Directiva Presidencial No. 04 del 2012, la circular 026 de 2024 y demas actos administrativos concordantes de carácter distrital en la estrategia eficiencia administrativa y lineamientos de la política cero papel en la administración pública. | G22: 1. Uso racional de los procesos de fotocopiado o multicopiado, es con fines exclusivos de la gestión administrativa, y en todo caso quedaran restringidas las copias de carácter personal. 2. Desestimular la expedición de copias, privilegiando el proceso de digitalización y remisión por medios electrónicos, sin embargo, solamente se deben solicitar fotocopias para actos probatorios o donde la norma aplicable en cada caso concreto así lo exija. 3. Se debe privilegiar la revisión en línea o por medios electrónicos como los documentos de gestión, así mismo para el caso de los informes de ejecución contractual, estos podrán ser enviados al supervisor y/o apoyo a la supervisión, con el fin de que se revise y de visto bueno por este medio, para su posterior impresión y radicación oficial de acuerdo con los lineamientos del Sistema Integrado de Gestión, hoy MATIZ. 4. Se debe privilegiar la revisión en línea o por medios electrónicos como los documentos de gestión, así mismo para el caso de los informes de ejecución contractual, estos podrán ser enviados al supervisor y/o apoyo a la supervisión, con el fin de que se revise y de visto bueno por este medio, para su posterior impresión y radicación oficial de acuerdo con los lineamientos del Sistema Integrado de Gestión, hoy MATIZ. 5. Desde el area de almacen y PIGA se hara el seguimiento mensual del consumo de resmas de papel para realizar medidas de control de consumo. 6. Desde el Plan Institucional de Gestión Ambiental, se realizaran las campañas y sensibilizaciones correspondientes para promover la disminucion de papel y el uso del papel reciclado.
A23: Artículo 19 -. Publicidad distrital. | B23: O23011601200000001804 O23011605570000001839 O23011603450000001840 O23011605550000001814 | C23: 414054240 | D23: 824594000 | E23: -0.9915120299 | F23: A pesar de no estar dentro de los criterios de eligibilidad, se sigue el procedimiento establecido para la edición, impresión y reproducción de piezas de comunicación, tales como avisos, folletos, cuadernillos, entre otros; en caso de que la Imprenta Distrital no tenga disponibilidad, se acogen las opciones legalmente permitidas, de igual forma al contrato de plan de medios, se realiza la respectiva inclusión de criterios ambientales para que sean cumplidos y con ello reducir el impacto ambiental significativo, generado por estas actividades. | G23: 1. Continuar con los procesos tecnicos establecidos para la reproducción de piezas. 2. Incluir clasulas ambientales en los procesos de contratación que permiatan el ahorro y disminucion de impactos en el ambiente debido a estas actividades. | H23: -0.052 | I23: -0.03 | J23: Incremento se hará según IPC | L23: 1
A24: Artículo 20 -. Cajas menores. | B24: La entidad no registra gastos asociados a este concepto. | C24: N.A | D24: N.A | F24: N.A | G24: N.A
A25: Artículo 21 -. Mantenimiento o reparación de bienes inmuebles o muebles. | B25: O23011605570000001839: Cuentas claras en Bosa: fortalecimiento de la capacidad institucional con una gestión pública eficiente y transparente. O23011602270000001729: Bosa reverdece haciéndole frente al cambio climático. O2120201003053511001 O2120201003053511003 O2120201003053511004 O2120201003053511018 O2120201003053511030 O2120201003053511035 O2120201003053511038 O2120201003053542007 O2120201003053549918 O2120201003053549943 O2120201003053549955 O2120201003053549996 O2120201003053549999 O2120201003083899310 O2120201003083899311 O2120201003083899918 O2120201003083899997 O2120201003083899998 O2120201004014121201 O2120201004014121302 O2120201004024212002 O2120201004024212009 O2120201004024291101 O2120201004024292114 O2120201004024292115 O2120201004024292118 O2120201004024292119 O2120201004024292120 O2120201004024292122 O2120201004024292123 O2120201004024292199 O2120201004024292299 O2120201004024294201 O2120201004024294401 O2120201004024294403 O2120201004024294406 O2120201004024294408 O2120201004024299205 O2120201004024299908 O2120201004024299910 O2120201004024299915 O2120201004024299920 | C25: 134892000 | D25: 139350000 | E25: -0.03304866115 | F25: Este criterio no está incluido en la lista de elegibles, ya que es necesario realizar mantenimientos preventivos y correctivos a los bienes inmuebles donde funcionan las dependencias de la Alcaldía Local de Bosa. Sin embargo, se implementarán estrategias que promuevan el sentido de pertenencia entre los usuarios y empleados de las instalaciones, fomentando el cuidado y respeto por los espacios comunes y de trabajo. | G25: Realizar campañas de uso adecuado de las areas de trabajo y areas comunes, que contribuyan a la preservación del los espacios de la ALB. | H25: -0.052 | I25: -0.03 | J25: Incremento se hará según IPC | L25: 1
A26: Artículo 22 -. Suscripciones. | B26: La entidad no registra gastos asociados a este concepto. | C26: N.A | D26: N.A | F26: La Alcaldía Local de Bosa no incurrira en costos asociados a la suscripción de periódicos, revistas, publicaciones o bases de datos electrónicas y, en su lugar ha optado por hacer uso de las herramientas tecnológicas que le permitan obtener información relevante para la misionalidad de la entidad. | G26: Mantener al 100% de la no suscripción.
A27: Artículo 23 -. Servicios públicos. | B27: O23011745992024284101000 O23011745992024285301000 O21202020090494239 O21202020080484120 O21202020080686312 O21202020080686330 O23011745992024281001000 O3011745992024281001000 | C27: 87263120 | D27: 59793788.71 | E27: 0.3147874072 | F27: Este rubro no se encuentra priorizado para la vigencia 2025, sin embargo, se continuarán realizando acciones enmarcadas dentro del Plan de Acción PIGA . | G27: 1. Implementar el programa de uso eficiente del agua. 2. Continuar Implementando el programa de uso eficiente de la energia. 3. Continuar implementando las acciones contempladas dentro del PIGA para reducir el consumo y los impactos ambientales. | H27: -0.052 | I27: -0.03 | J27: Incremento se hará según IPC | L27: 1

Sheet 0008-01 KENNEDY
A1: PLAN DE AUSTERIDAD EN EL GASTO 2025-2027
A2: Entidad
A3: Valores en Pesos Corrientes
A4: CONCEPTO (Decreto 062 de 2024) | B4: Posiciones Presupuestales Asociadas (Funcionamiento e Inversión) | C4: LÍNEA BASE | F4: PLAN DE AUSTERIDAD EN EL GASTO 2025-2027 | K4: SEGUIMIENTO RESULTADOS PLAN DE AUSTERIDAD 2025-2027
F5: ESTRATEGIAS 2025-2027 | G5: ACCIONES 2025-2027 | H5: META INDICADOR DE AUSTERIDAD
C6: AÑO 2023 | D6: AÑO 2024 | K6: AÑO 2025 | M6: AÑO 2026 | O6: AÑO 2027
C7: Valor EJECUTADO a 31/12/2023 | D7: Valor EJECUTADO a 31/12/2024 | E7: Resultado Indicador Austeridad | H7: AÑO 2025 | I7: AÑO 2026 | J7: AÑO 2027 | K7: Valor EJECUTADO a 31/12/2025 | L7: Resultado Indicador Austeridad | M7: Valor EJECUTADO a 31/12/2026 | N7: Resultado Indicador Austeridad | O7: Valor EJECUTADO a 31/12/2027 | P7: Resultado Indicador Austeridad
A8: Servicios de personal
A9: Artículo 6°.- Reducción del gasto en CPS profesionales y de apoyo a la gestión. | B9: N.A. | C9: N.A. | D9: N.A. | E9: =1-(D9/C9) ->  | F9: N.A. | G9: N.A. | L9: =1-(K9/D9) ->  | N9: =1-(M9/K9) ->  | P9: =1-(O9/M9) -> 
A10: Artículo 7°.- Horas extras, dominicales y festivos. | B10: N.A. | C10: N.A. | D10: N.A. | F10: N.A. | G10: N.A. | L10: =1-(K10/D10) ->  | N10: =1-(M10/K10) -> 
A11: Artículo 8°.- Viáticos y gastos de viaje. | B11: N.A. | C11: N.A. | D11: N.A. | F11: N.A. | G11: N.A.
A12: Artículo 9°.- Compensación por vacaciones. | B12: N.A. | C12: N.A. | D12: N.A. | F12: N.A. | G12: N.A.
A13: Artículo 10°.- Bono navideño. | B13: N.A. | C13: N.A. | D13: N.A. | F13: N.A. | G13: N.A.
A14: Artículo 11 -. Capacitación. | B14: N.A. | C14: N.A. | D14: N.A. | F14: N.A. | G14: N.A.
A15: Artículo 12 -. Bienestar. | B15: N.A. | C15: N.A. | D15: N.A. | F15: N.A. | G15: N.A.
A16: Artículo 13 -. Eventos y conmemoraciones. | B16: N.A. | C16: N.A. | D16: N.A. | F16: N.A. | G16: N.A.
A17: Artículo 14 -. Fondos educativos. | B17: N.A. | C17: N.A. | D17: N.A. | F17: N.A. | G17: N.A.
A18: Servicios Administrativos
A19: Artículo 15. Telefonía. | B19: N.A. | C19: N.A. | D19: N.A. | E19: =1-(D19/C19) ->  | F19: N.A. | G19: N.A.
A20: Artículo 16 -. Vehículos oficiales. | B20: N.A. | C20: N.A. | D20: N.A. | F20: N.A. | G20: N.A.
A21: Artículo 17 -. Adquisición de vehículos y maquinaria. | B21: N.A. | C21: N.A. | D21: N.A. | F21: N.A. | G21: N.A.
A22: Artículo 18 -. Fotocopiado, multicopiado e impresión. | B22: Consumo de hojas en fotocopiado, multicopiado e Impresión. | C22: 81734732 | D22: 191035388 | E22: -1.337260835 | F22: * Disminuir el uso de hojas en diferentes procesos de la Alcaldía. * Realizar capacitaciones a los funcionarios para aprovechar los medios digitales en miras de la politica de cero papel. | G22: * Incentivar al uso de medios digitales y evitar la impresión de documentos innecesarios. * Sensibilizar y concientizar por medio de campañas que permitar disminuir el consumo de papel | H22: 0.05 | I22: 0.04 | J22: 0.03 | L22: 1
A23: Artículo 19 -. Publicidad distrital. | B23: Contratar el suministro de impresos, publicaciones, material litográfico y elementos de publicidad institucional a monto agotable, que requiera la Alcaldía Local de Kennedy, de conformidad con las condiciones, cantidades y especificaciones técnicas establecidas a precios fijos. | C23: 67500000 | D23: 42000000 | E23: 0.3777777778 | F23: *Implementar el uso constante de la página web de la alcaldía local de Kennedy. *Incentivar al uso de las redes sociales de la alcaldía. *Promover uso de medios tecnológicos. | G23: *Disminuir suministro de impresos, publicaciones, material litográfico, y elementos de publicidad institucional. *Reducir los insumos de impresos a un 50% | H23: 0.03 | I23: 0.02 | J23: 0.02 | L23: 1
A24: Artículo 20 -. Cajas menores. | B24: N.A. | C24: N.A. | D24: N.A. | F24: N.A. | G24: N.A.
A25: Artículo 21 -. Mantenimiento o reparación de bienes inmuebles o muebles. | B25: N.A. | C25: N.A. | D25: N.A. | F25: N.A. | G25: N.A.
A26: Artículo 22 -. Suscripciones. | B26: N.A. | C26: N.A. | D26: N.A. | F26: N.A. | G26: N.A.
A27: Artículo 23 -. Servicios públicos. | B27: N.A. | C27: N.A. | D27: N.A. | F27: N.A. | G27: N.A.

Sheet 0010-01 ENGATIVA
A1: PLAN DE AUSTERIDAD EN EL GASTO 2025-2027
A2: Entidad | B2: FONDO DE DESARROLLO LOCAL DE ENGATIVÁ
A3: Valores en Pesos Corrientes
A4: CONCEPTO (Decreto 062 de 2024) | B4: Posiciones Presupuestales Asociadas (Funcionamiento e Inversión) | C4: LÍNEA BASE | F4: PLAN DE AUSTERIDAD EN EL GASTO 2025-2027 | K4: SEGUIMIENTO RESULTADOS PLAN DE AUSTERIDAD 2025-2027
F5: ESTRATEGIAS 2025-2027 | G5: ACCIONES 2025-2027 | H5: META INDICADOR DE AUSTERIDAD
C6: AÑO 2023 | D6: AÑO 2024 | K6: AÑO 2025 | M6: AÑO 2026 | O6: AÑO 2027
C7: Valor EJECUTADO a 31/12/2023 | D7: Valor EJECUTADO a 31/12/2024 | E7: Resultado Indicador Austeridad | H7: AÑO 2025 | I7: AÑO 2026 | J7: AÑO 2027 | K7: Valor EJECUTADO a 31/12/2025 | L7: Resultado Indicador Austeridad | M7: Valor EJECUTADO a 31/12/2026 | N7: Resultado Indicador Austeridad | O7: Valor EJECUTADO a 31/12/2027 | P7: Resultado Indicador Austeridad
A8: Servicios de personal
A9: Artículo 6°.- Reducción del gasto en CPS profesionales y de apoyo a la gestión. | B9: N.A. Se registran totales. Corresponde con lo reportado en SIDEAP y SIVICOF | C9: 18676706005 | D9: 13049302337 | E9: =1-(D9/C9) -> 0.3013060047 | F9: Revisar las necesidades de la alcdía local, procurando que estas sean estrictamente para el cumplimiento de las funciones institucionales y misionales; que permitan atender los compromisos derivados del funcionamiento. | G9: Con relación a la línea base y de acuerdo a los lineamientos dados se propenderá por solo incrementar el IPC de cada vigencia | H9: Incremento IPC | I9: Incremento IPC | J9: Incremento IPC | L9: =1-(K9/D9) -> 1 | N9: =1-(M9/K9) ->  | P9: =1-(O9/M9) -> 
A10: Artículo 7°.- Horas extras, dominicales y festivos. | C10: 0 | D10: 0 | F10: N/A | G10: N/A | L10: =1-(K10/D10) ->  | N10: =1-(M10/K10) -> 
A11: Artículo 8°.- Viáticos y gastos de viaje. | C11: 0 | D11: 0 | F11: N/A | G11: N/A
A12: Artículo 9°.- Compensación por vacaciones. | C12: 0 | D12: 0 | F12: N/A | G12: N/A
A13: Artículo 10°.- Bono navideño. | C13: 0 | D13: 0 | F13: N/A | G13: N/A
A14: Artículo 11 -. Capacitación. | C14: 0 | D14: 0 | F14: N/A | G14: N/A
A15: Artículo 12 -. Bienestar. | C15: 0 | D15: 0 | F15: N/A | G15: N/A
A16: Artículo 13 -. Eventos y conmemoraciones. | C16: 0 | D16: 0 | F16: N/A | G16: N/A
A17: Artículo 14 -. Fondos educativos. | C17: 0 | D17: 0 | F17: N/A | G17: N/A
A18: Servicios Administrativos
A19: Artículo 15. Telefonía. | C19: 48397200 | D19: 44364100 | E19: =1-(D19/C19) -> 0.08333333333 | F19: La Alcaldía Local, se compromete a la no adquisición de líneas de celular y a la no adquisición de líneas de teléfono adicionales. | G19: Continuar con el ahorro en telefonía y no adquirir líneas y teléfonos adicionales. | H19: 10.00% | I19: 10.00% | J19: 10.00% | L19: 1
A20: Artículo 16 -. Vehículos oficiales. | C20: 0 | D20: 0 | F20: N/A | G20: N/A
A21: Artículo 17 -. Adquisición de vehículos y maquinaria. | C21: 172366099 | D21: 1541203600 | E21: -7.941454317 | F21: Solo se asignan vehículos de uso oficial con cargo a recursos de la entidad para el Despacho y las áreas que necesiten su uso para el cumplimiento de los objetivos y actividades que se requieren la localidad. | G21: Se efectuarán controles periódicos de consumo de combustible, mantenimientos preventivos y correctivos a cada vehículo que conforman el parque automotor de la entidad. | H21: 1.00% | I21: 1.00% | J21: 1.00% | L21: 1
A22: Artículo 18 -. Fotocopiado, multicopiado e impresión. | C22: 15720574 | D22: 24444323 | E22: -0.5549256026 | F22: Se continuará implementación de la “política de Cero Papel”, con el fin de dar prioridad al uso de los medios digitales y evitar impresiones, reducir el consumo de papel, reutilizar y reciclar implementos de oficina. | G22: Disminución del consumo de papel con respecto a la vigencia anterior. Se Promoverá una cultura de responsabilidad ambiental y eficiencia operativa mediante la una estrategia de sensibilización de los usuarios de la entidad en relación con la racionalización del uso de papel en pro de la reducción del gasto público y preservación del medio ambiente. | H22: 5.00% | I22: 5.00% | J22: 5.00% | L22: 1
A23: Artículo 19 -. Publicidad distrital. | C23: 0 | D23: 0 | F23: N/A | G23: N/A
A24: Artículo 20 -. Cajas menores. | C24: 0 | D24: 0 | F24: La Alcaldía Local se compromete a no realizar la habilitación de cajas menores. | G24: Mantener al 100% la no creación de cajas menores | H24: 100.00% | I24: 100.00% | J24: 100.00%
A25: Artículo 21 -. Mantenimiento o reparación de bienes inmuebles o muebles. | C25: 0 | D25: 0 | F25: N/A | G25: N/A
A26: Artículo 22 -. Suscripciones. | C26: 0 | D26: 0 | F26: La Alcaldía Local ha decidido no incurrir en costos asociados a la suscripción a periódicos, revistas, publicaciones o bases de datos electrónicas y, en su lugar ha optado por hacer uso de las herramientas tecnológicas que le permitan obtener información relevante para la misionalidad de la entidad. | G26: Mantener al 100% de la no suscripción a revistas, periódicos, entre otros. | H26: 100.00% | I26: 100.00% | J26: 100.00%
A27: Artículo 23 -. Servicios públicos. | C27: 260197361 | D27: 264.55898 | E27: 0.9999989832 | F27: Se realizará seguimiento al consumo de agua en m3 y de energía en kW. | G27: Mantener o disminuir el consumo de agua y se habilitaran orinales sin agua para propiciar el ahorro. Energía, se colocarán sensores para reducir el consumo. Tanto para agua como energía, se realizarán sensibilizaciones por los medios disponibles en la alcaldía local | H27: 1.00% | I27: 1.00% | J27: 1.00% | L27: 1

Sheet 0009-01 FONTIBON
A1: PLAN DE AUSTERIDAD EN EL GASTO 2025-2027
A2: Entidad
A3: Valores en Pesos Corrientes
A4: CONCEPTO (Decreto 062 de 2024) | B4: Posiciones Presupuestales Asociadas (Funcionamiento e Inversión) | C4: LÍNEA BASE | F4: PLAN DE AUSTERIDAD EN EL GASTO 2025-2027 | K4: SEGUIMIENTO RESULTADOS PLAN DE AUSTERIDAD 2025-2027
F5: ESTRATEGIAS 2025-2027 | G5: ACCIONES 2025-2027 | H5: META INDICADOR DE AUSTERIDAD
C6: AÑO 2023 | D6: AÑO 2024 | K6: AÑO 2025 | M6: AÑO 2026 | O6: AÑO 2027
C7: Valor EJECUTADO a 31/12/2023 | D7: Valor EJECUTADO a 31/12/2024 | E7: Resultado Indicador Austeridad | H7: AÑO 2025 | I7: AÑO 2026 | J7: AÑO 2027 | K7: Valor EJECUTADO a 31/12/2025 | L7: Resultado Indicador Austeridad | M7: Valor EJECUTADO a 31/12/2026 | N7: Resultado Indicador Austeridad | O7: Valor EJECUTADO a 31/12/2027 | P7: Resultado Indicador Austeridad
A8: Servicios de personal
A9: Artículo 6°.- Reducción del gasto en CPS profesionales y de apoyo a la gestión. | B9: N.A. Se registran totales. Corresponde con lo reportado en SIDEAP y SIVICOF | E9: =1-(D9/C9) ->  | L9: =1-(K9/D9) ->  | N9: =1-(M9/K9) ->  | P9: =1-(O9/M9) -> 
A10: Artículo 7°.- Horas extras, dominicales y festivos. | L10: =1-(K10/D10) ->  | N10: =1-(M10/K10) -> 
A11: Artículo 8°.- Viáticos y gastos de viaje.
A12: Artículo 9°.- Compensación por vacaciones.
A13: Artículo 10°.- Bono navideño.
A14: Artículo 11 -. Capacitación.
A15: Artículo 12 -. Bienestar.
A16: Artículo 13 -. Eventos y conmemoraciones.
A17: Artículo 14 -. Fondos educativos.
A18: Servicios Administrativos
A19: Artículo 15. Telefonía. | E19: =1-(D19/C19) -> 
A20: Artículo 16 -. Vehículos oficiales.
A21: Artículo 17 -. Adquisición de vehículos y maquinaria.
A22: Artículo 18 -. Fotocopiado, multicopiado e impresión.
A23: Artículo 19 -. Publicidad distrital.
A24: Artículo 20 -. Cajas menores.
A25: Artículo 21 -. Mantenimiento o reparación de bienes inmuebles o muebles.
A26: Artículo 22 -. Suscripciones.
A27: Artículo 23 -. Servicios públicos.

Sheet 0011-01 SUBA
A1: PLAN DE AUSTERIDAD EN EL GASTO 2025-2027
A2: Entidad
A3: Valores en Pesos Corrientes
A4: CONCEPTO (Decreto 062 de 2024) | B4: Posiciones Presupuestales Asociadas (Funcionamiento e Inversión) | C4: LÍNEA BASE | F4: PLAN DE AUSTERIDAD EN EL GASTO 2025-2027 | K4: SEGUIMIENTO RESULTADOS PLAN DE AUSTERIDAD 2025-2027
F5: ESTRATEGIAS 2025-2027 | G5: ACCIONES 2025-2027 | H5: META INDICADOR DE AUSTERIDAD
C6: AÑO 2023 | D6: AÑO 2024 | K6: AÑO 2025 | M6: AÑO 2026 | O6: AÑO 2027
C7: Valor EJECUTADO a 31/12/2023 | D7: Valor EJECUTADO a 31/12/2024 | E7: Resultado Indicador Austeridad | H7: AÑO 2025 | I7: AÑO 2026 | J7: AÑO 2027 | K7: Valor EJECUTADO a 31/12/2025 | L7: Resultado Indicador Austeridad | M7: Valor EJECUTADO a 31/12/2026 | N7: Resultado Indicador Austeridad | O7: Valor EJECUTADO a 31/12/2027 | P7: Resultado Indicador Austeridad
A8: Servicios de personal
A9: Artículo 6°.- Reducción del gasto en CPS profesionales y de apoyo a la gestión. | B9: N.A. Se registran totales. Corresponde con lo reportado en SIDEAP y SIVICOF | E9: =1-(D9/C9) ->  | L9: =1-(K9/D9) ->  | N9: =1-(M9/K9) ->  | P9: =1-(O9/M9) -> 
A10: Artículo 7°.- Horas extras, dominicales y festivos. | L10: =1-(K10/D10) ->  | N10: =1-(M10/K10) -> 
A11: Artículo 8°.- Viáticos y gastos de viaje.
A12: Artículo 9°.- Compensación por vacaciones.
A13: Artículo 10°.- Bono navideño.
A14: Artículo 11 -. Capacitación.
A15: Artículo 12 -. Bienestar.
A16: Artículo 13 -. Eventos y conmemoraciones.
A17: Artículo 14 -. Fondos educativos.
A18: Servicios Administrativos
A19: Artículo 15. Telefonía. | E19: =1-(D19/C19) -> 
A20: Artículo 16 -. Vehículos oficiales.
A21: Artículo 17 -. Adquisición de vehículos y maquinaria.
A22: Artículo 18 -. Fotocopiado, multicopiado e impresión.
A23: Artículo 19 -. Publicidad distrital.
A24: Artículo 20 -. Cajas menores.
A25: Artículo 21 -. Mantenimiento o reparación de bienes inmuebles o muebles.
A26: Artículo 22 -. Suscripciones.
A27: Artículo 23 -. Servicios públicos.

Sheet 0012-01 BARRIOS UNI
A1: PLAN DE AUSTERIDAD EN EL GASTO 2025-2027
A2: Entidad
A3: Valores en Pesos Corrientes
A4: CONCEPTO (Decreto 062 de 2024) | B4: Posiciones Presupuestales Asociadas (Funcionamiento e Inversión) | C4: LÍNEA BASE | F4: PLAN DE AUSTERIDAD EN EL GASTO 2025-2027 | K4: SEGUIMIENTO RESULTADOS PLAN DE AUSTERIDAD 2025-2027
F5: ESTRATEGIAS 2025-2027 | G5: ACCIONES 2025-2027 | H5: META INDICADOR DE AUSTERIDAD
C6: AÑO 2023 | D6: AÑO 2024 | K6: AÑO 2025 | M6: AÑO 2026 | O6: AÑO 2027
C7: Valor EJECUTADO a 31/12/2023 | D7: Valor EJECUTADO a 31/12/2024 | E7: Resultado Indicador Austeridad | H7: AÑO 2025 | I7: AÑO 2026 | J7: AÑO 2027 | K7: Valor EJECUTADO a 31/12/2025 | L7: Resultado Indicador Austeridad | M7: Valor EJECUTADO a 31/12/2026 | N7: Resultado Indicador Austeridad | O7: Valor EJECUTADO a 31/12/2027 | P7: Resultado Indicador Austeridad
A8: Servicios de personal
A9: Artículo 6°.- Reducción del gasto en CPS profesionales y de apoyo a la gestión. | B9: N.A. Se registran totales. Corresponde con lo reportado en SIDEAP y SIVICOF | E9: =1-(D9/C9) ->  | L9: =1-(K9/D9) ->  | N9: =1-(M9/K9) ->  | P9: =1-(O9/M9) -> 
A10: Artículo 7°.- Horas extras, dominicales y festivos. | L10: =1-(K10/D10) ->  | N10: =1-(M10/K10) -> 
A11: Artículo 8°.- Viáticos y gastos de viaje.
A12: Artículo 9°.- Compensación por vacaciones.
A13: Artículo 10°.- Bono navideño.
A14: Artículo 11 -. Capacitación.
A15: Artículo 12 -. Bienestar.
A16: Artículo 13 -. Eventos y conmemoraciones.
A17: Artículo 14 -. Fondos educativos.
A18: Servicios Administrativos
A19: Artículo 15. Telefonía. | E19: =1-(D19/C19) -> 
A20: Artículo 16 -. Vehículos oficiales.
A21: Artículo 17 -. Adquisición de vehículos y maquinaria.
A22: Artículo 18 -. Fotocopiado, multicopiado e impresión.
A23: Artículo 19 -. Publicidad distrital.
A24: Artículo 20 -. Cajas menores.
A25: Artículo 21 -. Mantenimiento o reparación de bienes inmuebles o muebles.
A26: Artículo 22 -. Suscripciones.
A27: Artículo 23 -. Servicios públicos.

Sheet 0013-01 TEUSAQUILLO
A1: PLAN DE AUSTERIDAD EN EL GASTO 2025-2027
A2: Entidad
A3: Valores en Pesos Corrientes
A4: CONCEPTO (Decreto 062 de 2024) | B4: Posiciones Presupuestales Asociadas (Funcionamiento e Inversión) | C4: LÍNEA BASE | F4: PLAN DE AUSTERIDAD EN EL GASTO 2025-2027 | K4: SEGUIMIENTO RESULTADOS PLAN DE AUSTERIDAD 2025-2027
F5: ESTRATEGIAS 2025-2027 | G5: ACCIONES 2025-2027 | H5: META INDICADOR DE AUSTERIDAD
C6: AÑO 2023 | D6: AÑO 2024 | K6: AÑO 2025 | M6: AÑO 2026 | O6: AÑO 2027
C7: Valor EJECUTADO a 31/12/2023 | D7: Valor EJECUTADO a 31/12/2024 | E7: Resultado Indicador Austeridad | H7: AÑO 2025 | I7: AÑO 2026 | J7: AÑO 2027 | K7: Valor EJECUTADO a 31/12/2025 | L7: Resultado Indicador Austeridad | M7: Valor EJECUTADO a 31/12/2026 | N7: Resultado Indicador Austeridad | O7: Valor EJECUTADO a 31/12/2027 | P7: Resultado Indicador Austeridad
A8: Servicios de personal
A9: Artículo 6°.- Reducción del gasto en CPS profesionales y de apoyo a la gestión. | B9: N.A. Se registran totales. Corresponde con lo reportado en SIDEAP y SIVICOF | E9: =1-(D9/C9) ->  | H9: -5.2% | I9: -3.23% | J9: -3.0% | K9: =D9*1.052 -> 0 | L9: =1-(K9/D9) ->  | N9: =1-(M9/K9) ->  | P9: =1-(O9/M9) -> 
A10: Artículo 7°.- Horas extras, dominicales y festivos. | L10: =1-(K10/D10) ->  | N10: =1-(M10/K10) -> 
A11: Artículo 8°.- Viáticos y gastos de viaje.
A12: Artículo 9°.- Compensación por vacaciones.
A13: Artículo 10°.- Bono navideño.
A14: Artículo 11 -. Capacitación.
A15: Artículo 12 -. Bienestar.
A16: Artículo 13 -. Eventos y conmemoraciones.
A17: Artículo 14 -. Fondos educativos.
A18: Servicios Administrativos
A19: Artículo 15. Telefonía. | E19: =1-(D19/C19) -> 
A20: Artículo 16 -. Vehículos oficiales. | B20: Funcionamiento no. rubro presupuestal | C20: 12000000 | D20: 15000000 | E20: -0.25 | H20: =1-(K20/D20) -> 0 | K20: 15000000 | L20: 0 | N20: 1
A21: Artículo 17 -. Adquisición de vehículos y maquinaria. | K21: 14000000 | N21: 1
A22: Artículo 18 -. Fotocopiado, multicopiado e impresión.
A23: Artículo 19 -. Publicidad distrital. | D23: 9000000 | H23: = | K23: 0 | L23: 1
A24: Artículo 20 -. Cajas menores.
A25: Artículo 21 -. Mantenimiento o reparación de bienes inmuebles o muebles.
A26: Artículo 22 -. Suscripciones.
A27: Artículo 23 -. Servicios públicos.

Sheet 0014-01 MARTIRES
A1: PLAN DE AUSTERIDAD EN EL GASTO 2025-2027
A2: Entidad | B2: Alcaldia Local de Los Martires
A3: Valores en Pesos Corrientes
A4: CONCEPTO (Decreto 062 de 2024) | B4: Posiciones Presupuestales Asociadas (Funcionamiento e Inversión) | C4: LÍNEA BASE | F4: PLAN DE AUSTERIDAD EN EL GASTO 2025-2027 | K4: SEGUIMIENTO RESULTADOS PLAN DE AUSTERIDAD 2025-2027
F5: ESTRATEGIAS 2025-2027 | G5: ACCIONES 2025-2027 | H5: META INDICADOR DE AUSTERIDAD
C6: AÑO 2023 | D6: AÑO 2024 | K6: AÑO 2025 | M6: AÑO 2026 | O6: AÑO 2027
C7: Valor EJECUTADO a 31/12/2023 | D7: Valor EJECUTADO a 31/12/2024 | E7: Resultado Indicador Austeridad | H7: AÑO 2025 | I7: AÑO 2026 | J7: AÑO 2027 | K7: Valor EJECUTADO a 31/12/2025 | L7: Resultado Indicador Austeridad | M7: Valor EJECUTADO a 31/12/2026 | N7: Resultado Indicador Austeridad | O7: Valor EJECUTADO a 31/12/2027 | P7: Resultado Indicador Austeridad
A8: Servicios de personal
A9: Artículo 6°.- Reducción del gasto en CPS profesionales y de apoyo a la gestión. | B9: N.A. Se registran totales. Corresponde con lo reportado en SIDEAP y SIVICOF | C9: 5838578884 | D9: 7657806132 | E9: =1-(D9/C9) -> -0.3115873373 | F9: Tomando como linea base la contratacion requerida para 2025, se caldula mantener el valor de la contratacion para 2025 en 7600 millones para el rubro de fortalecimiento (incluye transparencia e IVC) | G9: Realizar un diagnostico de necesidades de la Alcaldia Local. Proyectar los contratos de acuerdo a la necesidad del objeto. Revisar objetos contractuales y obligaciones para maximizar el uso de los contratos. | H9: 0.01 | I9: 3.26 | J9: 3 | L9: =1-(K9/D9) -> 1 | N9: =1-(M9/K9) ->  | P9: =1-(O9/M9) -> 
A10: Artículo 7°.- Horas extras, dominicales y festivos. | B10: N.A | C10: N.A | D10: N.A | F10: N.A | G10: N.A | H10: N/A | I10: N/A | J10: N/A | L10: =1-(K10/D10) ->  | N10: =1-(M10/K10) -> 
A11: Artículo 8°.- Viáticos y gastos de viaje. | B11: N.A | C11: N.A | D11: N.A | F11: N.A | G11: N.A | H11: N/A | I11: N/A | J11: N/A
A12: Artículo 9°.- Compensación por vacaciones. | B12: N.A | C12: N.A | D12: N.A | F12: N.A | G12: N.A | H12: N/A | I12: N/A | J12: N/A
A13: Artículo 10°.- Bono navideño. | B13: N.A | C13: N.A | D13: N.A | F13: N.A | G13: N.A | H13: N/A | I13: N/A | J13: N/A
A14: Artículo 11 -. Capacitación. | B14: N.A | C14: N.A | D14: N.A | F14: N.A | G14: N.A | H14: N/A | I14: N/A | J14: N/A
A15: Artículo 12 -. Bienestar. | B15: N.A | C15: N.A | D15: N.A | F15: N.A | G15: N.A | H15: N/A | I15: N/A | J15: N/A
A16: Artículo 13 -. Eventos y conmemoraciones. | B16: N.A | C16: N.A | D16: N.A | F16: N.A | G16: N.A | H16: N/A | I16: N/A | J16: N/A
A17: Artículo 14 -. Fondos educativos. | B17: N.A | C17: N.A | D17: N.A | F17: N.A | G17: N.A | H17: N/A | I17: N/A | J17: N/A
A18: Servicios Administrativos
A19: Artículo 15. Telefonía. | B19: O21202020080484222 Servicios de acceso a Internet de banda ancha O21202020080484120 Servicios de telefonía fija (acceso) | C19: 42182242 | D19: 38404940 | E19: =1-(D19/C19) -> 0.08954720804 | F19: Revisar las cuentas contrato a nombre del FDLM, realizar depuración en los casos que corresponda, que genere una reduccion en la facturacion de las cuentas contrato asociadas al funcionamiento y comunicacion de la ALM. No se adquirirán planes de telefonía móvil o celulares para el Directivo. | G19: Se plantea un cambio de operador del servicio de internet que ofrezca una reducción en la facturación mensual para así mantener el ahorro en el pago del servicio. | H19: 0 | I19: 0.0326 | J19: 0.03 | L19: 1
A20: Artículo 16 -. Vehículos oficiales. | B20: O2120201003033331101 Gasolina motor corriente O2120202008078714102 Servicio de mantenimiento y reparación de vehículo | C20: 45074308 | D20: 24979216 | E20: 0.44582142 | F20: Realizar el mantenimiento preventivo y correctivo al parque automotor, en los casos que corresponda. Es de aclarar que el parque automotor tiene más de 10 años de haber sido adquirido. | G20: Mantener el control de los recorridos de los vehículos a través de la adquisición de GPS Mantener el control del consumo de gasolina a través del CHIP | H20: 0 | I20: 0.0326 | J20: 0.03 | L20: 1
A21: Artículo 17 -. Adquisición de vehículos y maquinaria. | B21: N.A | C21: N.A | D21: N.A | F21: N.A | G21: N.A | H21: N.A | I21: N.A | J21: N.A
A22: Artículo 18 -. Fotocopiado, multicopiado e impresión. | B22: O21202020080585951 Servicios de copia y reproducción | C22: 7282800 | D22: 7500000 | E22: -0.02982369418 | F22: Generar una reduccion total en el uso de papel impreso y llegar a una aplicacion completa de papel cero en la ALM a traves de cambio de cultura y la concienciacion de todo el personal a traves de campañas activas permanentes y sensibilizaciones | G22: Continuar realizando las campañas de socialización de lineamientos de política cero papel a los funcionarios y contratistas de la ALM. Se continuará con la contratación del servicio de arrendamiento de fotocopiado, con el control de consumo de impresión, asignando una cantidad mínima de impresiones a cada usuario. | H22: 0 | I22: 0.0326 | J22: 0.03 | L22: 1
A23: Artículo 19 -. Publicidad distrital. | B23: N.A | C23: N.A | D23: N.A | F23: N.A | G23: N.A | H23: N.A | I23: N.A | J23: N.A
A24: Artículo 20 -. Cajas menores. | B24: N.A | C24: N.A | D24: N.A | F24: N.A | G24: N.A | H24: N.A | I24: N.A | J24: N.A
A25: Artículo 21 -. Mantenimiento o reparación de bienes inmuebles o muebles. | B25: O2120202008078715701 Servicio de mantenimiento y reparación de ascensor O2120201004024299991 Artículos n.c.p. de ferretería y cerrajería O23011605570000002099 Gestión pública eficiente y transparente | C25: 0.001 | D25: 34053333 | E25: -34053332999 | F25: Realizar acciones de mantenimiento preventivo de los inmuebles de propiedad del FDLM, con el fin de asegurar su preservación. | G25: Mantenimiento preventivo de los ascensores del Salón Comunal Santa fé y de la nueva sede administrativa. Mantenimiento preventivo de los equipos eléctricos, hidraúlicos de propiedad del FDLM, para el funcionamiento de los inmuebles. Mantenimiento de las sedes de propiedad del FDLM, que evite mayores consumos a largo plazo Campañas de uso responsable de la tomas eléctricas, de riesgo eléctrico | H25: 0 | I25: 0.0326 | J25: 0.03 | L25: 1
A26: Artículo 22 -. Suscripciones. | B26: N.A | C26: N.A | D26: N.A | F26: N.A | G26: N.A | H26: N.A | I26: N.A | J26: N.A
A27: Artículo 23 -. Servicios públicos. | B27: O21202020080686312 Servicios de distribución de electricidad (a comis O21202020080686330 Servicios de distribución de agua por tubería (a c O21202020090494239 Servicios generales de recolección de otros desech | C27: 16256110 | D27: 20166720 | E27: -0.2405624716 | F27: Implementar una reduccion progresiva en el consumo de los recursos naturales priorizando el mantenimiento preventivo de las instalaciones hidraulicas, asi como permeando en un cambio de conciencia a traves de campañas y sensibilizaciones a los colaboradores de la ALM | G27: Generar un mantenimiento preventivo en lugar de correctivo a las instalaciones de las sedes concertadas a fin de evitar las pérdidas del recurso hídrico la cual fue la razón del incremento de la facturación en el 2024, aunado a esto, el incremento de campañas activas, de comunicados, socializaciones, capacitaciones, correos masivos, piezas gráficas y demás que permitan continuar con la disminución del consumo en los servicios público Reutilización de aguas lluvias, iluminación LED con la nueva sede, equipos hidrosanitarios ahorradores en las instalaciones de la nueva sede administrativa | H27: 0 | I27: 0.0326 | J27: 0.03 | L27: 1

Sheet 0015-01 A. NARIÑO
A1: PLAN DE AUSTERIDAD EN EL GASTO 2025-2027
A2: Entidad
A3: Valores en Pesos Corrientes
A4: CONCEPTO (Decreto 062 de 2024) | B4: Posiciones Presupuestales Asociadas (Funcionamiento e Inversión) | C4: LÍNEA BASE | F4: PLAN DE AUSTERIDAD EN EL GASTO 2025-2027 | K4: SEGUIMIENTO RESULTADOS PLAN DE AUSTERIDAD 2025-2027
F5: ESTRATEGIAS 2025-2027 | G5: ACCIONES 2025-2027 | H5: META INDICADOR DE AUSTERIDAD
C6: AÑO 2023 | D6: AÑO 2024 | K6: AÑO 2025 | M6: AÑO 2026 | O6: AÑO 2027
C7: Valor EJECUTADO a 31/12/2023 | D7: Valor EJECUTADO a 31/12/2024 | E7: Resultado Indicador Austeridad | H7: AÑO 2025 | I7: AÑO 2026 | J7: AÑO 2027 | K7: Valor EJECUTADO a 31/12/2025 | L7: Resultado Indicador Austeridad | M7: Valor EJECUTADO a 31/12/2026 | N7: Resultado Indicador Austeridad | O7: Valor EJECUTADO a 31/12/2027 | P7: Resultado Indicador Austeridad
A8: Servicios de personal
A9: Artículo 6°.- Reducción del gasto en CPS profesionales y de apoyo a la gestión. | B9: N.A. Se registran totales. Corresponde con lo reportado en SIDEAP y SIVICOF | E9: =1-(D9/C9) ->  | L9: =1-(K9/D9) ->  | N9: =1-(M9/K9) ->  | P9: =1-(O9/M9) -> 
A10: Artículo 7°.- Horas extras, dominicales y festivos. | L10: =1-(K10/D10) ->  | N10: =1-(M10/K10) -> 
A11: Artículo 8°.- Viáticos y gastos de viaje.
A12: Artículo 9°.- Compensación por vacaciones.
A13: Artículo 10°.- Bono navideño.
A14: Artículo 11 -. Capacitación.
A15: Artículo 12 -. Bienestar.
A16: Artículo 13 -. Eventos y conmemoraciones.
A17: Artículo 14 -. Fondos educativos.
A18: Servicios Administrativos
A19: Artículo 15. Telefonía. | E19: =1-(D19/C19) -> 
A20: Artículo 16 -. Vehículos oficiales.
A21: Artículo 17 -. Adquisición de vehículos y maquinaria.
A22: Artículo 18 -. Fotocopiado, multicopiado e impresión.
A23: Artículo 19 -. Publicidad distrital.
A24: Artículo 20 -. Cajas menores.
A25: Artículo 21 -. Mantenimiento o reparación de bienes inmuebles o muebles.
A26: Artículo 22 -. Suscripciones.
A27: Artículo 23 -. Servicios públicos.

Sheet 0016-01 P. ARANDA
A1: PLAN DE AUSTERIDAD EN EL GASTO 2025-2027
A2: Entidad | B2: FONDO DE DESARROLLO LOCAL DE PUENTE ARANDA
A3: Valores en Pesos Corrientes
A4: CONCEPTO (Decreto 062 de 2024) | B4: Posiciones Presupuestales Asociadas (Funcionamiento e Inversión) | C4: LÍNEA BASE | F4: PLAN DE AUSTERIDAD EN EL GASTO 2025-2027 | K4: SEGUIMIENTO RESULTADOS PLAN DE AUSTERIDAD 2025-2027
F5: ESTRATEGIAS 2025-2027 | G5: ACCIONES 2025-2027 | H5: META INDICADOR DE AUSTERIDAD
C6: AÑO 2023 | D6: AÑO 2024 | K6: AÑO 2025 | M6: AÑO 2026 | O6: AÑO 2027
C7: Valor EJECUTADO a 31/12/2023 | D7: Valor EJECUTADO a 31/12/2024 | E7: Resultado Indicador Austeridad | H7: AÑO 2025 | I7: AÑO 2026 | J7: AÑO 2027 | K7: Valor EJECUTADO a 31/12/2025 | L7: Resultado Indicador Austeridad | M7: Valor EJECUTADO a 31/12/2026 | N7: Resultado Indicador Austeridad | O7: Valor EJECUTADO a 31/12/2027 | P7: Resultado Indicador Austeridad
A8: Servicios de personal
A9: Artículo 6°.- Reducción del gasto en CPS profesionales y de apoyo a la gestión. | B9: N.A. Se registran totales. Corresponde con lo reportado en SIDEAP y SIVICOF | C9: 7421254904 | D9: 7725173400 | E9: =1-(D9/C9) -> -0.04095243998 | F9: Solo celebrarán los contratos que sean estrictamente necesarios para coadyuvar al cumplimiento de las funciones y fines de la Entidad, cuando dichas actividades no puedan realizarse con personal de planta o requieran conocimiento especializados | G9: Se aplicará el crecimiento máximo equivalente al IPC causado en la vigencia anterior | H9: 0.0552 | I9: Incremento se hará según IPC | J9: Incremento se hará según IPC | L9: =1-(K9/D9) -> 1 | N9: =1-(M9/K9) ->  | P9: =1-(O9/M9) -> 
A10: Artículo 7°.- Horas extras, dominicales y festivos. | C10: 0 | D10: 0 | F10: N/A | G10: N/A | L10: =1-(K10/D10) ->  | N10: =1-(M10/K10) -> 
A11: Artículo 8°.- Viáticos y gastos de viaje. | C11: 0 | D11: 0 | F11: N/A | G11: N/A
A12: Artículo 9°.- Compensación por vacaciones. | C12: 0 | D12: 0 | F12: N/A | G12: N/A
A13: Artículo 10°.- Bono navideño. | C13: 0 | D13: 0 | F13: N/A | G13: N/A
A14: Artículo 11 -. Capacitación. | C14: 0 | D14: 0 | F14: N/A | G14: N/A
A15: Artículo 12 -. Bienestar. | C15: 0 | D15: 0 | F15: N/A | G15: N/A
A16: Artículo 13 -. Eventos y conmemoraciones. | C16: 0 | D16: 0 | F16: N/A | G16: N/A
A17: Artículo 14 -. Fondos educativos. | C17: 0 | D17: 0 | F17: N/A | G17: N/A
A18: Servicios Administrativos
A19: Artículo 15. Telefonía. | C19: 15003304 | D19: 12497710 | E19: =1-(D19/C19) -> 0.1670028148 | F19: La Alcaldía Local de puente Aranda se compromete a la no adquisición de líneas de celular y a la no adquisición de líneas de teléfono adicionales. | G19: Mantener al 100% la no adquisición de líneas de telefonía celular y telefonía fija adicional | H19: 0.05 | I19: 0.05 | J19: 0.05 | L19: 1
A20: Artículo 16 -. Vehículos oficiales. | C20: 45150000 | D20: 52485640 | E20: -0.1624726467 | F20: Solo se asignan vehículos de uso oficial con cargo a recursos de la entidad para el Despacho y las áreas que necesiten su uso para el cumplimiento de los objetivos y actividades que se requieren la localidad. El mantenimiento del parque automotor se lleva a cabo por medio de un proceso de selección de mínima cuantía. Se efectuarán controles periódicos de consumo de combustible, mantenimientos preventivos y correctivos a cada vehículo que conforman el parque automotor de la entidad. | H20: 0.01 | I20: 0.01 | J20: 0.01 | L20: 1
A21: Artículo 17 -. Adquisición de vehículos y maquinaria. | C21: 0 | D21: 0 | F21: N/A | G21: N/A
A22: Artículo 18 -. Fotocopiado, multicopiado e impresión. | C22: 0 | D22: 0 | F22: Se continuará implementación de la “política de Cero Papel”, con el fin de dar prioridad al uso de los medios digitales y evitar impresiones, reducir el consumo de papel, reutilizar y reciclar implementos de oficina. Dado que los equipos de fotocopiado, multicopiado e impresión no cuentan con el mecanismo para realizar la contabilidad de estas acciones, el seguimiento se realiza conforme al consumo de las resmas de papel entre una y otra vigencia. | G22: Disminución del consumo de papel (número de resmas) con respecto a la vigencia anterior. Mantener el 100% de la no inversión en servicios de fotocopiado, ,multicopiado e impresión
A23: Artículo 19 -. Publicidad distrital. | C23: 0 | D23: 0 | F23: N/A | G23: N/A
A24: Artículo 20 -. Cajas menores. | C24: 0 | D24: 0 | F24: N/A | G24: N/A
A25: Artículo 21 -. Mantenimiento o reparación de bienes inmuebles o muebles. | C25: 0 | D25: 0 | G25: N/A
A26: Artículo 22 -. Suscripciones. | C26: 0 | D26: 0 | F26: La Alcaldía Local de puente Aranda ha decidido no incurrir en costos asociados a la suscripción a periódicos, revistas, publicaciones o bases de datos electrónicas y, en su lugar ha optado por hacer uso de las herramientas tecnológicas que le permitan obtener información relevante para la misionalidad de la entidad. | G26: Mantener al 100% la no suscripción a revistas, periódicos, entre otros
A27: Artículo 23 -. Servicios públicos. | B27: AGUA | C27: 15638050 | D27: 16093600 | E27: -0.0291308699 | F27: Se realizará seguimiento y medición en la unidad m3. Es importante mencionar que en referencia alos costos estos pueden variar según los valores o precios del mercado o de la entidad que presta el servicio (EAB) | G27: Mantener o disminuir el consumo de agua en m3 | H27: 0.01 | I27: 0.01 | J27: 0.01 | L27: 1
A28: Artículo 23 -. Servicios públicos. | B28: ENERGIA | C28: 86661230 | D28: 75788168 | E28: =1-(D28/C28) -> 0.1254662783 | F28: Se realizará seguimiento y medición en la unidad m3. Es importante mencionar que en referencia alos costos estos pueden variar según los valores o precios del mercado o de la entidad que presta el servicio (ENEL) | G28: Mantener o disminuir el consumo de agua en Kw | H28: 0.01 | I28: 0.01 | J28: 0.01 | L28: =1-(K28/D28) -> 1 | N28: =1-(M28/K28) ->  | P28: =1-(O28/M28) -> 
A29: Artículo 23 -. Servicios públicos. | B29: GAS | C29: 1345380 | D29: 758890 | E29: =1-(D29/C29) -> 0.4359288825 | F29: Se realizará seguimiento y medición en la unidad Kw. Es importante mencionar que en referencia alos costos estos pueden variar según los valores o precios del mercado o de la entidad que presta el servicio (VANTI) | G29: Mantener o disminuir el consumo de agua en m3 | H29: 0.05 | I29: 0.05 | J29: 0.05 | L29: =1-(K29/D29) -> 1 | N29: =1-(M29/K29) ->  | P29: =1-(O29/M29) -> 

Sheet 0017-01 CANDELARIA
A1: PLAN DE AUSTERIDAD EN EL GASTO 2025-2027
A2: Entidad
A3: Valores en Pesos Corrientes
A4: CONCEPTO (Decreto 062 de 2024) | B4: Posiciones Presupuestales Asociadas (Funcionamiento e Inversión) | C4: LÍNEA BASE | F4: PLAN DE AUSTERIDAD EN EL GASTO 2025-2027 | K4: SEGUIMIENTO RESULTADOS PLAN DE AUSTERIDAD 2025-2027
F5: ESTRATEGIAS 2025-2027 | G5: ACCIONES 2025-2027 | H5: META INDICADOR DE AUSTERIDAD
C6: AÑO 2023 | D6: AÑO 2024 | K6: AÑO 2025 | M6: AÑO 2026 | O6: AÑO 2027
C7: Valor EJECUTADO a 31/12/2023 | D7: Valor EJECUTADO a 31/12/2024 | E7: Resultado Indicador Austeridad | H7: AÑO 2025 | I7: AÑO 2026 | J7: AÑO 2027 | K7: Valor EJECUTADO a 31/12/2025 | L7: Resultado Indicador Austeridad | M7: Valor EJECUTADO a 31/12/2026 | N7: Resultado Indicador Austeridad | O7: Valor EJECUTADO a 31/12/2027 | P7: Resultado Indicador Austeridad
A8: Servicios de personal
A9: Artículo 6°.- Reducción del gasto en CPS profesionales y de apoyo a la gestión. | B9: N.A. Se registran totales. Corresponde con lo reportado en SIDEAP y SIVICOF | E9: =1-(D9/C9) ->  | L9: =1-(K9/D9) ->  | N9: =1-(M9/K9) ->  | P9: =1-(O9/M9) -> 
A10: Artículo 7°.- Horas extras, dominicales y festivos. | L10: =1-(K10/D10) ->  | N10: =1-(M10/K10) -> 
A11: Artículo 8°.- Viáticos y gastos de viaje.
A12: Artículo 9°.- Compensación por vacaciones.
A13: Artículo 10°.- Bono navideño.
A14: Artículo 11 -. Capacitación.
A15: Artículo 12 -. Bienestar.
A16: Artículo 13 -. Eventos y conmemoraciones.
A17: Artículo 14 -. Fondos educativos.
A18: Servicios Administrativos
A19: Artículo 15. Telefonía. | E19: =1-(D19/C19) -> 
A20: Artículo 16 -. Vehículos oficiales.
A21: Artículo 17 -. Adquisición de vehículos y maquinaria.
A22: Artículo 18 -. Fotocopiado, multicopiado e impresión.
A23: Artículo 19 -. Publicidad distrital.
A24: Artículo 20 -. Cajas menores.
A25: Artículo 21 -. Mantenimiento o reparación de bienes inmuebles o muebles.
A26: Artículo 22 -. Suscripciones.
A27: Artículo 23 -. Servicios públicos.

Sheet 0018-01 R. URIBE
A1: PLAN DE AUSTERIDAD EN EL GASTO 2025-2027
A2: Entidad
A3: Valores en Pesos Corrientes
A4: CONCEPTO (Decreto 062 de 2024) | B4: Posiciones Presupuestales Asociadas (Funcionamiento e Inversión) | C4: LÍNEA BASE | F4: PLAN DE AUSTERIDAD EN EL GASTO 2025-2027 | K4: SEGUIMIENTO RESULTADOS PLAN DE AUSTERIDAD 2025-2027
F5: ESTRATEGIAS 2025-2027 | G5: ACCIONES 2025-2027 | H5: META INDICADOR DE AUSTERIDAD
C6: AÑO 2023 | D6: AÑO 2024 | K6: AÑO 2025 | M6: AÑO 2026 | O6: AÑO 2027
C7: Valor EJECUTADO a 31/12/2023 | D7: Valor EJECUTADO a 31/12/2024 | E7: Resultado Indicador Austeridad | H7: AÑO 2025 | I7: AÑO 2026 | J7: AÑO 2027 | K7: Valor EJECUTADO a 31/12/2025 | L7: Resultado Indicador Austeridad | M7: Valor EJECUTADO a 31/12/2026 | N7: Resultado Indicador Austeridad | O7: Valor EJECUTADO a 31/12/2027 | P7: Resultado Indicador Austeridad
A8: Servicios de personal
A9: Artículo 6°.- Reducción del gasto en CPS profesionales y de apoyo a la gestión. | B9: N.A. Se registran totales. Corresponde con lo reportado en SIDEAP y SIVICOF | C9: 28212749581 | D9: 25071160054 | E9: =1-(D9/C9) -> 0.1113535396 | F9: Realizar un diagnostico exhaustivo de los recursos humanos, identificando el número de profesionales en cada área y su función especifica. Analizar qué funciones son estrictamente necesarias y cuales pueden optimizarse sin afectar los servicios. Es importante identificar áreas donde la reducción de personal sea menos perjudicial. | H9: 1 | L9: =1-(K9/D9) -> 1 | N9: =1-(M9/K9) ->  | P9: =1-(O9/M9) -> 
A10: Artículo 7°.- Horas extras, dominicales y festivos. | B10: La entidad no registra gastos asociados a este concepto. | C10: NA | D10: NA | L10: =1-(K10/D10) ->  | N10: =1-(M10/K10) -> 
A11: Artículo 8°.- Viáticos y gastos de viaje. | B11: La entidad no registra gastos asociados a este concepto. | C11: NA | D11: NA
A12: Artículo 9°.- Compensación por vacaciones. | B12: La entidad no registra gastos asociados a este concepto. | C12: NA | D12: NA
A13: Artículo 10°.- Bono navideño. | B13: La entidad no registra gastos asociados a este concepto. | C13: NA | D13: NA
A14: Artículo 11 -. Capacitación. | B14: La entidad no registra gastos asociados a este concepto. | C14: NA | D14: NA
A15: Artículo 12 -. Bienestar. | B15: La entidad no registra gastos asociados a este concepto. | C15: NA | D15: NA
A16: Artículo 13 -. Eventos y conmemoraciones. | B16: La entidad no registra gastos asociados a este concepto. | C16: NA | D16: NA
A17: Artículo 14 -. Fondos educativos. | B17: La entidad no registra gastos asociados a este concepto. | C17: NA | D17: NA
A18: Servicios Administrativos
A19: Artículo 15. Telefonía. | B19: O21202020080484120 Servicios de telefonía fija (acceso) | C19: 22378540 | D19: 36043000 | E19: =1-(D19/C19) -> -0.6106055176 | F19: Revisar el uso de los servicios de telefonía , en todos los departamentos, y determinar cuantas llamadas, mensajes y datos se utilizan realmente. Con esto se puede identificar planes o servicios que no esten siendo aprovechados de amnera optima | H19: 1 | L19: 1
A20: Artículo 16 -. Vehículos oficiales. | B20: O2120202008078714199 Servicio de mantenimiento y reparación de vehículo | C20: 80000000 | D20: 30240690 | E20: 0.621991375 | F20: Enfoque en la optimización del buen uso y mantenimiento adecuado y a tiempo del parque automotor, esto con el fin de de incurrir en gastos adicionales, teniendo en cuenta que se tienen con mas de 10 años de ser adquiridos. | H20: 1 | L20: 1
A21: Artículo 17 -. Adquisición de vehículos y maquinaria. | B21: La entidad no registra gastos asociados a este concepto. | C21: NA | D21: NA
A22: Artículo 18 -. Fotocopiado, multicopiado e impresión. | B22: La entidad no registra gastos asociados a este concepto. | C22: NA | D22: NA
A23: Artículo 19 -. Publicidad distrital. | B23: O2120202008098912197 Servicios de impresión litográfica n.c.p. | C23: 0 | D23: 5000000 | F23: Realizar una planeación efectiva para generar cada una de las piezas publicitarias | H23: 1 | L23: 1
A24: Artículo 20 -. Cajas menores. | B24: La entidad no registra gastos asociados a este concepto. | C24: NA | D24: NA
A25: Artículo 21 -. Mantenimiento o reparación de bienes inmuebles o muebles. | B25: La entidad no registra gastos asociados a este concepto. | C25: NA | D25: NA
A26: Artículo 22 -. Suscripciones. | B26: La entidad no registra gastos asociados a este concepto. | C26: NA | D26: NA
A27: Artículo 23 -. Servicios públicos. | B27: O21202020080686312 Servicios de distribución de electricidad O21202020080686320 Servicios de distribución de gas por tuberías O21202020080686330 Servicios de distribución de agua por tubería | C27: 98296000 | D27: 100863000 | E27: -0.02611499959 | F27: Fomentar el uso responsable del agua, mediante campañas de concientización, implementar programas de reciclajes para reducir la cantidad de residuos generados | G27: Mantener y disminuir el cosumo de agua de acuerdo a la estadistica mensual por m3 Mantener y disminuir el consumo de energia de acuerdo a la estadistica mensual po KW Mantener y disminuir el cosnumo de gas de acuerdo a la esatdistica mensaul por m3 | H27: 1 | L27: 1

Sheet 0019-01 C. BOLIVAR
A1: PLAN DE AUSTERIDAD EN EL GASTO 2025-2027
A2: Entidad
A3: Valores en Pesos Corrientes
A4: CONCEPTO (Decreto 062 de 2024) | B4: Posiciones Presupuestales Asociadas (Funcionamiento e Inversión) | C4: LÍNEA BASE | F4: PLAN DE AUSTERIDAD EN EL GASTO 2025-2027 | K4: SEGUIMIENTO RESULTADOS PLAN DE AUSTERIDAD 2025-2027
F5: ESTRATEGIAS 2025-2027 | G5: ACCIONES 2025-2027 | H5: META INDICADOR DE AUSTERIDAD
C6: AÑO 2023 | D6: AÑO 2024 | K6: AÑO 2025 | M6: AÑO 2026 | O6: AÑO 2027
C7: Valor EJECUTADO a 31/12/2023 | D7: Valor EJECUTADO a 31/12/2024 | E7: Resultado Indicador Austeridad | H7: AÑO 2025 | I7: AÑO 2026 | J7: AÑO 2027 | K7: Valor EJECUTADO a 31/12/2025 | L7: Resultado Indicador Austeridad | M7: Valor EJECUTADO a 31/12/2026 | N7: Resultado Indicador Austeridad | O7: Valor EJECUTADO a 31/12/2027 | P7: Resultado Indicador Austeridad
A8: Servicios de personal
A9: Artículo 6°.- Reducción del gasto en CPS profesionales y de apoyo a la gestión. | B9: N.A. Se registran totales. Corresponde con lo reportado en SIDEAP y SIVICOF | E9: =1-(D9/C9) ->  | L9: =1-(K9/D9) ->  | N9: =1-(M9/K9) ->  | P9: =1-(O9/M9) -> 
A10: Artículo 7°.- Horas extras, dominicales y festivos. | L10: =1-(K10/D10) ->  | N10: =1-(M10/K10) -> 
A11: Artículo 8°.- Viáticos y gastos de viaje.
A12: Artículo 9°.- Compensación por vacaciones.
A13: Artículo 10°.- Bono navideño.
A14: Artículo 11 -. Capacitación.
A15: Artículo 12 -. Bienestar.
A16: Artículo 13 -. Eventos y conmemoraciones.
A17: Artículo 14 -. Fondos educativos.
A18: Servicios Administrativos
A19: Artículo 15. Telefonía. | E19: =1-(D19/C19) -> 
A20: Artículo 16 -. Vehículos oficiales.
A21: Artículo 17 -. Adquisición de vehículos y maquinaria.
A22: Artículo 18 -. Fotocopiado, multicopiado e impresión.
A23: Artículo 19 -. Publicidad distrital.
A24: Artículo 20 -. Cajas menores.
A25: Artículo 21 -. Mantenimiento o reparación de bienes inmuebles o muebles.
A26: Artículo 22 -. Suscripciones.
A27: Artículo 23 -. Servicios públicos.

Sheet 0020-01 SUMAPAZ
A1: PLAN DE AUSTERIDAD EN EL GASTO 2025-2027
A2: Entidad
A3: Valores en Pesos Corrientes
A4: CONCEPTO (Decreto 062 de 2024) | B4: Posiciones Presupuestales Asociadas (Funcionamiento e Inversión) | C4: LÍNEA BASE | F4: PLAN DE AUSTERIDAD EN EL GASTO 2025-2027 | K4: SEGUIMIENTO RESULTADOS PLAN DE AUSTERIDAD 2025-2027
F5: ESTRATEGIAS 2025-2027 | G5: ACCIONES 2025-2027 | H5: META INDICADOR DE AUSTERIDAD
C6: AÑO 2023 | D6: AÑO 2024 | K6: AÑO 2025 | M6: AÑO 2026 | O6: AÑO 2027
C7: Valor EJECUTADO a 31/12/2023 | D7: Valor EJECUTADO a 31/12/2024 | E7: Resultado Indicador Austeridad | H7: AÑO 2025 | I7: AÑO 2026 | J7: AÑO 2027 | K7: Valor EJECUTADO a 31/12/2025 | L7: Resultado Indicador Austeridad | M7: Valor EJECUTADO a 31/12/2026 | N7: Resultado Indicador Austeridad | O7: Valor EJECUTADO a 31/12/2027 | P7: Resultado Indicador Austeridad
A8: Servicios de personal
A9: Artículo 6°.- Reducción del gasto en CPS profesionales y de apoyo a la gestión. | B9: N.A. Se registran totales. Corresponde con lo reportado en SIDEAP y SIVICOF | E9: =1-(D9/C9) ->  | L9: =1-(K9/D9) ->  | N9: =1-(M9/K9) ->  | P9: =1-(O9/M9) -> 
A10: Artículo 7°.- Horas extras, dominicales y festivos. | L10: =1-(K10/D10) ->  | N10: =1-(M10/K10) -> 
A11: Artículo 8°.- Viáticos y gastos de viaje.
A12: Artículo 9°.- Compensación por vacaciones.
A13: Artículo 10°.- Bono navideño.
A14: Artículo 11 -. Capacitación.
A15: Artículo 12 -. Bienestar.
A16: Artículo 13 -. Eventos y conmemoraciones.
A17: Artículo 14 -. Fondos educativos.
A18: Servicios Administrativos
A19: Artículo 15. Telefonía. | E19: =1-(D19/C19) -> 
A20: Artículo 16 -. Vehículos oficiales.
A21: Artículo 17 -. Adquisición de vehículos y maquinaria.
A22: Artículo 18 -. Fotocopiado, multicopiado e impresión.
A23: Artículo 19 -. Publicidad distrital.
A24: Artículo 20 -. Cajas menores.
A25: Artículo 21 -. Mantenimiento o reparación de bienes inmuebles o muebles.
A26: Artículo 22 -. Suscripciones.
A27: Artículo 23 -. Servicios públicos.

Sheet 0100-01 CONCEJO
A1: PLAN DE AUSTERIDAD EN EL GASTO 2025-2027
A2: Entidad
A3: Valores en Pesos Corrientes
A4: CONCEPTO (Decreto 062 de 2024) | B4: Posiciones Presupuestales Asociadas (Funcionamiento e Inversión) | C4: LÍNEA BASE | F4: PLAN DE AUSTERIDAD EN EL GASTO 2025-2027 | K4: SEGUIMIENTO RESULTADOS PLAN DE AUSTERIDAD 2025-2027
F5: ESTRATEGIAS 2025-2027 | G5: ACCIONES 2025-2027 | H5: META INDICADOR DE AUSTERIDAD
C6: AÑO 2023 | D6: AÑO 2024 | K6: AÑO 2025 | M6: AÑO 2026 | O6: AÑO 2027
C7: Valor EJECUTADO a 31/12/2023 | D7: Valor EJECUTADO a 31/12/2024 | E7: Resultado Indicador Austeridad | H7: AÑO 2025 | I7: AÑO 2026 | J7: AÑO 2027 | K7: Valor EJECUTADO a 31/12/2025 | L7: Resultado Indicador Austeridad | M7: Valor EJECUTADO a 31/12/2026 | N7: Resultado Indicador Austeridad | O7: Valor EJECUTADO a 31/12/2027 | P7: Resultado Indicador Austeridad
A8: Servicios de personal
A9: Artículo 6°.- Reducción del gasto en CPS profesionales y de apoyo a la gestión. | B9: N.A. Se registran totales. Corresponde con lo reportado en SIDEAP y SIVICOF | E9: =1-(D9/C9) ->  | L9: =1-(K9/D9) ->  | N9: =1-(M9/K9) ->  | P9: =1-(O9/M9) -> 
A10: Artículo 7°.- Horas extras, dominicales y festivos. | L10: =1-(K10/D10) ->  | N10: =1-(M10/K10) -> 
A11: Artículo 8°.- Viáticos y gastos de viaje.
A12: Artículo 9°.- Compensación por vacaciones.
A13: Artículo 10°.- Bono navideño.
A14: Artículo 11 -. Capacitación.
A15: Artículo 12 -. Bienestar.
A16: Artículo 13 -. Eventos y conmemoraciones.
A17: Artículo 14 -. Fondos educativos.
A18: Servicios Administrativos
A19: Artículo 15. Telefonía. | E19: =1-(D19/C19) -> 
A20: Artículo 16 -. Vehículos oficiales.
A21: Artículo 17 -. Adquisición de vehículos y maquinaria.
A22: Artículo 18 -. Fotocopiado, multicopiado e impresión.
A23: Artículo 19 -. Publicidad distrital.
A24: Artículo 20 -. Cajas menores.
A25: Artículo 21 -. Mantenimiento o reparación de bienes inmuebles o muebles.
A26: Artículo 22 -. Suscripciones.
A27: Artículo 23 -. Servicios públicos.

Sheet 0102-01 PERSONERIA
A1: PLAN DE AUSTERIDAD EN EL GASTO 2025-2027
A2: Entidad
A3: Valores en Pesos Corrientes
A4: CONCEPTO (Decreto 062 de 2024) | B4: Posiciones Presupuestales Asociadas (Funcionamiento e Inversión) | C4: LÍNEA BASE | F4: PLAN DE AUSTERIDAD EN EL GASTO 2025-2027 | K4: SEGUIMIENTO RESULTADOS PLAN DE AUSTERIDAD 2025-2027
F5: ESTRATEGIAS 2025-2027 | G5: ACCIONES 2025-2027 | H5: META INDICADOR DE AUSTERIDAD
C6: AÑO 2023 | D6: AÑO 2024 | K6: AÑO 2025 | M6: AÑO 2026 | O6: AÑO 2027
C7: Valor EJECUTADO a 31/12/2023 | D7: Valor EJECUTADO a 31/12/2024 | E7: Resultado Indicador Austeridad | H7: AÑO 2025 | I7: AÑO 2026 | J7: AÑO 2027 | K7: Valor EJECUTADO a 31/12/2025 | L7: Resultado Indicador Austeridad | M7: Valor EJECUTADO a 31/12/2026 | N7: Resultado Indicador Austeridad | O7: Valor EJECUTADO a 31/12/2027 | P7: Resultado Indicador Austeridad
A8: Servicios de personal
A9: Artículo 6°.- Reducción del gasto en CPS profesionales y de apoyo a la gestión. | B9: N.A. Se registran totales. Corresponde con lo reportado en SIDEAP y SIVICOF | E9: =1-(D9/C9) ->  | L9: =1-(K9/D9) ->  | N9: =1-(M9/K9) ->  | P9: =1-(O9/M9) -> 
A10: Artículo 7°.- Horas extras, dominicales y festivos. | L10: =1-(K10/D10) ->  | N10: =1-(M10/K10) -> 
A11: Artículo 8°.- Viáticos y gastos de viaje.
A12: Artículo 9°.- Compensación por vacaciones.
A13: Artículo 10°.- Bono navideño.
A14: Artículo 11 -. Capacitación.
A15: Artículo 12 -. Bienestar.
A16: Artículo 13 -. Eventos y conmemoraciones.
A17: Artículo 14 -. Fondos educativos.
A18: Servicios Administrativos
A19: Artículo 15. Telefonía. | E19: =1-(D19/C19) -> 
A20: Artículo 16 -. Vehículos oficiales.
A21: Artículo 17 -. Adquisición de vehículos y maquinaria.
A22: Artículo 18 -. Fotocopiado, multicopiado e impresión.
A23: Artículo 19 -. Publicidad distrital.
A24: Artículo 20 -. Cajas menores.
A25: Artículo 21 -. Mantenimiento o reparación de bienes inmuebles o muebles.
A26: Artículo 22 -. Suscripciones.
A27: Artículo 23 -. Servicios públicos.

Sheet 0104-01 SECRETARÍA GENERAL
A1: 8502
A2: Entidad
A3: Valores en Pesos Corrientes
A4: CONCEPTO (Decreto 062 de 2024) | B4: Posiciones Presupuestales Asociadas (Funcionamiento e Inversión) | C4: LÍNEA BASE | F4: PLAN DE AUSTERIDAD EN EL GASTO 2025-2027 | K4: SEGUIMIENTO RESULTADOS PLAN DE AUSTERIDAD 2025-2027
F5: ESTRATEGIAS 2025-2027 | G5: ACCIONES 2025-2027 | H5: META INDICADOR DE AUSTERIDAD
C6: AÑO 2023 | D6: AÑO 2024 | K6: AÑO 2025 | M6: AÑO 2026 | O6: AÑO 2027
C7: Valor EJECUTADO a 31/12/2023 | D7: Valor EJECUTADO a 31/12/2024 | E7: Resultado Indicador Austeridad | H7: AÑO 2025 | I7: AÑO 2026 | J7: AÑO 2027 | K7: Valor EJECUTADO a 31/12/2025 | L7: Resultado Indicador Austeridad | M7: Valor EJECUTADO a 31/12/2026 | N7: Resultado Indicador Austeridad | O7: Valor EJECUTADO a 31/12/2027 | P7: Resultado Indicador Austeridad
A8: Servicios de personal
A9: Artículo 6°.- Reducción del gasto en CPS profesionales y de apoyo a la gestión. | B9: N.A. Se registran totales. Corresponde con lo reportado en SIDEAP y SIVICOF | E9: =1-(D9/C9) ->  | L9: =1-(K9/D9) ->  | N9: =1-(M9/K9) ->  | P9: =1-(O9/M9) -> 
A10: Artículo 7°.- Horas extras, dominicales y festivos. | L10: =1-(K10/D10) ->  | N10: =1-(M10/K10) -> 
A11: Artículo 8°.- Viáticos y gastos de viaje.
A12: Artículo 9°.- Compensación por vacaciones.
A13: Artículo 10°.- Bono navideño.
A14: Artículo 11 -. Capacitación.
A15: Artículo 12 -. Bienestar.
A16: Artículo 13 -. Eventos y conmemoraciones.
A17: Artículo 14 -. Fondos educativos.
A18: Servicios Administrativos
A19: Artículo 15. Telefonía. | E19: =1-(D19/C19) -> 
A20: Artículo 16 -. Vehículos oficiales.
A21: Artículo 17 -. Adquisición de vehículos y maquinaria.
A22: Artículo 18 -. Fotocopiado, multicopiado e impresión.
A23: Artículo 19 -. Publicidad distrital.
A24: Artículo 20 -. Cajas menores.
A25: Artículo 21 -. Mantenimiento o reparación de bienes inmuebles o muebles.
A26: Artículo 22 -. Suscripciones.
A27: Artículo 23 -. Servicios públicos.

Sheet 0105-01 VEEDURIA
A1: PLAN DE AUSTERIDAD EN EL GASTO 2025-2027
A2: Entidad
A3: Valores en Pesos Corrientes
A4: CONCEPTO (Decreto 062 de 2024) | B4: Posiciones Presupuestales Asociadas (Funcionamiento e Inversión) | C4: LÍNEA BASE | F4: PLAN DE AUSTERIDAD EN EL GASTO 2025-2027 | K4: SEGUIMIENTO RESULTADOS PLAN DE AUSTERIDAD 2025-2027
F5: ESTRATEGIAS 2025-2027 | G5: ACCIONES 2025-2027 | H5: META INDICADOR DE AUSTERIDAD
C6: AÑO 2023 | D6: AÑO 2024 | K6: AÑO 2025 | M6: AÑO 2026 | O6: AÑO 2027
C7: Valor EJECUTADO a 31/12/2023 | D7: Valor EJECUTADO a 31/12/2024 | E7: Resultado Indicador Austeridad | H7: AÑO 2025 | I7: AÑO 2026 | J7: AÑO 2027 | K7: Valor EJECUTADO a 31/12/2025 | L7: Resultado Indicador Austeridad | M7: Valor EJECUTADO a 31/12/2026 | N7: Resultado Indicador Austeridad | O7: Valor EJECUTADO a 31/12/2027 | P7: Resultado Indicador Austeridad
A8: Servicios de personal
A9: Artículo 6°.- Reducción del gasto en CPS profesionales y de apoyo a la gestión. | B9: N.A. Se registran totales. Corresponde con lo reportado en SIDEAP y SIVICOF | E9: =1-(D9/C9) ->  | L9: =1-(K9/D9) ->  | N9: =1-(M9/K9) ->  | P9: =1-(O9/M9) -> 
A10: Artículo 7°.- Horas extras, dominicales y festivos. | L10: =1-(K10/D10) ->  | N10: =1-(M10/K10) -> 
A11: Artículo 8°.- Viáticos y gastos de viaje.
A12: Artículo 9°.- Compensación por vacaciones.
A13: Artículo 10°.- Bono navideño.
A14: Artículo 11 -. Capacitación.
A15: Artículo 12 -. Bienestar.
A16: Artículo 13 -. Eventos y conmemoraciones.
A17: Artículo 14 -. Fondos educativos.
A18: Servicios Administrativos
A19: Artículo 15. Telefonía. | E19: =1-(D19/C19) -> 
A20: Artículo 16 -. Vehículos oficiales.
A21: Artículo 17 -. Adquisición de vehículos y maquinaria.
A22: Artículo 18 -. Fotocopiado, multicopiado e impresión.
A23: Artículo 19 -. Publicidad distrital.
A24: Artículo 20 -. Cajas menores.
A25: Artículo 21 -. Mantenimiento o reparación de bienes inmuebles o muebles.
A26: Artículo 22 -. Suscripciones.
A27: Artículo 23 -. Servicios públicos.

Sheet 0110-01 SDG
A1: PLAN DE AUSTERIDAD EN EL GASTO 2025-2027
A2: Entidad
A3: Valores en Pesos Corrientes
A4: CONCEPTO (Decreto 062 de 2024) | B4: Posiciones Presupuestales Asociadas (Funcionamiento e Inversión) | C4: LÍNEA BASE | F4: PLAN DE AUSTERIDAD EN EL GASTO 2025-2027 | K4: SEGUIMIENTO RESULTADOS PLAN DE AUSTERIDAD 2025-2027
F5: ESTRATEGIAS 2025-2027 | G5: ACCIONES 2025-2027 | H5: META INDICADOR DE AUSTERIDAD
C6: AÑO 2023 | D6: AÑO 2024 | K6: AÑO 2025 | M6: AÑO 2026 | O6: AÑO 2027
C7: Valor EJECUTADO a 31/12/2023 | D7: Valor EJECUTADO a 31/12/2024 | E7: Resultado Indicador Austeridad | H7: AÑO 2025 | I7: AÑO 2026 | J7: AÑO 2027 | K7: Valor EJECUTADO a 31/12/2025 | L7: Resultado Indicador Austeridad | M7: Valor EJECUTADO a 31/12/2026 | N7: Resultado Indicador Austeridad | O7: Valor EJECUTADO a 31/12/2027 | P7: Resultado Indicador Austeridad
A8: Servicios de personal
A9: Artículo 6°.- Reducción del gasto en CPS profesionales y de apoyo a la gestión. | B9: N.A. Se registran totales. Corresponde con lo reportado en SIDEAP y SIVICOF | E9: =1-(D9/C9) ->  | L9: =1-(K9/D9) ->  | N9: =1-(M9/K9) ->  | P9: =1-(O9/M9) -> 
A10: Artículo 7°.- Horas extras, dominicales y festivos. | L10: =1-(K10/D10) ->  | N10: =1-(M10/K10) -> 
A11: Artículo 8°.- Viáticos y gastos de viaje.
A12: Artículo 9°.- Compensación por vacaciones.
A13: Artículo 10°.- Bono navideño.
A14: Artículo 11 -. Capacitación.
A15: Artículo 12 -. Bienestar.
A16: Artículo 13 -. Eventos y conmemoraciones.
A17: Artículo 14 -. Fondos educativos.
A18: Servicios Administrativos
A19: Artículo 15. Telefonía. | E19: =1-(D19/C19) -> 
A20: Artículo 16 -. Vehículos oficiales.
A21: Artículo 17 -. Adquisición de vehículos y maquinaria.
A22: Artículo 18 -. Fotocopiado, multicopiado e impresión.
A23: Artículo 19 -. Publicidad distrital.
A24: Artículo 20 -. Cajas menores.
A25: Artículo 21 -. Mantenimiento o reparación de bienes inmuebles o muebles.
A26: Artículo 22 -. Suscripciones.
A27: Artículo 23 -. Servicios públicos.

Sheet 0111-03 SDH
A1: PLAN DE AUSTERIDAD EN EL GASTO 2025-2027
A2: Entidad
A3: Valores en Pesos Corrientes
A4: CONCEPTO (Decreto 062 de 2024) | B4: Posiciones Presupuestales Asociadas (Funcionamiento e Inversión) | C4: LÍNEA BASE | F4: PLAN DE AUSTERIDAD EN EL GASTO 2025-2027 | K4: SEGUIMIENTO RESULTADOS PLAN DE AUSTERIDAD 2025-2027
F5: ESTRATEGIAS 2025-2027 | G5: ACCIONES 2025-2027 | H5: META INDICADOR DE AUSTERIDAD
C6: AÑO 2023 | D6: AÑO 2024 | K6: AÑO 2025 | M6: AÑO 2026 | O6: AÑO 2027
C7: Valor EJECUTADO a 31/12/2023 | D7: Valor EJECUTADO a 31/12/2024 | E7: Resultado Indicador Austeridad | H7: AÑO 2025 | I7: AÑO 2026 | J7: AÑO 2027 | K7: Valor EJECUTADO a 31/12/2025 | L7: Resultado Indicador Austeridad | M7: Valor EJECUTADO a 31/12/2026 | N7: Resultado Indicador Austeridad | O7: Valor EJECUTADO a 31/12/2027 | P7: Resultado Indicador Austeridad
A8: Servicios de personal
A9: Artículo 6°.- Reducción del gasto en CPS profesionales y de apoyo a la gestión. | B9: N.A. Se registran totales. Corresponde con lo reportado en SIDEAP y SIVICOF | E9: =1-(D9/C9) ->  | L9: =1-(K9/D9) ->  | N9: =1-(M9/K9) ->  | P9: =1-(O9/M9) -> 
A10: Artículo 7°.- Horas extras, dominicales y festivos. | L10: =1-(K10/D10) ->  | N10: =1-(M10/K10) -> 
A11: Artículo 8°.- Viáticos y gastos de viaje.
A12: Artículo 9°.- Compensación por vacaciones.
A13: Artículo 10°.- Bono navideño.
A14: Artículo 11 -. Capacitación.
A15: Artículo 12 -. Bienestar.
A16: Artículo 13 -. Eventos y conmemoraciones.
A17: Artículo 14 -. Fondos educativos.
A18: Servicios Administrativos
A19: Artículo 15. Telefonía. | E19: =1-(D19/C19) -> 
A20: Artículo 16 -. Vehículos oficiales.
A21: Artículo 17 -. Adquisición de vehículos y maquinaria.
A22: Artículo 18 -. Fotocopiado, multicopiado e impresión.
A23: Artículo 19 -. Publicidad distrital.
A24: Artículo 20 -. Cajas menores.
A25: Artículo 21 -. Mantenimiento o reparación de bienes inmuebles o muebles.
A26: Artículo 22 -. Suscripciones.
A27: Artículo 23 -. Servicios públicos.

Sheet 0111-01 SDH
A1: PLAN DE AUSTERIDAD EN EL GASTO 2025-2027
A2: Entidad
A3: Valores en Pesos Corrientes
A4: CONCEPTO (Decreto 062 de 2024) | B4: Posiciones Presupuestales Asociadas (Funcionamiento e Inversión) | C4: LÍNEA BASE | F4: PLAN DE AUSTERIDAD EN EL GASTO 2025-2027 | K4: SEGUIMIENTO RESULTADOS PLAN DE AUSTERIDAD 2025-2027
F5: ESTRATEGIAS 2025-2027 | G5: ACCIONES 2025-2027 | H5: META INDICADOR DE AUSTERIDAD
C6: AÑO 2023 | D6: AÑO 2024 | K6: AÑO 2025 | M6: AÑO 2026 | O6: AÑO 2027
C7: Valor EJECUTADO a 31/12/2023 | D7: Valor EJECUTADO a 31/12/2024 | E7: Resultado Indicador Austeridad | H7: AÑO 2025 | I7: AÑO 2026 | J7: AÑO 2027 | K7: Valor EJECUTADO a 31/12/2025 | L7: Resultado Indicador Austeridad | M7: Valor EJECUTADO a 31/12/2026 | N7: Resultado Indicador Austeridad | O7: Valor EJECUTADO a 31/12/2027 | P7: Resultado Indicador Austeridad
A8: Servicios de personal
A9: Artículo 6°.- Reducción del gasto en CPS profesionales y de apoyo a la gestión. | B9: N.A. Se registran totales. Corresponde con lo reportado en SIDEAP y SIVICOF | E9: =1-(D9/C9) ->  | L9: =1-(K9/D9) ->  | N9: =1-(M9/K9) ->  | P9: =1-(O9/M9) -> 
A10: Artículo 7°.- Horas extras, dominicales y festivos. | L10: =1-(K10/D10) ->  | N10: =1-(M10/K10) -> 
A11: Artículo 8°.- Viáticos y gastos de viaje.
A12: Artículo 9°.- Compensación por vacaciones.
A13: Artículo 10°.- Bono navideño.
A14: Artículo 11 -. Capacitación.
A15: Artículo 12 -. Bienestar.
A16: Artículo 13 -. Eventos y conmemoraciones.
A17: Artículo 14 -. Fondos educativos.
A18: Servicios Administrativos
A19: Artículo 15. Telefonía. | E19: =1-(D19/C19) -> 
A20: Artículo 16 -. Vehículos oficiales.
A21: Artículo 17 -. Adquisición de vehículos y maquinaria.
A22: Artículo 18 -. Fotocopiado, multicopiado e impresión.
A23: Artículo 19 -. Publicidad distrital.
A24: Artículo 20 -. Cajas menores.
A25: Artículo 21 -. Mantenimiento o reparación de bienes inmuebles o muebles.
A26: Artículo 22 -. Suscripciones.
A27: Artículo 23 -. Servicios públicos.

Sheet 0111-02 SDH
A1: PLAN DE AUSTERIDAD EN EL GASTO 2025-2027
A2: Entidad
A3: Valores en Pesos Corrientes
A4: CONCEPTO (Decreto 062 de 2024) | B4: Posiciones Presupuestales Asociadas (Funcionamiento e Inversión) | C4: LÍNEA BASE | F4: PLAN DE AUSTERIDAD EN EL GASTO 2025-2027 | K4: SEGUIMIENTO RESULTADOS PLAN DE AUSTERIDAD 2025-2027
F5: ESTRATEGIAS 2025-2027 | G5: ACCIONES 2025-2027 | H5: META INDICADOR DE AUSTERIDAD
C6: AÑO 2023 | D6: AÑO 2024 | K6: AÑO 2025 | M6: AÑO 2026 | O6: AÑO 2027
C7: Valor EJECUTADO a 31/12/2023 | D7: Valor EJECUTADO a 31/12/2024 | E7: Resultado Indicador Austeridad | H7: AÑO 2025 | I7: AÑO 2026 | J7: AÑO 2027 | K7: Valor EJECUTADO a 31/12/2025 | L7: Resultado Indicador Austeridad | M7: Valor EJECUTADO a 31/12/2026 | N7: Resultado Indicador Austeridad | O7: Valor EJECUTADO a 31/12/2027 | P7: Resultado Indicador Austeridad
A8: Servicios de personal
A9: Artículo 6°.- Reducción del gasto en CPS profesionales y de apoyo a la gestión. | B9: N.A. Se registran totales. Corresponde con lo reportado en SIDEAP y SIVICOF | E9: =1-(D9/C9) ->  | L9: =1-(K9/D9) ->  | N9: =1-(M9/K9) ->  | P9: =1-(O9/M9) -> 
A10: Artículo 7°.- Horas extras, dominicales y festivos. | L10: =1-(K10/D10) ->  | N10: =1-(M10/K10) -> 
A11: Artículo 8°.- Viáticos y gastos de viaje.
A12: Artículo 9°.- Compensación por vacaciones.
A13: Artículo 10°.- Bono navideño.
A14: Artículo 11 -. Capacitación.
A15: Artículo 12 -. Bienestar.
A16: Artículo 13 -. Eventos y conmemoraciones.
A17: Artículo 14 -. Fondos educativos.
A18: Servicios Administrativos
A19: Artículo 15. Telefonía. | E19: =1-(D19/C19) -> 
A20: Artículo 16 -. Vehículos oficiales.
A21: Artículo 17 -. Adquisición de vehículos y maquinaria.
A22: Artículo 18 -. Fotocopiado, multicopiado e impresión.
A23: Artículo 19 -. Publicidad distrital.
A24: Artículo 20 -. Cajas menores.
A25: Artículo 21 -. Mantenimiento o reparación de bienes inmuebles o muebles.
A26: Artículo 22 -. Suscripciones.
A27: Artículo 23 -. Servicios públicos.

Sheet 0111-04 SDH
A1: PLAN DE AUSTERIDAD EN EL GASTO 2025-2027
A2: Entidad
A3: Valores en Pesos Corrientes
A4: CONCEPTO (Decreto 062 de 2024) | B4: Posiciones Presupuestales Asociadas (Funcionamiento e Inversión) | C4: LÍNEA BASE | F4: PLAN DE AUSTERIDAD EN EL GASTO 2025-2027 | K4: SEGUIMIENTO RESULTADOS PLAN DE AUSTERIDAD 2025-2027
F5: ESTRATEGIAS 2025-2027 | G5: ACCIONES 2025-2027 | H5: META INDICADOR DE AUSTERIDAD
C6: AÑO 2023 | D6: AÑO 2024 | K6: AÑO 2025 | M6: AÑO 2026 | O6: AÑO 2027
C7: Valor EJECUTADO a 31/12/2023 | D7: Valor EJECUTADO a 31/12/2024 | E7: Resultado Indicador Austeridad | H7: AÑO 2025 | I7: AÑO 2026 | J7: AÑO 2027 | K7: Valor EJECUTADO a 31/12/2025 | L7: Resultado Indicador Austeridad | M7: Valor EJECUTADO a 31/12/2026 | N7: Resultado Indicador Austeridad | O7: Valor EJECUTADO a 31/12/2027 | P7: Resultado Indicador Austeridad
A8: Servicios de personal
A9: Artículo 6°.- Reducción del gasto en CPS profesionales y de apoyo a la gestión. | B9: N.A. Se registran totales. Corresponde con lo reportado en SIDEAP y SIVICOF | E9: =1-(D9/C9) ->  | L9: =1-(K9/D9) ->  | N9: =1-(M9/K9) ->  | P9: =1-(O9/M9) -> 
A10: Artículo 7°.- Horas extras, dominicales y festivos. | L10: =1-(K10/D10) ->  | N10: =1-(M10/K10) -> 
A11: Artículo 8°.- Viáticos y gastos de viaje.
A12: Artículo 9°.- Compensación por vacaciones.
A13: Artículo 10°.- Bono navideño.
A14: Artículo 11 -. Capacitación.
A15: Artículo 12 -. Bienestar.
A16: Artículo 13 -. Eventos y conmemoraciones.
A17: Artículo 14 -. Fondos educativos.
A18: Servicios Administrativos
A19: Artículo 15. Telefonía. | E19: =1-(D19/C19) -> 
A20: Artículo 16 -. Vehículos oficiales.
A21: Artículo 17 -. Adquisición de vehículos y maquinaria.
A22: Artículo 18 -. Fotocopiado, multicopiado e impresión.
A23: Artículo 19 -. Publicidad distrital.
A24: Artículo 20 -. Cajas menores.
A25: Artículo 21 -. Mantenimiento o reparación de bienes inmuebles o muebles.
A26: Artículo 22 -. Suscripciones.
A27: Artículo 23 -. Servicios públicos.

Sheet 0112-01 SDE
A1: PLAN DE AUSTERIDAD EN EL GASTO 2025-2027
A2: Entidad
A3: Valores en Pesos Corrientes
A4: CONCEPTO (Decreto 062 de 2024) | B4: Posiciones Presupuestales Asociadas (Funcionamiento e Inversión) | C4: LÍNEA BASE | F4: PLAN DE AUSTERIDAD EN EL GASTO 2025-2027 | K4: SEGUIMIENTO RESULTADOS PLAN DE AUSTERIDAD 2025-2027
F5: ESTRATEGIAS 2025-2027 | G5: ACCIONES 2025-2027 | H5: META INDICADOR DE AUSTERIDAD
C6: AÑO 2023 | D6: AÑO 2024 | K6: AÑO 2025 | M6: AÑO 2026 | O6: AÑO 2027
C7: Valor EJECUTADO a 31/12/2023 | D7: Valor EJECUTADO a 31/12/2024 | E7: Resultado Indicador Austeridad | H7: AÑO 2025 | I7: AÑO 2026 | J7: AÑO 2027 | K7: Valor EJECUTADO a 31/12/2025 | L7: Resultado Indicador Austeridad | M7: Valor EJECUTADO a 31/12/2026 | N7: Resultado Indicador Austeridad | O7: Valor EJECUTADO a 31/12/2027 | P7: Resultado Indicador Austeridad
A8: Servicios de personal
A9: Artículo 6°.- Reducción del gasto en CPS profesionales y de apoyo a la gestión. | B9: N.A. Se registran totales. Corresponde con lo reportado en SIDEAP y SIVICOF | E9: =1-(D9/C9) ->  | L9: =1-(K9/D9) ->  | N9: =1-(M9/K9) ->  | P9: =1-(O9/M9) -> 
A10: Artículo 7°.- Horas extras, dominicales y festivos. | L10: =1-(K10/D10) ->  | N10: =1-(M10/K10) -> 
A11: Artículo 8°.- Viáticos y gastos de viaje.
A12: Artículo 9°.- Compensación por vacaciones.
A13: Artículo 10°.- Bono navideño.
A14: Artículo 11 -. Capacitación.
A15: Artículo 12 -. Bienestar.
A16: Artículo 13 -. Eventos y conmemoraciones.
A17: Artículo 14 -. Fondos educativos.
A18: Servicios Administrativos
A19: Artículo 15. Telefonía. | E19: =1-(D19/C19) -> 
A20: Artículo 16 -. Vehículos oficiales.
A21: Artículo 17 -. Adquisición de vehículos y maquinaria.
A22: Artículo 18 -. Fotocopiado, multicopiado e impresión.
A23: Artículo 19 -. Publicidad distrital.
A24: Artículo 20 -. Cajas menores.
A25: Artículo 21 -. Mantenimiento o reparación de bienes inmuebles o muebles.
A26: Artículo 22 -. Suscripciones.
A27: Artículo 23 -. Servicios públicos.

Sheet 0113-01 SDM
A1: PLAN DE AUSTERIDAD EN EL GASTO 2025-2027
A2: Entidad | B2: SECRETARIA DISTRITAL DE MOVILIDAD
A3: Valores en Pesos Corrientes
A4: CONCEPTO (Decreto 062 de 2024) | B4: Posiciones Presupuestales Asociadas (Funcionamiento e Inversión) | C4: LÍNEA BASE | F4: PLAN DE AUSTERIDAD EN EL GASTO 2025-2027 | K4: SEGUIMIENTO RESULTADOS PLAN DE AUSTERIDAD 2025-2027
F5: ESTRATEGIAS 2025-2027 | G5: ACCIONES 2025-2027 | H5: META INDICADOR DE AUSTERIDAD
C6: AÑO 2023 | D6: AÑO 2024 | K6: AÑO 2025 | M6: AÑO 2026 | O6: AÑO 2027
C7: Valor EJECUTADO a 31/12/2023 | D7: Valor EJECUTADO a 31/12/2024 | E7: Resultado Indicador Austeridad | H7: AÑO 2025 | I7: AÑO 2026 | J7: AÑO 2027 | K7: Valor EJECUTADO a 31/12/2025 | L7: Resultado Indicador Austeridad | M7: Valor EJECUTADO a 31/12/2026 | N7: Resultado Indicador Austeridad | O7: Valor EJECUTADO a 31/12/2027 | P7: Resultado Indicador Austeridad
A8: Servicios de personal
A9: Artículo 6°.- Reducción del gasto en CPS profesionales y de apoyo a la gestión. | B9: "O232020200883159 - Otros servicios de alojamiento y suministro de infraestructura en tecnología de la información (TI) O23202020088731001 - Servicio de instalación de productos metálicos estructurales y sus partes O232020200883129 - Otros servicios de consultoría empresarial O232020200664114 - Servicios de transporte terrestre especial local de pasajeros O232020200997990 - Otros servicios diversos n.c.p." Se registran totales. Corresponde con lo reportado en SIDEAP y SIVICOF | C9: 23670828445 | D9: 24685895310 | E9: =1-(D9/C9) -> -0.04288260833 | F9: "En la vigencia 2025 aumentarán los CPS por mayores controles y gestión en vía, conforme a las metas del PDD. Para 2026 y 2027, se espera realizar racionalización gradual de los recursos asignados para la contratación de prestación de servicios profesionales y de apoyo a la gestión, a través de la optimización de actividades y procesos al interior de las áreas, especialmente de aquellas que solicitan la mayor catidad de contratación bajo esta modalidad, ." | G9: 1. Revisar que cada solicitud de contratación de esta modalidad llegue debidamente justificada de acuerdo con la normatividad vigente. 2. Dentro de la planeación se incluirán y adoptarán todas las medidas de optimización de actividades, procesos y recursos necesarios para que la cantidad de contratos de prestación de servicios profesionales y de apoyo a la gestión sean los estrictamente necesarios para cumplir con los objetivos de cada áreas de la entidad. | H9: 0.052 | I9: 0.03 | J9: 0.03 | L9: =1-(K9/D9) -> 1 | N9: =1-(M9/K9) ->  | P9: =1-(O9/M9) -> 
A10: Artículo 7°.- Horas extras, dominicales y festivos. | B10: O211010100102 | C10: 1919960524 | D10: 4060839813 | E10: -1.115064223 | F10: No se tomó este concepto de gasto como elegible, teniendo en cuenta que para la vigencia 2025 se efectuará una ampliación de planta de agentes civiles de tránsito, los cuales tienen por necesidades del servicio y la actividad propia del cargo derecho al pago de horas extras, dominicales, festivos y recargos . | G10: 1. La autorización de horas extras se continuara reconociendo para atender asuntos del servicio reales e imprescindibles | H10: 0.0323 | I10: 0.03 | J10: 0.03 | L10: =1-(K10/D10) -> 1 | N10: =1-(M10/K10) -> 
A11: Artículo 8°.- Viáticos y gastos de viaje. | B11: O2120202010 | C11: 10396578 | D11: 3677172 | E11: 0.6463093914 | F11: Para este concepto no se tomó como gasto elegible, pero se seguirán implementando estrategías que permitan la disminusión del gasto en pago de viáticos | G11: 1. Priorizar la participación en eventos nacionales e internacionales de forma virtual, en atención al Decreto 062 del 2024. 2. Se continuará implementando la estrategía para que las autorizaciones de comisiones sean las que cuentan con financiación del organizador al 100%. | H11: 0.0323 | I11: 0.03 | J11: 0.03 | L11: 1
A12: Artículo 9°.- Compensación por vacaciones. | B12: O211010300102 | C12: 383787175 | D12: 1150460018 | E12: -1.997651024 | F12: Las vacaciones no quedaron como un gasto elegible; sin embargo, se continuarán implementando estrategías que contribuyan al disfrute de las vacaciones a las que tiene derecho los funcionarios de la entidad. | G12: 1. Expedir circular de programación y disfrute de vacaciones a los directivos de la entidad, con el fin de que programen las vacaciones de los funcionarios a su cargo y así evitar la acumulación de vacaciones. 2. Expedir memorando dirigido a los jefes de la dependencias para que los funcionarios a su cargo, toman los periodo de vacaciones acumulados. 4. Solo se continuará reconocienndo en dinero las vacaciones causadas y no disfrutadas en caso de retiro definitivo del servidor público. | H12: 0.0323 | I12: 0.03 | J12: 0.03 | L12: 1
A13: Artículo 10°.- Bono navideño. | B13: O21202020090696511 | C13: 0 | D13: 0 | F13: El bono navideño no se relacionó como un gasto elegible, dentro del plan de asuteridad 2025, pero se continuarán implementado acciones para racionalizar los recursos por este concepto. | G13: 1. Los bonos navideños, continuaran siendo entregados a los hijos de los funcionarios que sean menores de 13 años y no se superará el valor de seis (6) salarios mínimos diarios legales vigentes. Este beneficio se podrá extender unicamente a los hijos mayores de 13 años y menores de 18 años que se encuentren en condición de discapacidad y que adicionalmente, dependan económicamente de sus padres, siempre que se cuente con los recursos presupuestales para tal efecto. | H13: 0.0323 | I13: 0.03 | J13: 0.03
A14: Artículo 11 -. Capacitación. | B14: O21202020090292511 | C14: 386759909 | D14: 265229267 | E14: 0.3142276104 | F14: A pesar de no establecerse como un gasto elegible, se fortalcerán las alianzas interinstitucionales y administrativas a nivel Distrito, con el fin de optimizar recursos en las actividades del plan de capacitación institucional. | G14: 1. Dentro de las actividades establecidas en el PIC institucional, se propendrá por adelantar las capacitaciones en coordinación administrativa con el Departameto Administrativo del Servicio Civil Distrital, con el fin de disminuir el gasto en capacitación sin disminuir el fortalecimiento en las actividades de capacitación para los funcionarios. 2. Se propendrá por realizar las capacitaciones de forma virtual, disminuyendo los gastos relacionados con desplazamiento, uso de aulas y refrigerios para espacios de capacitación. 3. En atención a las especialidades de las entidades del Distrito, se propendrá por realizar alianzas administrativas que permitan realizar capacitaciones a los funcionarios sin dismunuir el impacto y disminuyendo el gasto. | H14: 0.0323 | I14: 0.03 | J14: 0.03 | L14: 1
A15: Artículo 12 -. Bienestar. | B15: O21202020090696511 | C15: 247228000 | D15: 435909000 | E15: -0.7631862087 | F15: Se eligió este concepto de gasto principalmente fortalceciendo las alianzas interinstitucionales y administrativas a nivel Distrito, con el fin de optimizar recursos en las actividades del plan de bienestar institucional dando como resultado un ahorro. | G15: 1 Abstenernos de efectuar conmemoraciones del día de la secretaría y día del conductor, ya que las mismas son reconocidas por el Departamento Administrativo del Servicio Civl Distrital - DASCD a nivel distrital 2. Realizar eventos deportivos y recreativos, mediante alianzas administrativas con el apoyo de la caja de compensación de la entidad. 3. Generar actividades de bienestar institucional por autogestión con la logistica del personal de la Dirección de Talento Humano. | H15: -0.01 | I15: -0.01 | J15: -0.01 | L15: 1
A16: Artículo 13 -. Eventos y conmemoraciones. | B16: O21202020090696511 | C16: 0 | D16: 0 | F16: Aunque no se haya tomado como un gasto elegible, todo evento que se realice debe cumplir con los criterios de sencillez, moderación y austeridad. | G16: 1.Todo evento que se realice debe cumplir con los criterios de sencillez, moderación y austeridad. | H16: 0.0323 | I16: 0.03 | J16: 0.03
A17: Artículo 14 -. Fondos educativos. | B17: O21202020090292511 | C17: 136759909 | D17: 0 | E17: 1 | F17: No se toma como gasto elegible, pero se realizará la implementación e incentivo del FRADEC | G17: 1. Se realizarán piezas comunicativas que incentiven la oferta distrital en el Fondo Educativo en Administración de Recursos para Capacitación Educativa de los Empleados Públicos del Distrito Capital - FRADEC y el Fondo Educativo del Distrito para hijos de empleados - FEDHE, para optimizar los recursos y evitar duplicar esfuerzos y recursos financieros e institucionales destinados a este fin. | H17: 0 | I17: 0 | J17: 0
A18: Servicios Administrativos
A19: Artículo 15. Telefonía. | B19: O21202020080484120 O21202020080484131 | C19: 458176500 | D19: 368680627 | E19: =1-(D19/C19) -> 0.1953305615 | F19: La telefonía no se toma como un gasto elegible, pero a pesar de ellos se continuará con la revisión de las líneas telefónicas fijas y móviles, con el fin de determinar si son indispensables para la prestación del servicio de la entidad | G19: 1. Abstenerse de adquiri o renovar o adqúirir teléfonos celulares y planes de telefonía móvil que no sean indispensables. 2. Priorizar el uso y fomentar la cultura de medios de comunicación como el correo institucional, el chat del correo, videollamadas por meet, para la comunicación interna de los colaboradores de la entidad. | H19: 0.0323 | I19: 0.03 | J19: 0.03 | L19: 1
A20: Artículo 16 -. Vehículos oficiales. | B20: O2120201003033331101 O2120201003033336103 | C20: 68301908 | D20: 97250000 | E20: -0.4238255248 | F20: Sin ser un gasto elegible para esta vigencia, se seguirá llevando un control eficiente y efectivo del suministro de combustible a los vehículos de propiedad de la SDM, destinados a realizar actividades administrativas y logísticas, así como también a los vehículos y motocicletas entregadas en comodato a las Policia Metropolitana de Bogotá-Seccional Transito y Transporte de Bogotá por la SDM. | G20: 1. Se determinó un tope máximo de galones de combustible para el suministro diario y semanal a cada uno de los vehículos de uso administrativo. 2. Instalación de un CHIP a cada uno de los vehículos oficiales de uso administrativo como mecanismo de control. | H20: 0.0323 | I20: 0.03 | J20: 0.03 | L20: 1
A21: Artículo 17 -. Adquisición de vehículos y maquinaria. | B21: N.A | C21: 0 | D21: 0 | F21: No se tiene programado para el periodo 2025-2027 la adquisición de vehículos en la entidad desde funcionamiento | G21: No se tiene programado para el periodo 2025-2027 la adquisición de vehículos en la entidad. | H21: 0 | I21: 0 | J21: 0
A22: Artículo 18 -. Fotocopiado, multicopiado e impresión. | B22: O2120201003023212901 | C22: 7470000 | D22: 5000000 | E22: 0.3306559572 | F22: Se toma como gasto elegible la papelería, con la permanentemente la socialización de las buenas prácticas para el uso del papel | G22: 1. Realizar campaña de sensibilización en la entidad, sobre el uso eficiente de papel 2. Impulsar la Política de “Cero Papel”, para que se priorice el uso de medios electrónicos en el envío de trámites y comunicaciones 3. Realizar entregas de papel para exclusivamente las actividades misionales y que estén debidamente justificadas 4. Se propone limitar la cuota de impresión por área o usuario con el objetivo de limitar la cantidad de impresiones. | H22: -0.01 | I22: -0.01 | J22: -0.01 | L22: 1
A23: Artículo 19 -. Publicidad distrital. | B23: N/A | C23: 0 | D23: 0 | F23: N/A | G23: N/A | H23: 0 | I23: 0 | J23: 0
A24: Artículo 20 -. Cajas menores. | B24: N/A | C24: 0 | D24: 0 | F24: N/A | G24: N/A | H24: 0 | I24: 0 | J24: 0
A25: Artículo 21 -. Mantenimiento o reparación de bienes inmuebles o muebles. | B25: O2120202005040754790 O23202020088731001 O232020200883129 | C25: 74769011 | D25: 72565000 | E25: 0.02947760002 | F25: Fortalecer el sentido de pertenencia entre los usuarios, empleados de las instalaciones de la secretaría, fomentando el cuidado y respeto por los espacios comunes y de trabajo.Se aplica ahorro del gasto correspondiente al Plan de Austeridad según Circular Externa No. SDH 000002 - 2025, en el mantenimiento y mejoramiento locativo de las instalaciones de la SDM, que formaba parte del Fortalecimiento Institucional. Por otro lado, se fortalecerá el sentido de pertenencia entre los usuarios, empleados de las instalaciones de la secretaría, fomentando el cuidado y respeto por los espacios comunes y de trabajo. | G25: 1. Lanzar campañas internas que refuercen la importancia del cuidado de los espacios. 2.Utilizar medios como carteles, mensajes en redes sociales o charlas informativas sobre cómo el buen mantenimiento contribuye a un entorno más agradable para todos. 3.Realizar una evaluación de los espacios e instalaciones para identificar áreas que requieran mantenimiento, reparaciones o mejoras. Este diagnóstico debe involucrar la participación activa de los usuarios para conocer sus necesidades y preocupaciones. | H25: 0.0323 | I25: 0.03 | J25: 0.03 | L25: 1
A26: Artículo 22 -. Suscripciones. | B26: N/A | C26: 0 | D26: 0 | F26: No aplica debido a que para el periodo 2025-2027 la entidad no tiene planeada contratación en lo que se relaciona con suscripción a periódicos y revistas, publicaciones y bases de datos. | G26: N.A | H26: 0 | I26: 0 | J26: 0
A27: Artículo 23 -. Servicios públicos. | B27: O21202020080686311 O21202020080686330 O21202020090494239 | C27: 1078359303 | D27: 1738734804 | E27: -0.6123891167 | F27: Como gasto elegible suceptible de ahorro, se mantendrá una permanentemente la socialización acerca del consumo eficiente de los servicios públicos domiciliarios (agua, y energìa) así como el aprovechamiento de los residuos, permitiendo la optimización de los recursos y reducción de gasto en un 1% para el periodo 2025-2027. | G27: 1. Divulgación de Campañas comunicativas de sensibilización para el consumo eficiente de Agua y Energía, para que todos los colaboradores de la SDM se comprometan con el Ahorro y el reporte de eventos que impliquen un mayor consumo. 2 Constante seguimiento a la facturación emitida por las empresas operadoras de los servicios públicos domiciliarios, verificando los consumos de cada una de las sedes de la entidad y generando alertas cuando se evidencien consumos elevados. 3. Efectuar la revisión y seguimiento constante de las instalaciones sanitarias, verificando que los sistemas ahorradores se encuentren en buen funcionamiento. 4. Mantener constante comunicación con las empresas operadoras de servicios de Energía , Acueducto y Aseo a fin de adelantar las recomendaciones para el uso eficiente de los recursos. | H27: -0.01 | I27: -0.01 | J27: -0.01 | L27: 1

Sheet 0113-02 SDM
A1: PLAN DE AUSTERIDAD EN EL GASTO 2025-2027
A2: Entidad | B2: SECRETARIA DISTRITAL DE MOVILIDAD
A3: Valores en Pesos Corrientes
A4: CONCEPTO (Decreto 062 de 2024) | B4: Posiciones Presupuestales Asociadas (Funcionamiento e Inversión) | C4: LÍNEA BASE | F4: PLAN DE AUSTERIDAD EN EL GASTO 2025-2027 | K4: SEGUIMIENTO RESULTADOS PLAN DE AUSTERIDAD 2025-2027
F5: ESTRATEGIAS 2025-2027 | G5: ACCIONES 2025-2027 | H5: META INDICADOR DE AUSTERIDAD
C6: AÑO 2023 | D6: AÑO 2024 | K6: AÑO 2025 | M6: AÑO 2026 | O6: AÑO 2027
C7: Valor EJECUTADO a 31/12/2023 | D7: Valor EJECUTADO a 31/12/2024 | E7: Resultado Indicador Austeridad | H7: AÑO 2025 | I7: AÑO 2026 | J7: AÑO 2027 | K7: Valor EJECUTADO a 31/12/2025 | L7: Resultado Indicador Austeridad | M7: Valor EJECUTADO a 31/12/2026 | N7: Resultado Indicador Austeridad | O7: Valor EJECUTADO a 31/12/2027 | P7: Resultado Indicador Austeridad
A8: Servicios de personal
A9: Artículo 6°.- Reducción del gasto en CPS profesionales y de apoyo a la gestión. | B9: O2320201003023262003 - Catálogos, folletos y otras impresiones publicitarias O232020200991119 - Otros servicios de la administración pública n.c.p. O23201010030807 - Otros equipos O232020200883111 - Servicios de consultoría en gestión estratégica O232020200883159 - Otros servicios de alojamiento y suministro de infraestructura en tecnología de la información (TI) O232020200884190 - Otros servicios de telecomunicaciones | C9: 94809244421 | D9: 101222778876 | E9: =1-(D9/C9) -> -0.06764672047 | F9: "En la vigencia 2025 aumentarán los CPS por mayores controles y gestión en vía, conforme a las metas del PDD. Para 2026 y 2027, se espera realizar racionalización gradual de los recursos asignados para la contratación de prestación de servicios profesionales y de apoyo a la gestión, a través de la optimización de actividades y procesos al interior de las áreas, especialmente de aquellas que solicitan la mayor catidad de contratación bajo esta modalidad, ." | G9: 1. Revisar que cada solicitud de contratación de esta modalidad llegue debidamente justificada de acuerdo con la normatividad vigente. 2. Dentro de la planeación se incluirán y adoptarán todas las medidas de optimización de actividades, procesos y recursos necesarios para que la cantidad de contratos de prestación de servicios profesionales y de apoyo a la gestión sean los estrictamente necesarios para cumplir con los objetivos de cada áreas de la entidad. | H9: 0.052 | I9: 0.03 | J9: 0.03 | L9: =1-(K9/D9) -> 1 | N9: =1-(M9/K9) ->  | P9: =1-(O9/M9) -> 
A10: Artículo 7°.- Horas extras, dominicales y festivos. | B10: N.A. | C10: 0 | D10: 0 | F10: Las estrategias de este concepto se determinan desde el presupuesto de funcionamiento, para la Unidad 2. Se precisa que en jun-25 ingresarán nuevos agentes de planta, por lo que es probable que el rubro aumente en valor superior al IPC proyectado | G10: Las acciones de este concepto se determinan desde el presupuesto de funcionamiento, para la Unidad 2. Se precisa que en jun-25 ingresarán nuevos agentes de planta, por lo que es probable que el rubro aumente en valor superior al IPC proyectado | H10: 0 | I10: 0 | J10: 0 | L10: =1-(K10/D10) ->  | N10: =1-(M10/K10) -> 
A11: Artículo 8°.- Viáticos y gastos de viaje. | B11: N.A. | C11: 0 | D11: 0 | F11: Las estrategias de este concepto se determinan desde el presupuesto de funcionamiento, para la Unidad 2. | G11: Las estrategias de este concepto se determinan desde el presupuesto de funcionamiento, para la Unidad 2. | H11: 0 | I11: 0 | J11: 0
A12: Artículo 9°.- Compensación por vacaciones. | B12: N.A. | C12: 0 | D12: 0 | F12: Las estrategias de este concepto se determinan desde el presupuesto de funcionamiento, para la Unidad 2. Se precisa que en jun-25 ingresarán nuevos agentes de planta, por lo que es probable que el rubro aumente en valor superior al IPC proyectado | G12: Las acciones de este concepto se determinan desde el presupuesto de funcionamiento, para la Unidad 2. Se precisa que en jun-25 ingresarán nuevos agentes de planta, por lo que es probable que el rubro aumente en valor superior al IPC proyectado | H12: 0 | I12: 0 | J12: 0
A13: Artículo 10°.- Bono navideño. | B13: N.A. | C13: 0 | D13: 0 | F13: Las estrategias de este concepto se determinan desde el presupuesto de funcionamiento, para la Unidad 2. Se precisa que en jun-25 ingresarán nuevos agentes de planta, por lo que es probable que el rubro aumente en valor superior al IPC proyectado | G13: Las acciones de este concepto se determinan desde el presupuesto de funcionamiento, para la Unidad 2. Se precisa que en jun-25 ingresarán nuevos agentes de planta, por lo que es probable que el rubro aumente en valor superior al IPC proyectado | H13: 0 | I13: 0 | J13: 0
A14: Artículo 11 -. Capacitación. | B14: N.A. | C14: 0 | D14: 0 | F14: Las estrategias de este concepto se determinan desde el presupuesto de funcionamiento, para la Unidad 2. Se precisa que en jun-25 ingresarán nuevos agentes de planta, por lo que es probable que el rubro aumente en valor superior al IPC proyectado | G14: Las acciones de este concepto se determinan desde el presupuesto de funcionamiento, para la Unidad 2. Se precisa que en jun-25 ingresarán nuevos agentes de planta, por lo que es probable que el rubro aumente en valor superior al IPC proyectado | H14: 0 | I14: 0 | J14: 0
A15: Artículo 12 -. Bienestar. | B15: N.A. | C15: 0 | D15: 0 | F15: Las estrategias de este concepto se determinan desde el presupuesto de funcionamiento, para la Unidad 2. Se precisa que en jun-25 ingresarán nuevos agentes de planta, por lo que es probable que el rubro aumente en valor superior al IPC proyectado | G15: Las acciones de este concepto se determinan desde el presupuesto de funcionamiento, para la Unidad 2. Se precisa que en jun-25 ingresarán nuevos agentes de planta, por lo que es probable que el rubro aumente en valor superior al IPC proyectado | H15: 0 | I15: 0 | J15: 0
A16: Artículo 13 -. Eventos y conmemoraciones. | B16: N.A. | C16: 0 | D16: 0 | F16: Las estrategias de este concepto se determinan desde el presupuesto de funcionamiento, para la Unidad 2. | G16: Las estrategias de este concepto se determinan desde el presupuesto de funcionamiento, para la Unidad 2. | H16: 0 | I16: 0 | J16: 0
A17: Artículo 14 -. Fondos educativos. | B17: N.A. | C17: 0 | D17: 0 | F17: Las estrategias de este concepto se determinan desde el presupuesto de funcionamiento, para la Unidad 2. | G17: Las estrategias de este concepto se determinan desde el presupuesto de funcionamiento, para la Unidad 2. | H17: 0 | I17: 0 | J17: 0
A18: Servicios Administrativos
A19: Artículo 15. Telefonía. | B19: N.A. | C19: 0 | D19: 0 | E19: =1-(D19/C19) ->  | F19: Las estrategias de este concepto se determinan desde el presupuesto de funcionamiento, para la Unidad 2. | G19: Las estrategias de este concepto se determinan desde el presupuesto de funcionamiento, para la Unidad 2. | H19: 0 | I19: 0 | J19: 0
A20: Artículo 16 -. Vehículos oficiales. | B20: N.A. | C20: 0 | D20: 0 | F20: Las estrategias de este concepto se determinan desde el presupuesto de funcionamiento, para la Unidad 2. | G20: Las estrategias de este concepto se determinan desde el presupuesto de funcionamiento, para la Unidad 2. | H20: 0 | I20: 0 | J20: 0
A21: Artículo 17 -. Adquisición de vehículos y maquinaria. | B21: N.A. | C21: 0 | D21: 0 | F21: Las estrategias de este concepto se determinan desde el presupuesto de funcionamiento, para la Unidad 2. | G21: Las estrategias de este concepto se determinan desde el presupuesto de funcionamiento, para la Unidad 2. | H21: 0 | I21: 0 | J21: 0
A22: Artículo 18 -. Fotocopiado, multicopiado e impresión. | B22: N.A. | C22: 0 | D22: 0 | F22: Las estrategias de este concepto se determinan desde el presupuesto de funcionamiento, para la Unidad 2. | G22: Las estrategias de este concepto se determinan desde el presupuesto de funcionamiento, para la Unidad 2. | H22: 0 | I22: 0 | J22: 0
A23: Artículo 19 -. Publicidad distrital. | B23: N.A. | C23: 0 | D23: 0 | F23: Las estrategias de este concepto se determinan desde el presupuesto de funcionamiento, para la Unidad 2. | G23: Las estrategias de este concepto se determinan desde el presupuesto de funcionamiento, para la Unidad 2. | H23: 0 | I23: 0 | J23: 0
A24: Artículo 20 -. Cajas menores. | B24: N.A. | C24: 0 | D24: 0 | F24: Las estrategias de este concepto se determinan desde el presupuesto de funcionamiento, para la Unidad 2. | G24: Las estrategias de este concepto se determinan desde el presupuesto de funcionamiento, para la Unidad 2. | H24: 0 | I24: 0 | J24: 0
A25: Artículo 21 -. Mantenimiento o reparación de bienes inmuebles o muebles. | B25: N.A. | C25: 0 | D25: 0 | F25: Las estrategias de este concepto se determinan desde el presupuesto de funcionamiento, para la Unidad 2. | G25: Las estrategias de este concepto se determinan desde el presupuesto de funcionamiento, para la Unidad 2. | H25: 0 | I25: 0 | J25: 0
A26: Artículo 22 -. Suscripciones. | B26: N.A. | C26: 0 | D26: 0 | F26: Las estrategias de este concepto se determinan desde el presupuesto de funcionamiento, para la Unidad 2. | G26: Las estrategias de este concepto se determinan desde el presupuesto de funcionamiento, para la Unidad 2. | H26: 0 | I26: 0 | J26: 0
A27: Artículo 23 -. Servicios públicos. | B27: N.A. | C27: 0 | D27: 0 | F27: Las estrategias de este concepto se determinan desde el presupuesto de funcionamiento, para la Unidad 2. | G27: Las estrategias de este concepto se determinan desde el presupuesto de funcionamiento, para la Unidad 2. | H27: 0 | I27: 0 | J27: 0

Sheet 0114-01 SDS
A1: PLAN DE AUSTERIDAD EN EL GASTO 2025-2027
A2: Entidad
A3: Valores en Pesos Corrientes
A4: CONCEPTO (Decreto 062 de 2024) | B4: Posiciones Presupuestales Asociadas (Funcionamiento e Inversión) | C4: LÍNEA BASE | F4: PLAN DE AUSTERIDAD EN EL GASTO 2025-2027 | K4: SEGUIMIENTO RESULTADOS PLAN DE AUSTERIDAD 2025-2027
F5: ESTRATEGIAS 2025-2027 | G5: ACCIONES 2025-2027 | H5: META INDICADOR DE AUSTERIDAD
C6: AÑO 2023 | D6: AÑO 2024 | K6: AÑO 2025 | M6: AÑO 2026 | O6: AÑO 2027
C7: Valor EJECUTADO a 31/12/2023 | D7: Valor EJECUTADO a 31/12/2024 | E7: Resultado Indicador Austeridad | H7: AÑO 2025 | I7: AÑO 2026 | J7: AÑO 2027 | K7: Valor EJECUTADO a 31/12/2025 | L7: Resultado Indicador Austeridad | M7: Valor EJECUTADO a 31/12/2026 | N7: Resultado Indicador Austeridad | O7: Valor EJECUTADO a 31/12/2027 | P7: Resultado Indicador Austeridad
A8: Servicios de personal
A9: Artículo 6°.- Reducción del gasto en CPS profesionales y de apoyo a la gestión. | B9: N.A. Se registran totales. Corresponde con lo reportado en SIDEAP y SIVICOF. Nota: Se registran los valores reportados en el formato CB-0014. | C9: 1237642597 | D9: 1031005425 | E9: =1-(D9/C9) -> 0.1669602941 | F9: Los contratos de prestación de servicios profesionales y de apoyo a la gestión se ajustará máximo con un incremento del IPC causado de cada vigencia. NOTA:Teniendo en cuenta que la reducción del 2023 frente al 2024 fue superior al 10% , se asume como linea base para el año 2024 solo una reducción del 10%, con el incremento máximo del IPC. | G9: Realizar seguimiento a la contratación de prestación de servicios profesionales de apoyo a la gestión para garantizar el cumplimiento de la estratégia. | H9: -0.052 | I9: -0.03 | J9: -0.03 | L9: =1-(K9/D9) -> 1 | N9: =1-(M9/K9) ->  | P9: =1-(O9/M9) -> 
A10: Artículo 7°.- Horas extras, dominicales y festivos. | B10: O211010100102 | C10: 943311205 | D10: 1431916611 | E10: -0.5179684111 | F10: Se realizará seguimiento trimestral en el Comité de Gestión y Desempeño para revisar el comportamiento de los topes autorizados frente a las horas extras. | G10: 1. Realizar seguimiento mensual al cause de horas extras por dependencias. 2.Presentar informe de monitoreo de horas extras por dependencias al Comité de Gestión y Desempeño | H10: 0.01 | I10: 0.01 | J10: 0.01 | L10: =1-(K10/D10) -> 1 | N10: =1-(M10/K10) -> 
A11: Artículo 8°.- Viáticos y gastos de viaje. | B11: O1202020060464241 O21202020060464119 O1202020060363311 O1202020060363220 | C11: 23738253 | D11: 3580671 | E11: 0.8491602984 | F11: Mantener los gastos de Viáticos y Gastos de Viaje en un máximo de $ 3.580.671 pesos al año. | G11: Solo se aprobaran gastos de viaticos y viajes para el Secretario de depacho o quien sea autorizado por el mismo. | H11: -0.052 | I11: -0.03 | J11: -0.03 | L11: 1
A12: Artículo 9°.- Compensación por vacaciones. | B12: O211010300102 | C12: 247967517 | D12: 1053537824 | E12: -3.24869288 | F12: Realizar seguimiento a las vacaciones causadas para que se realice la programación del disfrute de las mismas. | G12: Revisar la base de datos del personal para identificar los funcionarios con periodos cumplidos y gestionar el disfrute de las vacaciones para no acumular periodos. | H12: 0.01 | I12: 0.01 | J12: 0.01 | L12: 1
A13: Artículo 10°.- Bono navideño. | B13: 021202020090696990 | C13: 44751699 | D13: 32054338 | E13: 0.2837291384 | F13: Reducir el 1% del valor del bono navideño. | G13: Gestionar la entrega de los bonos por un valor de $170.000. | H13: 0.01 | I13: 0.01 | J13: 0.01 | L13: 1
A14: Artículo 11 -. Capacitación. | B14: O2120202009029291900 | C14: 254624800 | D14: 278900000 | E14: -0.09533713919 | F14: Fortalecer las alianzas con entidades educativas para el desarrollo de capacitaciones gratuitas. | G14: 1. Solicitar ofertas académicas gratuitas a las entidades educativas en los temas de interés. 2. Garantizar en los contratos la reducción del 1% | H14: 0.01 | I14: 0.01 | J14: 0.01 | L14: 1
A15: Artículo 12 -. Bienestar. | B15: 021202020090696990 | C15: =521000000-44751699 -> 476248301 | D15: =502920000-32054338 -> 470865662 | E15: 0.01130216945 | F15: Realizar la reducción del 1% en las actividades de Bienestar | G15: Revisar las actividades con menor impacto para garantizar la reducción del 1%. | H15: 0.01 | I15: 0.01 | J15: 0.01 | L15: 1
A16: Artículo 13 -. Eventos y conmemoraciones. | B16: N/A | C16: 0 | D16: 0 | F16: La entidad no realiza eventos y conmoraciones. | G16: La entidad no realizará eventos ni conmemoraciones en cumplimiento con la normatividad legal aplicable vigente en materia de austeridad del gasto. | H16: N/A | I16: N/A | J16: N/A
A17: Artículo 14 -. Fondos educativos. | B17: 021202020090696990 | C17: 98446520 | D17: 96804560 | E17: 0.01667870027 | F17: Optimizar los recursos orientados a apoyos educativos para que se ejecuten a través del Fondo Distrital. | G17: Comunicar a los funcionarios la oferta distrital del Fondo Educativo en Administración de Recursos para Capacitación Educativa de los Empleados Públicos del Distrito Capital - FRADEC y el Fondo Educativo del Distrito para hijos de empleados - FEDHE. | H17: 0.01 | I17: N/A | J17: N/A | L17: 1
A18: Servicios Administrativos
A19: Artículo 15. Telefonía. | B19: O2120202008084131 | C19: =53175901+216218206+2824535+11048305 -> 283266947 | D19: =49557685.55+143061783 -> 192619468.6 | E19: =1-(D19/C19) -> 0.3200072561 | F19: Como parte de las medidas de austeridad y optimización de los recursos, se establecerá continuar con las actividades para la disminución en los gastos de telefonia fija y celular. | G19: 1. Autorizar la linea movil a las dependencias que por la misionalidad lo requiera previa autorización de la Subsecretaria Corporativa (Dirección Administrativa). 2. Realizar campañas para el buen uso de la telefonía fija. | H19: 0.01 | I19: -0.03 | J19: -0.03 | L19: 1
A20: Artículo 16 -. Vehículos oficiales. | B20: O2120201003033331101 | C20: =117138895 -> 117138895 | D20: 121180453 | E20: -0.03450227185 | F20: Mantener un promedio de consumo anual de 10.000 para el año 2025, 9.500 para el año 2026 y 9.000 para el año 2027 en galones de combustible para el parque automotor de la entidad. | G20: Realizar el seguimiento al uso de los vehículos , teniendo en cuenta que su uso es exclusivo para actividades oficiales del nivel directivo. | H20: -0.052 | I20: -0.03 | J20: -0.03 | L20: 1
A21: Artículo 17 -. Adquisición de vehículos y maquinaria. | B21: O23011601070000007790 | C21: 180146650 | D21: 0 | E21: 1 | F21: No se asignará presupuesto para la adquisición de vehículos o maquinaria, en cumplimiento de lo establecido en el artículo 17 del Decreto 062 de 2024. | G21: En el PAA del año 2025 no esta prevista la adquisición de vehiculos o ampliar el parque automotor de la entidad. | H21: N/A | I21: N/A | J21: N/A
A22: Artículo 18 -. Fotocopiado, multicopiado e impresión. | B22: O21202020080585951 | C22: =17839007+10466510 -> 28305517 | D22: 22274539 | E22: 0.2130672264 | F22: Disminuir en 5% el consumo de fotocopias en la vigencia, comparado con el consumo de fotocopiado de la vigencia anterior | G22: Hacer seguimiento de consumo frente a los topes de fotocopiado, según el lineamiento definido por la entidad. | H22: 0.05 | I22: 0.06 | J22: 0.07 | L22: 1
A23: Artículo 19 -. Publicidad distrital. | B23: N/A | C23: 0 | D23: 0 | F23: La entidad no tiene contratos de publicidad o propaganda personalizada. | G23: Continuar aplicando la resolución de austeridad para no celebrar contratos de propaganda personalizada. | H23: N/A | I23: N/A | J23: N/A
A24: Artículo 20 -. Cajas menores. | B24: O2120202008078714199 O2120201004024299991 O2120201003023219996 O2120201004064693998 O2120202006046411200 O2120202008078715999 O2120201003083816099 O2120201003063627099 O2120201004064641007 O2120201003053514007 O2120202008028213000 O2120202008058595100 | C24: =3711198+1518772 -> 5229970 | D24: 1161341 | E24: 0.7779449978 | F24: Mantener un incremento de gastos por caja menor sobre el IPC de cada vigencia, teniendo en cuenta que las necesidades para los años 2025, 2026 y 2027 tienden a aumentar respecto al año 2024. | G24: Realizar un análisis de gastos para definir las estratégias a implementar y mantener la caja menor para los gastos con carácter de imprevistos, urgentes, imprescindibles e inaplazables. | H24: -0.052 | I24: -0.03 | J24: -0.03 | L24: 1
A25: Artículo 21 -. Mantenimiento o reparación de bienes inmuebles o muebles. | B25: O2120202008078711099 | C25: 1874141647 | D25: 1658585364 | E25: 0.1150160039 | F25: Realizar mantenimiento o reparación de bienes inmuebles o muebles solo cuando sea estrictamente necesario, salvo bienes de interes cultural. | G25: Garantizar la optimización de recursos y el cumplimiento de la normativa vigente. | H25: 0.01 | I25: 0.01 | J25: 0.01 | L25: 1
A26: Artículo 22 -. Suscripciones. | B26: O21202020080484612 | C26: 7045488 | D26: 0 | E26: 1 | F26: La entidad no tiene suscripciones activas en ninguna plataforma digital o impresa. | G26: Continuar aplicando la resolución de austeridad para realizar ninguna suscripción en plataformas digitales o impresas. | H26: N/A | I26: N/A | J26: N/A
A27: Artículo 23 -. Servicios públicos. | B27: Telfonía fija: O21202020080484120 Internet: O21202020080484210 Aseo: O21202020090494239 Energía: O21202020080686312 Gas: O21202020080686320 Acueducto: O21202020080686330 | C27: =127315990+2035596444+26396590+11604090+40729138+32512360+62389280+821336220+12393850+7748840+17942579+15908710 -> 3211874091 | D27: 2594370520 | E27: 0.1922564689 | F27: Realizar el control al consumo de energía de los equipos de cómputo, impresoras y otros aparatos eléctricos y electrónicos para el uso adecuado y su racionamiento. | G27: Realizar campañas incentivando el uso eficiente del agua y la energía, charlas y capacitaciones. Realizar actividades desarrolladas por el PIGA. | H27: -0.052 | I27: -0.03 | J27: -0.03 | L27: 1

Sheet 0117-01 SDDE
A1: PLAN DE AUSTERIDAD EN EL GASTO 2025-2027
A2: Entidad
A3: Valores en Pesos Corrientes
A4: CONCEPTO (Decreto 062 de 2024) | B4: Posiciones Presupuestales Asociadas (Funcionamiento e Inversión) | C4: LÍNEA BASE | F4: PLAN DE AUSTERIDAD EN EL GASTO 2025-2027 | K4: SEGUIMIENTO RESULTADOS PLAN DE AUSTERIDAD 2025-2027
F5: ESTRATEGIAS 2025-2027 | G5: ACCIONES 2025-2027 | H5: META INDICADOR DE AUSTERIDAD
C6: AÑO 2023 | D6: AÑO 2024 | K6: AÑO 2025 | M6: AÑO 2026 | O6: AÑO 2027
C7: Valor EJECUTADO a 31/12/2023 | D7: Valor EJECUTADO a 31/12/2024 | E7: Resultado Indicador Austeridad | H7: AÑO 2025 | I7: AÑO 2026 | J7: AÑO 2027 | K7: Valor EJECUTADO a 31/12/2025 | L7: Resultado Indicador Austeridad | M7: Valor EJECUTADO a 31/12/2026 | N7: Resultado Indicador Austeridad | O7: Valor EJECUTADO a 31/12/2027 | P7: Resultado Indicador Austeridad
A8: Servicios de personal
A9: Artículo 6°.- Reducción del gasto en CPS profesionales y de apoyo a la gestión. | B9: N.A. Se registran totales. Corresponde con lo reportado en SIDEAP y SIVICOF | C9: 53938047845 | D9: 49817300300 | E9: =1-(D9/C9) -> 0.07639778801 | F9: Optimizacion de los recursos priorizados para la contratacion de CPS de acuerdo a las necesidades estratégicas de las áreas Nota: Para la línea base del valor ejecutado en la vigencia fiscal 2024, se agregó la cifra de $6.597 millones, correspondientes a 400 contratos de prestación de servicios suscritos en el último bimestre de la vigencia fiscal 2023, situación que afectó la carga presupuestal en prestación de servicios para el 2024, afectando la media historica en la contratación de prestación de servicios profesionales y de apoyo a la gestión. | G9: 1. Reduccion de tiempos de CPS 2. Unificacion y agregación de necesidades contractuales. 3. Fortalecimiento de habilidades y competencias del talento humano para desarrollar nuevas y mejores actividades complementarias. 4. Fortalecimiento del uso de tecnologías de la información para optimizar procesos | H9: 0 | I9: 0.0325 | J9: 0.0325 | L9: =1-(K9/D9) -> 1 | N9: =1-(M9/K9) ->  | P9: =1-(O9/M9) -> 
A10: Artículo 7°.- Horas extras, dominicales y festivos. | B10: O211010100102 | C10: 68482197 | D10: 96500570 | E10: -0.409133676 | F10: Racionalización de autorización de horas extras, | G10: La autorización de horas extras en la SDDE, sólo se hará efectiva cuando sea estrictamente necesario para atender asuntos del servicio reales e imprescindibles y en ningún caso de carácter permanente. | H10: 0 | I10: 0 | J10: 0 | L10: =1-(K10/D10) -> 1 | N10: =1-(M10/K10) -> 
A11: Artículo 8°.- Viáticos y gastos de viaje. | B11: O2120202010 | C11: 51562891 | D11: 20882300 | E11: 0.5950130104 | F11: Racionalización en la autorización de viáticos y gastos de viaje | G11: Incentivar la comunicación vía redes para potenciar la comunicación y diminución de desplazamientos, autorizando los desplazamientos estrictamente necesarios. | H11: 0 | I11: 0 | J11: 0 | L11: 1
A12: Artículo 9°.- Compensación por vacaciones. | B12: O211010300102 | C12: 98927131 | D12: 509895989 | E12: -4.15425833 | F12: Control de vacaciones anual y no capitalización de periodos sin disfrute de las mismas. | G12: Revisión de las medidas para que los servidores disfruten sus periodos de vacaciones al siguiente año de cumplirlas y así evitar que al momento del retiro el servidor tenga periodos acumulados. | H12: 0 | I12: 0 | J12: 0 | L12: 1
A13: Artículo 10°.- Bono navideño. | B13: O21202020090191191 | C13: 10222371 | D13: 14075059 | E13: -0.3768879059 | F13: Depuración de listado de beneficiarios. | G13: Actualización de las bases de datos. | H13: 0 | I13: 0 | J13: 0 | L13: 1
A14: Artículo 11 -. Capacitación. | B14: O212020200992913 | C14: 62400000 | D14: 73472000 | E14: -0.1774358974 | F14: Aprovechamiento de capacitaciones con otras entidades. | G14: Búsqueda de capacitaciones gratuitas ofrecidas por entidades públicas. | H14: 0 | I14: 0 | J14: 0 | L14: 1
A15: Artículo 12 -. Bienestar. | B15: O21202020090191191 | C15: 238650000 | D15: 119191318 | E15: 0.5005601592 | F15: Control efectivo de las actividades de bienestar autorizadas y realizar procesos de selección para operadores. | G15: Adherencia a la invitación de las actividades que realiza el Departamento Administrativo del Servicio Civil- DASC que permite que se amplie la oferta de eventos, sin incrementar el costo ni hacer uso de los recursos de la SDDE. | H15: 0 | I15: 0 | J15: 0 | L15: 1
A16: Artículo 13 -. Eventos y conmemoraciones. | B16: N/A | C16: 0 | D16: 0
A17: Artículo 14 -. Fondos educativos. | B17: N/A | C17: 0 | D17: 0
A18: Servicios Administrativos
A19: Artículo 15. Telefonía. | B19: O21202020080484120 O21202020080484131 O21202020080484133 O21202020080484190 | C19: 49930549 | D19: 25869354 | E19: =1-(D19/C19) -> 0.4818932594 | F19: Realizar la modalidad de contratación. | G19: Pasar de contrato de telefonia a un servicio público. | H19: 0.01 | I19: 0 | J19: 0 | L19: 1
A20: Artículo 16 -. Vehículos oficiales. | B20: O21202020060464114 O21202020080484133 O2120202008078714101 O2120201003033331101 | C20: 58587489.66 | D20: 135752727 | E20: -1.317094106 | F20: Actualizar el Plan de Mantenimiento de la SDDE. | G20: *. Asignación de un cupo máximo de consumo mensual de galones, con seguimiento a través del chip instalado en cada vehículo y con este se registran los datos de tanqueo en la SDDE. *. Control al sistema de ratsreo satelital de los vehículos. | H20: 0 | I20: 0 | J20: 0 | L20: 1
A21: Artículo 17 -. Adquisición de vehículos y maquinaria. | B21: N/A | C21: 0 | D21: 0
A22: Artículo 18 -. Fotocopiado, multicopiado e impresión. | B22: N/A | C22: 0 | D22: 0
A23: Artículo 19 -. Publicidad distrital. | B23: N/A | C23: 0 | D23: 0
A24: Artículo 20 -. Cajas menores. | B24: O21202020060565115 O21202020080787151 O2120202008098912102 O2120202008098912197 | C24: 120000 | D24: 0 | E24: 1 | F24: Fortalecer los esquemas de planeación para que las urgencias, casos fortuitos y hechos sobrevinientes cada vez disminuyan. | G24: Realizar seguimiento al PAA, fortaleciendo el anteproyecto de presupuesto que cubra las necesidade sde bienes y servicio sde la entidad. Solo serán autorizables las causlaes incluidas en el acto admistrativo de la Caja Menor. | H24: 0 | I24: 0.03 | J24: 0.03
A25: Artículo 21 -. Mantenimiento o reparación de bienes inmuebles o muebles. | B25: O21202020080787151 O2120202008078715202 O2120202008078715203 O2120202008078715602 O2120202008078715402 | C25: 52375063 | D25: 60317399 | E25: -0.1516434644 | F25: Gestón eficiente del Plan de Mantenimiento de la SDDE. | G25: Se ejecutará el Plan de Mantenimiento de acuerdo con lo establecido por la Entidad. | H25: 0 | I25: 0 | J25: 0 | L25: 1
A26: Artículo 22 -. Suscripciones. | B26: N/A | C26: 0 | D26: 0
A27: Artículo 23 -. Servicios públicos. | B27: O21202020080686312 O21202020080686320 O21202020080686330 O21202020090494239 | C27: 132916072 | D27: 127680372 | E27: 0.03939102263 | F27: La estrategia se enfocaria en el servicio público de Agua: *Uso de agua lluvia en la sede principal para el lavado de pisos. *Inspecciones hidrosanitarias para identificar fugas. *Piezas comunicativas sobre el uso eficiente del agua. *Fomentar el uso de pocillo, botellas reutilizables y evitar desperdiciar agua al servirse más de la necesaria. *En los contratos de arrendamiento especificar el requerimiento de sistemas ahorradores de agua en baterías de baño y grifos. | G27: *Coordinar con el arrendandor la colocación de ahorradores en los suministros . *Coordinar con los arrendadores y con el área de PIGA que permite dentro de las cláusulas de los contratos de arrendamiento, que podemos realizar para ahorrar en el servicio de agua. | H27: 0 | I27: 0.01 | J27: 0.01 | L27: 1

Sheet 0118-01 SDHT
A1: PLAN DE AUSTERIDAD EN EL GASTO 2025-2027
A2: Entidad
A3: Valores en Pesos Corrientes
A4: CONCEPTO (Decreto 062 de 2024) | B4: Posiciones Presupuestales Asociadas (Funcionamiento e Inversión) | C4: LÍNEA BASE | F4: PLAN DE AUSTERIDAD EN EL GASTO 2025-2027 | K4: SEGUIMIENTO RESULTADOS PLAN DE AUSTERIDAD 2025-2027
F5: ESTRATEGIAS 2025-2027 | G5: ACCIONES 2025-2027 | H5: META INDICADOR DE AUSTERIDAD
C6: AÑO 2023 | D6: AÑO 2024 | K6: AÑO 2025 | M6: AÑO 2026 | O6: AÑO 2027
C7: Valor EJECUTADO a 31/12/2023 | D7: Valor EJECUTADO a 31/12/2024 | E7: Resultado Indicador Austeridad | H7: AÑO 2025 | I7: AÑO 2026 | J7: AÑO 2027 | K7: Valor EJECUTADO a 31/12/2025 | L7: Resultado Indicador Austeridad | M7: Valor EJECUTADO a 31/12/2026 | N7: Resultado Indicador Austeridad | O7: Valor EJECUTADO a 31/12/2027 | P7: Resultado Indicador Austeridad
A8: Servicios de personal
A9: Artículo 6°.- Reducción del gasto en CPS profesionales y de apoyo a la gestión. | B9: N.A. Se registran totales. Corresponde con lo reportado en SIDEAP y SIVICOF | E9: =1-(D9/C9) ->  | L9: =1-(K9/D9) ->  | N9: =1-(M9/K9) ->  | P9: =1-(O9/M9) -> 
A10: Artículo 7°.- Horas extras, dominicales y festivos. | L10: =1-(K10/D10) ->  | N10: =1-(M10/K10) -> 
A11: Artículo 8°.- Viáticos y gastos de viaje.
A12: Artículo 9°.- Compensación por vacaciones.
A13: Artículo 10°.- Bono navideño.
A14: Artículo 11 -. Capacitación.
A15: Artículo 12 -. Bienestar.
A16: Artículo 13 -. Eventos y conmemoraciones.
A17: Artículo 14 -. Fondos educativos.
A18: Servicios Administrativos
A19: Artículo 15. Telefonía. | E19: =1-(D19/C19) -> 
A20: Artículo 16 -. Vehículos oficiales.
A21: Artículo 17 -. Adquisición de vehículos y maquinaria.
A22: Artículo 18 -. Fotocopiado, multicopiado e impresión.
A23: Artículo 19 -. Publicidad distrital.
A24: Artículo 20 -. Cajas menores.
A25: Artículo 21 -. Mantenimiento o reparación de bienes inmuebles o muebles.
A26: Artículo 22 -. Suscripciones.
A27: Artículo 23 -. Servicios públicos.

Sheet 0119-01 SDCRD
A1: PLAN DE AUSTERIDAD EN EL GASTO 2025-2027
A2: Entidad
A3: Valores en Pesos Corrientes
A4: CONCEPTO (Decreto 062 de 2024) | B4: Posiciones Presupuestales Asociadas (Funcionamiento e Inversión) | C4: LÍNEA BASE | F4: PLAN DE AUSTERIDAD EN EL GASTO 2025-2027 | K4: SEGUIMIENTO RESULTADOS PLAN DE AUSTERIDAD 2025-2027
F5: ESTRATEGIAS 2025-2027 | G5: ACCIONES 2025-2027 | H5: META INDICADOR DE AUSTERIDAD
C6: AÑO 2023 | D6: AÑO 2024 | K6: AÑO 2025 | M6: AÑO 2026 | O6: AÑO 2027
C7: Valor EJECUTADO a 31/12/2023 | D7: Valor EJECUTADO a 31/12/2024 | E7: Resultado Indicador Austeridad | H7: AÑO 2025 | I7: AÑO 2026 | J7: AÑO 2027 | K7: Valor EJECUTADO a 31/12/2025 | L7: Resultado Indicador Austeridad | M7: Valor EJECUTADO a 31/12/2026 | N7: Resultado Indicador Austeridad | O7: Valor EJECUTADO a 31/12/2027 | P7: Resultado Indicador Austeridad
A8: Servicios de personal
A9: Artículo 6°.- Reducción del gasto en CPS profesionales y de apoyo a la gestión. | B9: N.A. Se registran totales. Corresponde con lo reportado en SIDEAP y SIVICOF | E9: =1-(D9/C9) ->  | L9: =1-(K9/D9) ->  | N9: =1-(M9/K9) ->  | P9: =1-(O9/M9) -> 
A10: Artículo 7°.- Horas extras, dominicales y festivos. | L10: =1-(K10/D10) ->  | N10: =1-(M10/K10) -> 
A11: Artículo 8°.- Viáticos y gastos de viaje.
A12: Artículo 9°.- Compensación por vacaciones.
A13: Artículo 10°.- Bono navideño.
A14: Artículo 11 -. Capacitación.
A15: Artículo 12 -. Bienestar.
A16: Artículo 13 -. Eventos y conmemoraciones.
A17: Artículo 14 -. Fondos educativos.
A18: Servicios Administrativos
A19: Artículo 15. Telefonía. | E19: =1-(D19/C19) -> 
A20: Artículo 16 -. Vehículos oficiales.
A21: Artículo 17 -. Adquisición de vehículos y maquinaria.
A22: Artículo 18 -. Fotocopiado, multicopiado e impresión.
A23: Artículo 19 -. Publicidad distrital.
A24: Artículo 20 -. Cajas menores.
A25: Artículo 21 -. Mantenimiento o reparación de bienes inmuebles o muebles.
A26: Artículo 22 -. Suscripciones.
A27: Artículo 23 -. Servicios públicos.

Sheet 0120-01 SDP
A1: PLAN DE AUSTERIDAD EN EL GASTO 2025-2027
A2: Entidad
A3: Valores en Pesos Corrientes
A4: CONCEPTO (Decreto 062 de 2024) | B4: Posiciones Presupuestales Asociadas (Funcionamiento e Inversión) | C4: LÍNEA BASE | F4: PLAN DE AUSTERIDAD EN EL GASTO 2025-2027 | K4: SEGUIMIENTO RESULTADOS PLAN DE AUSTERIDAD 2025-2027
F5: ESTRATEGIAS 2025-2027 | G5: ACCIONES 2025-2027 | H5: META INDICADOR DE AUSTERIDAD
C6: AÑO 2023 | D6: AÑO 2024 | K6: AÑO 2025 | M6: AÑO 2026 | O6: AÑO 2027
C7: Valor EJECUTADO a 31/12/2023 | D7: Valor EJECUTADO a 31/12/2024 | E7: Resultado Indicador Austeridad | H7: AÑO 2025 | I7: AÑO 2026 | J7: AÑO 2027 | K7: Valor EJECUTADO a 31/12/2025 | L7: Resultado Indicador Austeridad | M7: Valor EJECUTADO a 31/12/2026 | N7: Resultado Indicador Austeridad | O7: Valor EJECUTADO a 31/12/2027 | P7: Resultado Indicador Austeridad
A8: Servicios de personal
A9: Artículo 6°.- Reducción del gasto en CPS profesionales y de apoyo a la gestión. | B9: N.A. Se registran totales. Corresponde con lo reportado en SIDEAP y SIVICOF | E9: =1-(D9/C9) ->  | L9: =1-(K9/D9) ->  | N9: =1-(M9/K9) ->  | P9: =1-(O9/M9) -> 
A10: Artículo 7°.- Horas extras, dominicales y festivos. | B10: O211010100102 | C10: 194342622 | D10: 208652916 | E10: -0.07363435696 | F10: 1. Realizar gestiones con las áreas de la SDP con el fin de dar cumplimiento a lo establecido en la normativa distrital y nacional. 2. Optimizar el uso del parque automotor administrado por la Dirección Administrativa, garantizando una adecuada programación y un control efectivo en el uso del servicio de transporte, con el ánimo de disminuir las horas extras de los conductores y mejorar la eficiencia en la ejecución de estos recursos. | G10: 1. Realizar mesas de trabajo con las áreas que realizan los reportes de horas extras. 2.1. Elaborar una programación diaria de la flota vehicular del parque automotor administrado por la Dirección Administrativa, con el fin de verificar las horas de servicio prestadas en cada jornada. 2.2. Presentar un reporte mensual sobre el uso del servicio de transporte de los vehículos asignados a los Directivos de la SDP, con el objetivo de reflejar su utilización y fomentar la optimización del servicio, reduciendo las horas de uso. | H10: 0 | I10: 0 | J10: 0 | L10: =1-(K10/D10) -> 1 | N10: =1-(M10/K10) -> 
A11: Artículo 8°.- Viáticos y gastos de viaje. | B11: O21202020060464241 O2120202010 | C11: 63123889 | D11: 65337131 | E11: -0.03506187649 | F11: 1. Se dará aplicación a lo establecido en la normatividad vigente en la SDP para autorizar los viáticos y gastos de viaje estrictamente necesarios atendiendo a las Necesidades del servicio, así como las actividades de relevancia para la ciudad y la Entidad. | G11: 1. Garantizar que los criterios evaluados para la aprobación de los viáticos estén justificados y ajustados a la misionalidad de la entidad. | H11: 0 | I11: 0 | J11: 0 | L11: 1
A12: Artículo 9°.- Compensación por vacaciones. | B12: O211010300102 | C12: 559043583 | D12: 1003058867 | E12: -0.7942409098 | F12: 1. Continuar con el cumplimiento de la programación de vacaciones de los servidores de la SDP. | G12: 1.1. Se realizarán campañas con los Directivos y jefes de área para concertar vacaciones en los equipos de trabajo y llevar control de acumulación propendiendo a que tomen su descanso de vacaciones una vez completada la causación del periodo. | H12: 0 | I12: 0 | J12: 0 | L12: 1
A13: Artículo 10°.- Bono navideño. | B13: O21202020090696620 | C13: 49403850 | D13: 40269000 | E13: 0.1849015816 | F13: 1. Establecer las medidas de control enfocadas en garantizar que, en ejercicio de la autonomía administrativa y presupuestal de la SDP, el valor asignado para cada uno de los hijos de los funcionarios no supere el valor de seis (6) salarios mínimos diarios legales vigentes como lo dispone la norma. 2. Control de los criterios establecidos para el otorgamiento del bono a las hijas e hijos beneficiarios de los servidores. | G13: 1.1. Realizar la verificación en los aplicativos internos en aras de garantizar la cobertura de los hijos de los funcionarios que tengan acceso a dicho beneficio. 2.1. Se realizará una estrategia comunicativa con el fin de socializar los criterios para el otorgamiento del bono navideño. | H13: 0 | I13: 0 | J13: 0 | L13: 1
A14: Artículo 11 -. Capacitación. | B14: O21202020090292913 | C14: 44879319 | D14: 59656300 | E14: -0.329260366 | F14: 1. Fortalecer y desarrollar competencias funcionales y comportamentales a los servidores de la Secretaría Distrital de Planeación, a partir de procesos de formación en los ejes del Plan Nacional de Formación y Capacitación. 2. Promover la actualización de conocimientos de los servidores de la SDP, en temáticas relacionadas con los procesos misionales, estratégicos, de apoyo y evaluación, a través del plan de capacitación interna. | G14: 1.1. Garantizar que los costos asociados cubran las necesidades del desarrollo los programas de capacitación. 2.1. Mantener la política de uso del formato carta de compromiso con los servidores, que permite garantizar que la persona que se inscribe al programa de formación asista. 2.2. Incluir en el documento técnico de la contratación del servicio de formación los perfiles académicos con alta calidad quienes van a desarrollar la formación. | H14: 0 | I14: 0 | J14: 0 | L14: 1
A15: Artículo 12 -. Bienestar. | B15: O21202020090696620 O232020200883111 | C15: 451694635 | D15: 1070360005 | E15: -1.369654014 | F15: 1. Fortalecer la planeación y la gestión de recursos de las actividades de bienestar. | G15: 1.1. Mantener el uso del formato carta compromiso para las inscripciones a las actividades de bienestar garantizando que la persona que se inscribe asista. 1.2. Realizar depuración de elementos esenciales y no esenciales para el desarrollo de cada actividad, en aras de disminuir el costo de las actividades. 1.3. No se destinarán recursos para la conmemoración del día de los secretarios, conductores y otras actividades que sean coordinadas por el DASCD. | H15: 0 | I15: 0 | J15: 0 | L15: 1
A16: Artículo 13 -. Eventos y conmemoraciones. | B16: NA | C16: 0 | D16: 0 | F16: No se cuenta con recursos asignados para este concepto. | G16: No se cuenta con recursos asignados para este concepto. | H16: 0 | I16: 0 | J16: 0
A17: Artículo 14 -. Fondos educativos. | B17: NA | C17: 0 | D17: 0 | F17: La SDP, no administra los fondos educativos FRADEC Y FEDHE, estos dependen del Departamento Administrativo del Servicio Civil Distrital | G17: N/A | H17: 0 | I17: 0 | J17: 0
A18: Servicios Administrativos
A19: Artículo 15. Telefonía. | B19: O21202020080484120 O21202020080484131 | C19: 325871149 | D19: 213644043 | E19: =1-(D19/C19) -> 0.3443910464 | F19: 1. Monitorear el comportamiento del servicio de telefonía celular en el mercado, con el fin de establecer los planes más favorables para la entidad y de esta manera reducir los costos asociados a este rubro. | G19: 1.1. Gestionar con los diferentes proveedores de telefonía o con la misma ETB, un plan de telefonía celular más económico, sin desmejorar las condiciones contratadas actualmente. 1.2. La SDP se abstendrá de renovar o adquirir nuevos teléfonos celulares y planes de telefonía móvil, internet y datos para los servidores públicos de cualquier nivel. | H19: 0.05 | I19: 0.05 | J19: 0.05 | L19: 1
A20: Artículo 16 -. Vehículos oficiales. | B20: O2120202008078714102 O21202020080585230 O2120201003033331101 | C20: 291297093 | D20: 282773931 | E20: 0.02925934451 | F20: 1. Establecer las medidas de control de consumo de combustible y servicios de mantenimiento, así como la optimización del servicio de monitoreo de los vehículos de la Secretaría Distrital de Planeación. | G20: 1.1. Hacer un análisis del kilometraje por vehículo trimestralmente, a través del chip de combustible con el ánimo de establecer variaciones de consumo. 1.2. Diseñar un acuerdo de servicios que permita optimizar el uso del parque automotor según las necesidades de la entidad. | H20: 0 | I20: 0 | J20: 0 | L20: 1
A21: Artículo 17 -. Adquisición de vehículos y maquinaria. | B21: O23201010030701 | C21: 0 | D21: 0 | F21: 1. Realizar un plan de mantenimiento preventivo del parque automotor de acuerdo con los recursos disponibles. | G21: 1.1. Dar cumplimiento al plan de mantenimiento preventivo. | H21: 0 | I21: 0 | J21: 0
A22: Artículo 18 -. Fotocopiado, multicopiado e impresión. | B22: O21202020080585951 | C22: 72385424 | D22: 50066948 | E22: 0.3083283176 | F22: 1. Ejecutar acciones encaminadas al cumplimiento del lineamiento establecido en la Guía No. 1 “Cero Papel en la Administración Pública”, expedida por el Ministerio de las TIC. | G22: 1.1. Fortalecer el uso de herramientas virtuales para el intercambio de documentos, como son el correo electrónico y la herramienta de gestión documental SIPA. 1.2. Sustitución de los documentos en físico por soportes y medios electrónicos, que no implica la eliminación del 100% del uso de documentos en físico, utilizando lo estrictamente lo necesario. | H22: 0.02 | I22: 0.02 | J22: 0.02 | L22: 1
A23: Artículo 19 -. Publicidad distrital. | B23: NA | C23: 0 | D23: 0 | F23: No se cuenta con recursos asignados para este concepto. | G23: No se cuenta con recursos asignados para este concepto. | H23: 0 | I23: 0 | J23: 0
A24: Artículo 20 -. Cajas menores. | B24: O21202020060464112 O21202020080282130 O2120202008078712001 | C24: 1003680 | D24: 1311809 | E24: -0.3069992428 | F24: 1. Continuar con la utilización de los recursos de caja menor estrictamente para los gastos urgentes, imprevistos, inaplazables, imprescindibles y necesarios para el buen funcionamiento de la entidad. | G24: 1.1. Aplicar controles en las solicitudes, identificando si cuenta con la debida justificación para clasificarla como imprevistos, urgentes, imprescindibles e inaplazables y enmarcados dentro de las políticas de racionalización del gasto | H24: 0 | I24: 0 | J24: 0 | L24: 1
A25: Artículo 21 -. Mantenimiento o reparación de bienes inmuebles o muebles. | B25: O2120201003053542007 O2120201003063622007 O2120201003063622007 O2120201003063632009 O2120201003063633007 O2120201003073711301 O2120201003083812199 O2120201004024291101 O2120201004024291239 O2120201004024292199 O2120201004024292299 O2120201004024299991 O2120201004034391402 O2120201004064693998 O2120202008078715299 O23011745992024016209007 O23011745992024016210011 | C25: 331331867 | D25: 973253300 | E25: -1.937397205 | F25: 1. Enmarcar las acciones de mantenimiento locativo y de mobiliario de conformidad con la normatividad vigente en materia de seguridad y salud en el trabajo. | G25: 1.1. Elaborar y ejecutar el plan de mantenimiento de acuerdo con la normatividad vigente. | H25: 0 | I25: 0 | J25: 0 | L25: 1
A26: Artículo 22 -. Suscripciones. | B26: O232010100502030101 | C26: 0 | D26: 62000000 | F26: 1. Renovar las licencias de Software de acuerdo con el monitoreo del uso y adquirir nuevas de acuerdo con un análisis de necesidad. | G26: 1.1. Realizar el análisis de necesidades de las áreas en términos de funcionalidad del software y cantidad de licencias que requieren. 1.2. Elaborar procesos de contratación óptimos y eficientes para obtener ahorros y economías de escala. | H26: 0 | I26: 0 | J26: 0 | L26: 1
A27: Artículo 23 -. Servicios públicos. | B27: O21202020080686312 O21202020080686330 O21202020090494239 | C27: 70084092 | D27: 61221200 | E27: 0.1264608237 | F27: 1. Desarrollar las acciones necesarias enmarcadas en el plan institucional ambiental-PIGA. | G27: 1.1. Ejecutar las acciones contempladas en programa de uso eficiente del agua, uso eficiente de energía, gestión integral de residuos, consumo sostenible y gestión del cambio climático y programa de comunicación, formación y sensibilización. | H27: 0 | I27: 0 | J27: 0 | L27: 1

Sheet 0121-01 SDM
A1: PLAN DE AUSTERIDAD EN EL GASTO 2025-2027
A2: Entidad
A3: Valores en Pesos Corrientes
A4: CONCEPTO (Decreto 062 de 2024) | B4: Posiciones Presupuestales Asociadas (Funcionamiento e Inversión) | C4: LÍNEA BASE | F4: PLAN DE AUSTERIDAD EN EL GASTO 2025-2027 | K4: SEGUIMIENTO RESULTADOS PLAN DE AUSTERIDAD 2025-2027
F5: ESTRATEGIAS 2025-2027 | G5: ACCIONES 2025-2027 | H5: META INDICADOR DE AUSTERIDAD
C6: AÑO 2023 | D6: AÑO 2024 | K6: AÑO 2025 | M6: AÑO 2026 | O6: AÑO 2027
C7: Valor EJECUTADO a 31/12/2023 | D7: Valor EJECUTADO a 31/12/2024 | E7: Resultado Indicador Austeridad | H7: AÑO 2025 | I7: AÑO 2026 | J7: AÑO 2027 | K7: Valor EJECUTADO a 31/12/2025 | L7: Resultado Indicador Austeridad | M7: Valor EJECUTADO a 31/12/2026 | N7: Resultado Indicador Austeridad | O7: Valor EJECUTADO a 31/12/2027 | P7: Resultado Indicador Austeridad
A8: Servicios de personal
A9: Artículo 6°.- Reducción del gasto en CPS profesionales y de apoyo a la gestión. | B9: N.A. Se registran totales. Corresponde con lo reportado en SIDEAP y SIVICOF | E9: =1-(D9/C9) ->  | L9: =1-(K9/D9) ->  | N9: =1-(M9/K9) ->  | P9: =1-(O9/M9) -> 
A10: Artículo 7°.- Horas extras, dominicales y festivos. | L10: =1-(K10/D10) ->  | N10: =1-(M10/K10) -> 
A11: Artículo 8°.- Viáticos y gastos de viaje.
A12: Artículo 9°.- Compensación por vacaciones.
A13: Artículo 10°.- Bono navideño.
A14: Artículo 11 -. Capacitación.
A15: Artículo 12 -. Bienestar.
A16: Artículo 13 -. Eventos y conmemoraciones.
A17: Artículo 14 -. Fondos educativos.
A18: Servicios Administrativos
A19: Artículo 15. Telefonía. | E19: =1-(D19/C19) -> 
A20: Artículo 16 -. Vehículos oficiales.
A21: Artículo 17 -. Adquisición de vehículos y maquinaria.
A22: Artículo 18 -. Fotocopiado, multicopiado e impresión.
A23: Artículo 19 -. Publicidad distrital.
A24: Artículo 20 -. Cajas menores.
A25: Artículo 21 -. Mantenimiento o reparación de bienes inmuebles o muebles.
A26: Artículo 22 -. Suscripciones.
A27: Artículo 23 -. Servicios públicos.

Sheet 0125-01 DASCD
A1: PLAN DE AUSTERIDAD EN EL GASTO 2025-2027
A2: Entidad
A3: Valores en Pesos Corrientes
A4: CONCEPTO (Decreto 062 de 2024) | B4: Posiciones Presupuestales Asociadas (Funcionamiento e Inversión) | C4: LÍNEA BASE | F4: PLAN DE AUSTERIDAD EN EL GASTO 2025-2027 | K4: SEGUIMIENTO RESULTADOS PLAN DE AUSTERIDAD 2025-2027
F5: ESTRATEGIAS 2025-2027 | G5: ACCIONES 2025-2027 | H5: META INDICADOR DE AUSTERIDAD
C6: AÑO 2023 | D6: AÑO 2024 | K6: AÑO 2025 | M6: AÑO 2026 | O6: AÑO 2027
C7: Valor EJECUTADO a 31/12/2023 | D7: Valor EJECUTADO a 31/12/2024 | E7: Resultado Indicador Austeridad | H7: AÑO 2025 | I7: AÑO 2026 | J7: AÑO 2027 | K7: Valor EJECUTADO a 31/12/2025 | L7: Resultado Indicador Austeridad | M7: Valor EJECUTADO a 31/12/2026 | N7: Resultado Indicador Austeridad | O7: Valor EJECUTADO a 31/12/2027 | P7: Resultado Indicador Austeridad
A8: Servicios de personal
A9: Artículo 6°.- Reducción del gasto en CPS profesionales y de apoyo a la gestión. | B9: N.A. Se registran totales. Corresponde con lo reportado en SIDEAP y SIVICOF | E9: =1-(D9/C9) ->  | L9: =1-(K9/D9) ->  | N9: =1-(M9/K9) ->  | P9: =1-(O9/M9) -> 
A10: Artículo 7°.- Horas extras, dominicales y festivos. | L10: =1-(K10/D10) ->  | N10: =1-(M10/K10) -> 
A11: Artículo 8°.- Viáticos y gastos de viaje.
A12: Artículo 9°.- Compensación por vacaciones.
A13: Artículo 10°.- Bono navideño.
A14: Artículo 11 -. Capacitación.
A15: Artículo 12 -. Bienestar.
A16: Artículo 13 -. Eventos y conmemoraciones.
A17: Artículo 14 -. Fondos educativos.
A18: Servicios Administrativos
A19: Artículo 15. Telefonía. | E19: =1-(D19/C19) -> 
A20: Artículo 16 -. Vehículos oficiales.
A21: Artículo 17 -. Adquisición de vehículos y maquinaria.
A22: Artículo 18 -. Fotocopiado, multicopiado e impresión.
A23: Artículo 19 -. Publicidad distrital.
A24: Artículo 20 -. Cajas menores.
A25: Artículo 21 -. Mantenimiento o reparación de bienes inmuebles o muebles.
A26: Artículo 22 -. Suscripciones.
A27: Artículo 23 -. Servicios públicos.

Sheet 0122-01 SDIS
A1: PLAN DE AUSTERIDAD EN EL GASTO 2025-2027
A2: Entidad
A3: Valores en Pesos Corrientes
A4: CONCEPTO (Decreto 062 de 2024) | B4: Posiciones Presupuestales Asociadas (Funcionamiento e Inversión) | C4: LÍNEA BASE | F4: PLAN DE AUSTERIDAD EN EL GASTO 2025-2027 | K4: SEGUIMIENTO RESULTADOS PLAN DE AUSTERIDAD 2025-2027
F5: ESTRATEGIAS 2025-2027 | G5: ACCIONES 2025-2027 | H5: META INDICADOR DE AUSTERIDAD
C6: AÑO 2023 | D6: AÑO 2024 | K6: AÑO 2025 | M6: AÑO 2026 | O6: AÑO 2027
C7: Valor EJECUTADO a 31/12/2023 | D7: Valor EJECUTADO a 31/12/2024 | E7: Resultado Indicador Austeridad | H7: AÑO 2025 | I7: AÑO 2026 | J7: AÑO 2027 | K7: Valor EJECUTADO a 31/12/2025 | L7: Resultado Indicador Austeridad | M7: Valor EJECUTADO a 31/12/2026 | N7: Resultado Indicador Austeridad | O7: Valor EJECUTADO a 31/12/2027 | P7: Resultado Indicador Austeridad
A8: Servicios de personal
A9: Artículo 6°.- Reducción del gasto en CPS profesionales y de apoyo a la gestión. | B9: N.A. Se registran totales. Corresponde con lo reportado en SIDEAP y SIVICOF | E9: =1-(D9/C9) ->  | L9: =1-(K9/D9) ->  | N9: =1-(M9/K9) ->  | P9: =1-(O9/M9) -> 
A10: Artículo 7°.- Horas extras, dominicales y festivos. | L10: =1-(K10/D10) ->  | N10: =1-(M10/K10) -> 
A11: Artículo 8°.- Viáticos y gastos de viaje.
A12: Artículo 9°.- Compensación por vacaciones.
A13: Artículo 10°.- Bono navideño.
A14: Artículo 11 -. Capacitación.
A15: Artículo 12 -. Bienestar.
A16: Artículo 13 -. Eventos y conmemoraciones.
A17: Artículo 14 -. Fondos educativos.
A18: Servicios Administrativos
A19: Artículo 15. Telefonía. | E19: =1-(D19/C19) -> 
A20: Artículo 16 -. Vehículos oficiales.
A21: Artículo 17 -. Adquisición de vehículos y maquinaria.
A22: Artículo 18 -. Fotocopiado, multicopiado e impresión.
A23: Artículo 19 -. Publicidad distrital.
A24: Artículo 20 -. Cajas menores.
A25: Artículo 21 -. Mantenimiento o reparación de bienes inmuebles o muebles.
A26: Artículo 22 -. Suscripciones.
A27: Artículo 23 -. Servicios públicos.

Sheet 0126-01 SDA
A1: PLAN DE AUSTERIDAD EN EL GASTO 2025-2027
A2: Entidad
A3: Valores en Pesos Corrientes
A4: CONCEPTO (Decreto 062 de 2024) | B4: Posiciones Presupuestales Asociadas (Funcionamiento e Inversión) | C4: LÍNEA BASE | F4: PLAN DE AUSTERIDAD EN EL GASTO 2025-2027 | K4: SEGUIMIENTO RESULTADOS PLAN DE AUSTERIDAD 2025-2027
F5: ESTRATEGIAS 2025-2027 | G5: ACCIONES 2025-2027 | H5: META INDICADOR DE AUSTERIDAD
C6: AÑO 2023 | D6: AÑO 2024 | K6: AÑO 2025 | M6: AÑO 2026 | O6: AÑO 2027
C7: Valor EJECUTADO a 31/12/2023 | D7: Valor EJECUTADO a 31/12/2024 | E7: Resultado Indicador Austeridad | H7: AÑO 2025 | I7: AÑO 2026 | J7: AÑO 2027 | K7: Valor EJECUTADO a 31/12/2025 | L7: Resultado Indicador Austeridad | M7: Valor EJECUTADO a 31/12/2026 | N7: Resultado Indicador Austeridad | O7: Valor EJECUTADO a 31/12/2027 | P7: Resultado Indicador Austeridad
A8: Servicios de personal
A9: Artículo 6°.- Reducción del gasto en CPS profesionales y de apoyo a la gestión. | B9: N.A. Se registran totales. Corresponde con lo reportado en SIDEAP y SIVICOF | E9: =1-(D9/C9) ->  | L9: =1-(K9/D9) ->  | N9: =1-(M9/K9) ->  | P9: =1-(O9/M9) -> 
A10: Artículo 7°.- Horas extras, dominicales y festivos. | L10: =1-(K10/D10) ->  | N10: =1-(M10/K10) -> 
A11: Artículo 8°.- Viáticos y gastos de viaje.
A12: Artículo 9°.- Compensación por vacaciones.
A13: Artículo 10°.- Bono navideño.
A14: Artículo 11 -. Capacitación.
A15: Artículo 12 -. Bienestar.
A16: Artículo 13 -. Eventos y conmemoraciones.
A17: Artículo 14 -. Fondos educativos.
A18: Servicios Administrativos
A19: Artículo 15. Telefonía. | E19: =1-(D19/C19) -> 
A20: Artículo 16 -. Vehículos oficiales.
A21: Artículo 17 -. Adquisición de vehículos y maquinaria.
A22: Artículo 18 -. Fotocopiado, multicopiado e impresión.
A23: Artículo 19 -. Publicidad distrital.
A24: Artículo 20 -. Cajas menores.
A25: Artículo 21 -. Mantenimiento o reparación de bienes inmuebles o muebles.
A26: Artículo 22 -. Suscripciones.
A27: Artículo 23 -. Servicios públicos.

Sheet 0127-01 DADEP
A1: PLAN DE AUSTERIDAD EN EL GASTO 2025-2027
A2: Entidad
A3: Valores en Pesos Corrientes
A4: CONCEPTO (Decreto 062 de 2024) | B4: Posiciones Presupuestales Asociadas (Funcionamiento e Inversión) | C4: LÍNEA BASE | F4: PLAN DE AUSTERIDAD EN EL GASTO 2025-2027 | K4: SEGUIMIENTO RESULTADOS PLAN DE AUSTERIDAD 2025-2027
F5: ESTRATEGIAS 2025-2027 | G5: ACCIONES 2025-2027 | H5: META INDICADOR DE AUSTERIDAD
C6: AÑO 2023 | D6: AÑO 2024 | K6: AÑO 2025 | M6: AÑO 2026 | O6: AÑO 2027
C7: Valor EJECUTADO a 31/12/2023 | D7: Valor EJECUTADO a 31/12/2024 | E7: Resultado Indicador Austeridad | H7: AÑO 2025 | I7: AÑO 2026 | J7: AÑO 2027 | K7: Valor EJECUTADO a 31/12/2025 | L7: Resultado Indicador Austeridad | M7: Valor EJECUTADO a 31/12/2026 | N7: Resultado Indicador Austeridad | O7: Valor EJECUTADO a 31/12/2027 | P7: Resultado Indicador Austeridad
A8: Servicios de personal
A9: Artículo 6°.- Reducción del gasto en CPS profesionales y de apoyo a la gestión. | B9: N.A. Se registran totales. Corresponde con lo reportado en SIDEAP y SIVICOF | C9: 19795997318 | D9: 19103610605 | E9: =1-(D9/C9) -> 0.03497609652 | L9: =1-(K9/D9) -> 1 | N9: =1-(M9/K9) ->  | P9: =1-(O9/M9) -> 
A10: Artículo 7°.- Horas extras, dominicales y festivos. | B10: O211010100102 Horas extras, dominicales, festivos y recargos | C10: 10123668 | D10: 4209431 | E10: 0.5841990275 | F10: Racionalización de las horas extras de todo el personal, solamente aprobadas para los conductores. | G10: Los conductores se programan en el horario laboral, no se programan actividades adicionales. | L10: =1-(K10/D10) -> 1 | N10: =1-(M10/K10) -> 
A11: Artículo 8°.- Viáticos y gastos de viaje. | B11: O2120202010 Viáticos de los funcionarios en comisión O21202020060464241 Servicios de transporte aéreo de pasajeros, excepto los servicios de aerotaxi O21202020060464220 Servicios de transporte terrestre de pasajeros, diferente del transporte local y turístico de pasajeros | C11: 20081727 | D11: 2128498 | E11: 0.8940082195 | F11: Los viajes nacionales e internacionales se harán solamente en clase económica Programar los desplazamientos con suficiente anticipación para acceder a mejores tarifas de transporte y desarrollar otras estrategias que permitan ahorrar en la compra de tiquetes. Autorizar viáticos, gastos de viaje y gastos de desplazamiento solo si no están cubiertos por la entidad que organiza el evento | L11: 1
A12: Artículo 9°.- Compensación por vacaciones. | B12: O211010300102 Indemnización por vacaciones | C12: 47939675 | D12: 261195089 | E12: -4.448411759 | F12: Las vacaciones no deben ser acumuladas, ni interrumpidas, solo por necesidades del servicio; la indemnización de vacaciones se pagará únicamente por retiro del funcionario. | L12: 1
A13: Artículo 10°.- Bono navideño. | B13: O21202020090696620 Servicios de apoyo relacionados con el deporte y la recreación | C13: 6714000 | D13: 7273500 | E13: -0.08333333333 | F13: Solamente otorgarán con cargo a su presupuesto un bono navideño por un valor máximo de seis (6) salarios mínimos diarios legales vigentes por cada hijo o hija de los servidores públicos que a 31 de diciembre del año en curso sea menor de 13 años. | L13: 1
A14: Artículo 11 -. Capacitación. | B14: O21202020090292913 Servicios de educación para la formación y el trabajo | C14: 31607913 | D14: 0 | E14: 1 | F14: Se coordinan las capacitaciones con otras entidades y organismos distritales para disminuir costos y no se han causado gastos por alquileres de auditorios o espacios. Adicionalmente se han privilegiado el uso de tecnologías de la información y las telecomunicaciones TICS, para restringir uso de papelería y otros elementos.
A15: Artículo 12 -. Bienestar. | B15: O21202020090696620 Servicios de apoyo relacionados con el deporte y la recreación | C15: 33043978 | D15: 46094222 | E15: -0.3949356219 | F15: Dentro del plan de bienestar formulado por la entidad, se incluyen las actividades programadas por el Departamento Administrativo del Servicio Civil Distrital -DASCD; como son la conmemoración día de los secretarios y conductores y se promueve la participación de los funcionarios de la entidad en ellas. | L15: 1
A16: Artículo 13 -. Eventos y conmemoraciones. | C16: 0 | D16: 0 | F16: No se realizan eventos o conmemoraciones
A17: Artículo 14 -. Fondos educativos. | C17: 0 | D17: 0 | F17: No se realizan gastos relacionados con fondos educativos
A18: Servicios Administrativos
A19: Artículo 15. Telefonía. | B19: O21202020080484131 Servicios móviles de voz | C19: 1308554 | D19: 1147688 | E19: =1-(D19/C19) -> 0.1229341701 | F19: El servicio de teléfono fijo se encuentra controlado para llamadas a larga distancia y celular con asignación de códigos, el valor pagado se ha mantenido estable por varias vigencias. En la vigencia 2024 se eliminó una línea celular por lo cual solamente se cuenta con una línea celular asignada a la Oficina de Atención al Ciudadano, con plan cerrado. | L19: 1
A20: Artículo 16 -. Vehículos oficiales. | B20: O2120201003033331101 Gasolina motor corriente O2120202008078714102 Servicio de mantenimiento y reparación de vehículos automóviles | C20: 11244664 | D20: 6400879 | E20: 0.4307629823 | F20: La Entidad tiene dos vehículos oficiales, que tienen instalado sistema de monitoreo satelital para realizar controles. Se tienen instalados chips para registrar el consumo de combustible y se tienen establecieron topes semanales y mensuales. | L20: 1
A21: Artículo 17 -. Adquisición de vehículos y maquinaria. | C21: 0 | D21: 0 | F21: No se adquieren vehículos o maquinaria
A22: Artículo 18 -. Fotocopiado, multicopiado e impresión. | B22: O21202020080585951 Servicios de copia y reproducción | C22: 323071 | D22: 0 | E22: 1 | F22: Se tienen asignados topes para el número de copias de cada una de las dependencias, las fotocopias han venido disminuido. Se evitan al máximo las impresiones. En la vigencia 2024 no se suscribió contrato de fotocopiado
A23: Artículo 19 -. Publicidad distrital. | C23: 0 | D23: 0 | F23: No se realizan gastos de publicidad
A24: Artículo 20 -. Cajas menores. | B24: O2120201003023212899 Papeles n.c.p. O2120201003063627098 Artículos de caucho n.c.p. para escritorio O2120201003083812199 Muebles metálicos n.c.p. para oficina O2120201004024299994 Artículos de aluminio n.c.p. O21202020060464112 Servicios de transporte terrestre local regular de pasajeros O21202020080282130 Servicios de documentación y certificación jurídica O21202020080585951 Servicios de copia y reproducción O2120202008078715999 Servicio de mantenimiento y reparación de otros equipos n.c.p. O230117450120240059 Fortalecimiento del proceso de actualización del inventario de uso Público y Bienes Fiscales en Bogotá D.C | C24: 3794695 | D24: 1946252 | E24: 0.487112403 | F24: Los gastos de caja menor se han disminuido, se ciñe estrictamente a los gastos que tiene carácter de imprevistos, urgentes, imprescindibles e inaplazables. | L24: 1
A25: Artículo 21 -. Mantenimiento o reparación de bienes inmuebles o muebles. | B25: O2120201004024299991 Artículos n.c.p. de ferretería y cerrajería | C25: 8957449 | D25: 5552747 | E25: 0.3800972799 | F25:  Los gastos para mantenimiento y reparaciones locativas son mínimas, no se tiene previsto realizar reparaciones, solamente las que puedan afectar el normal funcionamiento de la Entidad. | L25: 1
A26: Artículo 22 -. Suscripciones. | C26: 0 | D26: 0 | F26: No se tienen suscripciones
A27: Artículo 23 -. Servicios públicos. | B27: O21202020060969112 Servicios de distribución de electricidad (por cuenta propia) O21202020090494110 Servicios de alcantarillado y tratamiento de aguas residuales | C27: 5345940 | D27: 5228340 | E27: 0.02199800222 | F27: Realizar inspecciones de seguimiento y/o mantenimiento general a los sistemas hidrosanitarios del DADEP. Realizar seguimiento y mantenimiento general a las redes eléctricas y luminarias de las áreas administradas por el DADEP. Se realizan campañas de sensibilización que promueven el uso eficiente y el consumo de los servicios públicos de agua y energía y la gestión integral de residuos sólidos. | L27: 1

Sheet 0131-01 UAECOB
A1: PLAN DE AUSTERIDAD EN EL GASTO 2025-2027
A2: Entidad
A3: Valores en Pesos Corrientes
A4: CONCEPTO (Decreto 062 de 2024) | B4: Posiciones Presupuestales Asociadas (Funcionamiento e Inversión) | C4: LÍNEA BASE | F4: PLAN DE AUSTERIDAD EN EL GASTO 2025-2027 | K4: SEGUIMIENTO RESULTADOS PLAN DE AUSTERIDAD 2025-2027
F5: ESTRATEGIAS 2025-2027 | G5: ACCIONES 2025-2027 | H5: META INDICADOR DE AUSTERIDAD
C6: AÑO 2023 | D6: AÑO 2024 | K6: AÑO 2025 | M6: AÑO 2026 | O6: AÑO 2027
C7: Valor EJECUTADO a 31/12/2023 | D7: Valor EJECUTADO a 31/12/2024 | E7: Resultado Indicador Austeridad | H7: AÑO 2025 | I7: AÑO 2026 | J7: AÑO 2027 | K7: Valor EJECUTADO a 31/12/2025 | L7: Resultado Indicador Austeridad | M7: Valor EJECUTADO a 31/12/2026 | N7: Resultado Indicador Austeridad | O7: Valor EJECUTADO a 31/12/2027 | P7: Resultado Indicador Austeridad
A8: Servicios de personal
A9: Artículo 6°.- Reducción del gasto en CPS profesionales y de apoyo a la gestión. | B9: N.A. Se registran totales. Corresponde con lo reportado en SIDEAP y SIVICOF | E9: =1-(D9/C9) ->  | L9: =1-(K9/D9) ->  | N9: =1-(M9/K9) ->  | P9: =1-(O9/M9) -> 
A10: Artículo 7°.- Horas extras, dominicales y festivos. | L10: =1-(K10/D10) ->  | N10: =1-(M10/K10) -> 
A11: Artículo 8°.- Viáticos y gastos de viaje.
A12: Artículo 9°.- Compensación por vacaciones. | B12: O211010300102 | C12: 149787749 | D12: 126637787 | E12: 0.1545517718 | F12: Implementar estrategia orientada a que los funcionarios de la Unidad programen vacaciones dentro de la anualidad. | G12: Mantener el principio de anualidad presupuestal solicitando a los funcionarios la programación de las vacaciones dentro de la misma anualidad | H12: 0.05 | L12: 1
A13: Artículo 10°.- Bono navideño.
A14: Artículo 11 -. Capacitación.
A15: Artículo 12 -. Bienestar.
A16: Artículo 13 -. Eventos y conmemoraciones.
A17: Artículo 14 -. Fondos educativos.
A18: Servicios Administrativos
A19: Artículo 15. Telefonía. | B19: O21202020080484120 / O21202020080484131 | C19: =84368974+6400446 -> 90769420 | D19: =71697356+18836236 -> 90533592 | E19: =1-(D19/C19) -> 0.002598099668 | F19: Dar el uso eficiente a las lineas que se encuentran en uso. | G19: Hacer seguimiento a las lineas de uso misional. Disminuir los planes de datos de las lineas vigentes. | H19: 0.05% | I19: 0.05% | J19: 0.05% | L19: 1
A20: Artículo 16 -. Vehículos oficiales.
A21: Artículo 17 -. Adquisición de vehículos y maquinaria.
A22: Artículo 18 -. Fotocopiado, multicopiado e impresión.
A23: Artículo 19 -. Publicidad distrital.
A24: Artículo 20 -. Cajas menores.
A25: Artículo 21 -. Mantenimiento o reparación de bienes inmuebles o muebles.
A26: Artículo 22 -. Suscripciones.
A27: Artículo 23 -. Servicios públicos. | B27: O21202020080686311 /O21202020080686320 / O21202020080686330 | C27: =805687310+252498455+187808617 -> 1245994382 | D27: =894700000+206801994+128103130 -> 1229605124 | E27: 0.0131535569 | F27: Implementar una estrategia para racionalizar el uso de servicios públicos en las sedes de la Unidad | G27: 1. Desarrollar una campaña de sensibilización frente al uso y ahorro eficiente del agua y de la energía en el 100% de las sedes de la Unidad 2. Inspección del estado de las redes hidrosanitarias y eléctricas del 100% de las sedes BOMBEROS DE BOGOTÁ 3. Sustituir el 92% de los sistemas no ahorradores de agua y de baja eficiencia identificados en la inspección del estado de las redes hidrosanitarias y eléctricas de las sedes de la UAE CUERPO OFICIAL DE BOMBEROS DE BOGOTÁ. 4. Implementar un sistema piloto de aprovechamiento de agua lluvia en una estación de bomberos. 5. Implementar un sistema de energía alternativa en una de las sedes de la entidad. | H27: 0.01 | I27: 0.01 | J27: 0.01 | L27: 1

Sheet 0136-01 SJD
A1: PLAN DE AUSTERIDAD EN EL GASTO 2025-2027
A2: Entidad
A3: Valores en Pesos Corrientes
A4: CONCEPTO (Decreto 062 de 2024) | B4: Posiciones Presupuestales Asociadas (Funcionamiento e Inversión) | C4: LÍNEA BASE | F4: PLAN DE AUSTERIDAD EN EL GASTO 2025-2027 | K4: SEGUIMIENTO RESULTADOS PLAN DE AUSTERIDAD 2025-2027
F5: ESTRATEGIAS 2025-2027 | G5: ACCIONES 2025-2027 | H5: META INDICADOR DE AUSTERIDAD
C6: AÑO 2023 | D6: AÑO 2024 | K6: AÑO 2025 | M6: AÑO 2026 | O6: AÑO 2027
C7: Valor EJECUTADO a 31/12/2023 | D7: Valor EJECUTADO a 31/12/2024 | E7: Resultado Indicador Austeridad | H7: AÑO 2025 | I7: AÑO 2026 | J7: AÑO 2027 | K7: Valor EJECUTADO a 31/12/2025 | L7: Resultado Indicador Austeridad | M7: Valor EJECUTADO a 31/12/2026 | N7: Resultado Indicador Austeridad | O7: Valor EJECUTADO a 31/12/2027 | P7: Resultado Indicador Austeridad
A8: Servicios de personal
A9: Artículo 6°.- Reducción del gasto en CPS profesionales y de apoyo a la gestión. | B9: O21202020080282199 / O21202020080383111 / O21202020080383112 / O21202020080383113 / O21202020080383121 / O21202020080383611 / O21202020080383990 / O232020200991199 / O232020200883129 | C9: 8584577769 | D9: 7649340616 | E9: =1-(D9/C9) -> 0.1089438733 | F9: Optimizar la contratación de servicios profesionales y apoyo a la gestión, en los proyectos que tengan definidos productos de fortalecimiento institucional según la herramienta PMR o en aquellos que incluyan la contratación de acciones relacionadas con su equivalente en el presupuesto de Gastos de Inversión. | G9: Para la vigencia 2025, se expiden CDPs con destino a la Secretaría de Hacienda Distrital - Dirección Distrital de Presupuesto, en cumplimiento de la Circular SDH-000002 del 10 de enero de 2025. Esto respalda el ahorro correspondiente al 5% en la contratación de acciones incluidas en el presupuesto de Gastos de Inversión del proyecto 8175, así como el 1% en el rubro “Adquisición de Bienes y Servicios” del Presupuesto de Gastos de Funcionamiento. Parte de dicho porcentaje se ha derivado de los contratos de prestación de servicios dentro del Presupuesto de Funcionamiento. Adicionalmente, para las vigencias 2026 y 2027, se contempla fortalecer la capacitación y eficiencia del personal interno, con el objetivo de disminuir la necesidad de contratar servicios externos. | H9: 0.01 | I9: 0 | J9: 0 | L9: =1-(K9/D9) -> 1 | N9: =1-(M9/K9) ->  | P9: =1-(O9/M9) -> 
A10: Artículo 7°.- Horas extras, dominicales y festivos. | B10: O211010100102 | C10: 48920211 | D10: 59589350 | E10: -0.2180926611 | F10: Aprobar horas extras solo cuando sea estrictamente necesario y no haya forma de realizar el trabajo dentro del horario regular | G10: Se ha implementado un procedimiento más estricto para la autorización de horas extras, las cuales ahora deberán contar con una segunda aprobación por parte del Director de Gestión Corporativa. | H10: 0 | I10: 0 | J10: 0 | L10: =1-(K10/D10) -> 1 | N10: =1-(M10/K10) -> 
A11: Artículo 8°.- Viáticos y gastos de viaje. | B11: O2120202010 | C11: 14063671 | D11: 1713087 | E11: 0.8781906232 | F11: Incentivar la participación en eventos y reuniones de manera virtual siempre que sea posible, evitando los viajes innecesarios. | G11: Solo autorizar viajes cuando sean absolutamente necesarios para el cumplimiento de metas o proyectos clave | H11: 0 | I11: 0 | J11: 0 | L11: 1
A12: Artículo 9°.- Compensación por vacaciones. | B12: O211010300102 | C12: 131702278 | D12: 538314240 | E12: -3.087357092 | F12: Fomentar la planificación anticipada de las vacaciones de los servidores públicos, evitando la acumulación de compensaciones de vacaciones no tomadas | G12: Mediante la Circular 028 de 2024, se impartieron directrices a los funcionarios con tres o más periodos de vacaciones causadas y no disfrutadas, instándolos a programar el disfrute de las mismas. Además, se les exhorta a los demas funcionarios a tomar sus días de descanso antes de que se acumulen periodos con el diligenciamiento de la programacion de vacaciones. | H12: 0 | I12: 0 | J12: 0 | L12: 1
A13: Artículo 10°.- Bono navideño. | B13: NA | C13: 0 | D13: 0 | F13: NA | G13: NA | H13: 0 | I13: 0 | J13: 0
A14: Artículo 11 -. Capacitación. | B14: O21202020090292920 | C14: 165741530 | D14: 99717648 | E14: 0.398354486 | F14: Priorizar la capacitación a través de plataformas en línea, lo que reduce costos logísticos y de desplazamiento | G14: Se comunica e invita a los funcionarios a acceder a la oferta educativa del DASC y el Aula Saber, adicionalmente, se continuara fomentando acuerdos con instituciones educativas que permitan un acceso más económico a programas de formación. | H14: 0 | I14: 0 | J14: 0 | L14: 1
A15: Artículo 12 -. Bienestar. | B15: O21202020090292919 / O21202020090696990 | C15: 225221633 | D15: 301112815 | E15: -0.3369622225 | F15: Optimizar los recursos destinados a bienestar sin sacrificar el bienestar de los servidores | G15: Se continuará fortaleciendo la colaboración con la Manzana Liévano para optimizar los recursos de la Secretaría General, la Secretaría de Gobierno y la Secretaría Jurídica, con el fin de incorporar actividades de bienestar de manera conjunta. | H15: 0 | I15: 0 | J15: 0 | L15: 1
A16: Artículo 13 -. Eventos y conmemoraciones. | C16: 0 | D16: 0 | F16: NA | G16: NA | H16: 0 | I16: 0 | J16: 0
A17: Artículo 14 -. Fondos educativos. | C17: 0 | D17: 0 | F17: NA | G17: NA | H17: 0 | I17: 0 | J17: 0
A18: Servicios Administrativos
A19: Artículo 15. Telefonía. | B19: O21202020080484131 | C19: 3320060 | D19: 1247796 | E19: =1-(D19/C19) -> 0.6241646235 | F19: Incentivar el uso de aplicaciones y plataformas digitales para reducir la dependencia de la telefonía móvil tradicional. | G19: Se promoverá el uso de aplicaciones y plataformas digitales como alternativa a la telefonía móvil tradicional. | H19: 0.0323 | I19: 0.03 | J19: 0.03 | L19: 1
A20: Artículo 16 -. Vehículos oficiales. | B20: O2120201003033331101 / O2120201003063611101 / O2120202008078714199 / O2180151 | C20: 38342071 | D20: 36730972 | E20: 0.04201909177 | F20: Continuar implementando un mantenimiento preventivo para evitar reparaciones costosas que surgen debido a la falta de mantenimiento regular. | G20: Realizar inspecciones regulares para asegurarse de que los vehículos están en buenas condiciones y no presentan fallas costosas que puedan surgir de un mantenimiento deficiente | H20: 0 | I20: 0 | J20: 0 | L20: 1
A21: Artículo 17 -. Adquisición de vehículos y maquinaria. | C21: 0 | D21: 0 | F21: NA | G21: NA | H21: 0 | I21: 0 | J21: 0
A22: Artículo 18 -. Fotocopiado, multicopiado e impresión. | B22: O21202020070373290 | C22: 10413403 | D22: 5992870 | E22: 0.4245041703 | F22: Continuar con la política de “0 papel” y fomentar aún más el uso de herramientas digitales para evitar la impresión innecesaria. | G22: Se seguirá promoviendo el uso de impresiones a doble cara, limitándolas a los casos estrictamente necesarios. Las revisiones se realizarán de manera digital, no se aprobarán impresiones a color y se mantendrá el monitoreo del consumo según las claves asignadas. Además, se continuará incentivando la reducción de impresiones innecesarias, favoreciendo el uso de documentos digitales siempre que sea posible. | H22: 0 | I22: 0 | J22: 0 | L22: 1
A23: Artículo 19 -. Publicidad distrital. | C23: 0 | D23: 0 | F23: NA | G23: NA | H23: 0 | I23: 0 | J23: 0
A24: Artículo 20 -. Cajas menores. | B24: O2120201003063633011 / O21202020060464112 / O21202020080282130 / O21202020080383151 / O2120202008038363202 / O21202020080585951 / O2120202008078711001 / O2120202008098911001 | C24: 907221 | D24: 147600 | E24: 0.8373053534 | F24: Autorizar la caja menor únicamente para gastos urgentes e imprescindibles. | G24: Implementar una revisión de los gastos hechos con caja menor para asegurarse de que se ajusten a los criterios de austeridad | H24: 0 | I24: 0 | J24: 0 | L24: 1
A25: Artículo 21 -. Mantenimiento o reparación de bienes inmuebles o muebles. | C25: 0 | D25: 0 | F25: NA | G25: NA | H25: 0 | I25: 0 | J25: 0
A26: Artículo 22 -. Suscripciones. | B26: O2120202008098911001 | C26: 563900 | D26: 8170000 | E26: -13.48838447 | F26: Validar que la suscripcion sea relevante y útil. | G26: Para el año 2024, se procedió con la suscripción a una herramienta de consulta juridica en el marco de los acuerdos sindicales. No obstante, se evaluarán nuevas opciones en el mercado con el fin de optimizar la suscripción para las vigencias 2026 y 2027. | H26: 0 | I26: 0 | J26: 0 | L26: 1
A27: Artículo 23 -. Servicios públicos. | C27: 0 | D27: 0 | F27: NA | G27: NA | H27: 0 | I27: 0 | J27: 0

Sheet 0137-01 SDSCJ
A1: PLAN DE AUSTERIDAD EN EL GASTO 2025-2027
A2: Entidad | B2: Secretaría Distrital de Seguridad Convivencia y Justicia
A3: Valores en Pesos Corrientes
A4: CONCEPTO (Decreto 062 de 2024) | B4: Posiciones Presupuestales Asociadas (Funcionamiento e Inversión) | C4: LÍNEA BASE | F4: PLAN DE AUSTERIDAD EN EL GASTO 2025-2027 | K4: SEGUIMIENTO RESULTADOS PLAN DE AUSTERIDAD 2025-2027
F5: ESTRATEGIAS 2025-2027 | G5: ACCIONES 2025-2027 | H5: META INDICADOR DE AUSTERIDAD
C6: AÑO 2023 | D6: AÑO 2024 | K6: AÑO 2025 | M6: AÑO 2026 | O6: AÑO 2027
C7: Valor EJECUTADO a 31/12/2023 | D7: Valor EJECUTADO a 31/12/2024 | E7: Resultado Indicador Austeridad | H7: AÑO 2025 | I7: AÑO 2026 | J7: AÑO 2027 | K7: Valor EJECUTADO a 31/12/2025 | L7: Resultado Indicador Austeridad | M7: Valor EJECUTADO a 31/12/2026 | N7: Resultado Indicador Austeridad | O7: Valor EJECUTADO a 31/12/2027 | P7: Resultado Indicador Austeridad
A8: Servicios de personal
A9: Artículo 6°.- Reducción del gasto en CPS profesionales y de apoyo a la gestión. | B9: N.A. Se registran totales. Corresponde con lo reportado en SIDEAP y SIVICOF | E9: =1-(D9/C9) ->  | L9: =1-(K9/D9) ->  | N9: =1-(M9/K9) ->  | P9: =1-(O9/M9) -> 
A10: Artículo 7°.- Horas extras, dominicales y festivos. | L10: =1-(K10/D10) ->  | N10: =1-(M10/K10) -> 
A11: Artículo 8°.- Viáticos y gastos de viaje.
A12: Artículo 9°.- Compensación por vacaciones.
A13: Artículo 10°.- Bono navideño.
A14: Artículo 11 -. Capacitación.
A15: Artículo 12 -. Bienestar.
A16: Artículo 13 -. Eventos y conmemoraciones.
A17: Artículo 14 -. Fondos educativos.
A18: Servicios Administrativos
A19: Artículo 15. Telefonía. | E19: =1-(D19/C19) -> 
A20: Artículo 16 -. Vehículos oficiales.
A21: Artículo 17 -. Adquisición de vehículos y maquinaria.
A22: Artículo 18 -. Fotocopiado, multicopiado e impresión.
A23: Artículo 19 -. Publicidad distrital.
A24: Artículo 20 -. Cajas menores.
A25: Artículo 21 -. Mantenimiento o reparación de bienes inmuebles o muebles.
A26: Artículo 22 -. Suscripciones.
A27: Artículo 23 -. Servicios públicos.

Sheet 0137-02 SDSCJ
A1: PLAN DE AUSTERIDAD EN EL GASTO 2025-2027
A2: Entidad | B2: Unidad Administrativa Especial Cuerpo Oficial de Bomberos
A3: Valores en Pesos Corrientes
A4: CONCEPTO (Decreto 062 de 2024) | B4: Posiciones Presupuestales Asociadas (Funcionamiento e Inversión) | C4: LÍNEA BASE | F4: PLAN DE AUSTERIDAD EN EL GASTO 2025-2027 | K4: SEGUIMIENTO RESULTADOS PLAN DE AUSTERIDAD 2025-2027
F5: ESTRATEGIAS 2025-2027 | G5: ACCIONES 2025-2027 | H5: META INDICADOR DE AUSTERIDAD
C6: AÑO 2023 | D6: AÑO 2024 | K6: AÑO 2025 | M6: AÑO 2026 | O6: AÑO 2027
C7: Valor EJECUTADO a 31/12/2023 | D7: Valor EJECUTADO a 31/12/2024 | E7: Resultado Indicador Austeridad | H7: AÑO 2025 | I7: AÑO 2026 | J7: AÑO 2027 | K7: Valor EJECUTADO a 31/12/2025 | L7: Resultado Indicador Austeridad | M7: Valor EJECUTADO a 31/12/2026 | N7: Resultado Indicador Austeridad | O7: Valor EJECUTADO a 31/12/2027 | P7: Resultado Indicador Austeridad
A8: Servicios de personal
A9: Artículo 6°.- Reducción del gasto en CPS profesionales y de apoyo a la gestión. | B9: N.A. Se registran totales. Corresponde con lo reportado en SIDEAP y SIVICOF | E9: =1-(D9/C9) ->  | L9: =1-(K9/D9) ->  | N9: =1-(M9/K9) ->  | P9: =1-(O9/M9) -> 
A10: Artículo 7°.- Horas extras, dominicales y festivos. | L10: =1-(K10/D10) ->  | N10: =1-(M10/K10) -> 
A11: Artículo 8°.- Viáticos y gastos de viaje.
A12: Artículo 9°.- Compensación por vacaciones.
A13: Artículo 10°.- Bono navideño.
A14: Artículo 11 -. Capacitación.
A15: Artículo 12 -. Bienestar.
A16: Artículo 13 -. Eventos y conmemoraciones.
A17: Artículo 14 -. Fondos educativos.
A18: Servicios Administrativos
A19: Artículo 15. Telefonía. | E19: =1-(D19/C19) -> 
A20: Artículo 16 -. Vehículos oficiales.
A21: Artículo 17 -. Adquisición de vehículos y maquinaria.
A22: Artículo 18 -. Fotocopiado, multicopiado e impresión.
A23: Artículo 19 -. Publicidad distrital.
A24: Artículo 20 -. Cajas menores.
A25: Artículo 21 -. Mantenimiento o reparación de bienes inmuebles o muebles.
A26: Artículo 22 -. Suscripciones.
A27: Artículo 23 -. Servicios públicos.

Sheet 0200-01 IPES
A1: PLAN DE AUSTERIDAD EN EL GASTO 2025-2027
A2: Entidad
A3: Valores en Pesos Corrientes
A4: CONCEPTO (Decreto 062 de 2024) | B4: Posiciones Presupuestales Asociadas (Funcionamiento e Inversión) | C4: LÍNEA BASE | F4: PLAN DE AUSTERIDAD EN EL GASTO 2025-2027 | K4: SEGUIMIENTO RESULTADOS PLAN DE AUSTERIDAD 2025-2027
F5: ESTRATEGIAS 2025-2027 | G5: ACCIONES 2025-2027 | H5: META INDICADOR DE AUSTERIDAD
C6: AÑO 2023 | D6: AÑO 2024 | K6: AÑO 2025 | M6: AÑO 2026 | O6: AÑO 2027
C7: Valor EJECUTADO a 31/12/2023 | D7: Valor EJECUTADO a 31/12/2024 | E7: Resultado Indicador Austeridad | H7: AÑO 2025 | I7: AÑO 2026 | J7: AÑO 2027 | K7: Valor EJECUTADO a 31/12/2025 | L7: Resultado Indicador Austeridad | M7: Valor EJECUTADO a 31/12/2026 | N7: Resultado Indicador Austeridad | O7: Valor EJECUTADO a 31/12/2027 | P7: Resultado Indicador Austeridad
A8: Servicios de personal
A9: Artículo 6°.- Reducción del gasto en CPS profesionales y de apoyo a la gestión. | B9: N.A. Se registran totales. Corresponde con lo reportado en SIDEAP y SIVICOF | C9: 11213260970 | D9: 14554985645 | E9: =1-(D9/C9) -> -0.2980154198 | L9: =1-(K9/D9) -> 1 | N9: =1-(M9/K9) ->  | P9: =1-(O9/M9) -> 
A10: Artículo 7°.- Horas extras, dominicales y festivos. | B10: O211010100102 Horas extras, dominicales, festivos y recargos | C10: 19790331 | D10: 27299883 | E10: -0.3794556039 | F10: Generar autorización máxima de 90 horas extras mensuales para toda la entidad, estrictamente necesarias para atender asuntos del servicio reales e imprescindibles y en ningún caso de carácter permanente a fin de reducir el número de horas extras pagadas y legalizadas | G10: Reducir el 11% anual de horas extras en cada vigencia teniendo en cuenta la línea base de la unidad de medida de la vigencia inmediatamente anterior. | H10: 0.11 | I10: 0.11 | J10: 0.11 | L10: =1-(K10/D10) -> 1 | N10: =1-(M10/K10) -> 
A11: Artículo 8°.- Viáticos y gastos de viaje. | B11: O2120202010 Viáticos de los funcionarios en comisión | C11: 0 | D11: 1384074 | F11: Para los casos de excepción, se solicitará autorización cuando sea indispensable la asistencia presencial de servidores/as públicos/as de cualquier nivel jerárquico, se justificará la respectiva comisión de servicios si es al exterior conforme lo expresa el decreto | G11: La entidad actualmente no genera gastos de viáticos por cuanto no cuenta con rubro de viáticos | L11: 1
A12: Artículo 9°.- Compensación por vacaciones. | B12: O211010300102 Indemnización por vacaciones | C12: 63692849 | D12: 149012689 | E12: -1.339551321 | F12: Pagar vacaciones en dinero únicamente por causal de retiro. Por lo anterior se realizará una reducción del 1% anual para la compensación de vacaciones correspondientes a un (1) año previa disponibilidad presupuestal y autorización previa del jefe | G12: Generar alertas a los servidores/as y jefes inmediatos, a fin de evitar la acumulación de vacaciones y se identificaran las causas que han llevado a la suspensión de vacaciones por parte de los servidores/as y priorizar sólo aquellas en las que no existe la posibilidad de detener el desarrollo de sus actividades o la posibilidad de un reemplazo y en el que se justifique la necesidad del servicio por parte del jefe inmediato. | H12: 0.01 | I12: 0.01 | J12: 0.01 | L12: 1
A13: Artículo 10°.- Bono navideño. | B13: O211010200401 Compensar | C13: 7989660 | D13: 9231750 | E13: -0.1554621849 | F13: La entidad viene dando cumplimiento en cuanto al criterio estipulado en el artículo respecto a la edad de los menores. Asimismo, se cuenta con el programa de bienestar para la entrega de bonos de los niños que se tengan caracterizados, por un valor de cada bono que no superan los 6 salarios mínimos diarios legales vigentes | G13: En el marco del programa de Bienestar, se asignan los bonos para los niños que al 31 de diciembre de 2025 tengan 12 años 11 meses y 29 días y niños o jóvenes con discapacidad menores de 18 años, con el objetivo principal de contribuir al bienestar y desarrollo integral de los hijos/as de los servidores/as públicos/as de la entidad. | L13: 1
A14: Artículo 11 -. Capacitación. | B14: O21202020090292919 Otros tipos de servicios educativos y de formación | C14: 89491290 | D14: 89880000 | E14: -0.004343551199 | F14: Existe una constante articulación de la oferta de capacitaciones con diferentes entidades, tales como el Departamento Administrativo del Servicio Civil Distrital -DASCD, la Secretaria General. El Departamento Administrativo de la Función Pública, La comisión nacional del Servicio Civil – CNSC, la ESAP, entre otros, evitando la duplicidad y optimizando recursos. | G14: La entidad actualmente considera e integra la oferta transversal de otros entidades públicas y privadas buscando ahorrar costos y optimizar recursos. Los recursos asignados al Plan Institucional de Capacitación son optimizados en cuanto a la destinación de los mismos, ya que están dirigidos a temas específicos de capacitación para los servidores/as públicos/as del IPES. | L14: 1
A15: Artículo 12 -. Bienestar. | B15: O21202020090696590 Otros servicios deportivos y recreativos | C15: 139458367 | D15: 288630197 | E15: -1.069651346 | L15: 1
A16: Artículo 13 -. Eventos y conmemoraciones. | C16: 0 | D16: 0 | F16: El IPES no realiza ninguna actividad indicada en el art 13 de decreto 062 de 2024, con excepción de la ejecución de las actividades incluidas en el programa de bienestar. | G16: La entidad no realiza, ni tiene planeadas recepciones, fiestas, agasajos, conmemoraciones o condecoraciones y que además incluyan el servicio o suministro de alimentos, que impliquen erogaciones con cargo al presupuesto. Se realizan las actividades que estén definidas en el programa de bienestar e incentivos para los/las servidores/as públicos/as, las cuales en todo caso observarán los criterios de austeridad del gasto adoptados en el presente decreto
A17: Artículo 14 -. Fondos educativos. | C17: 0 | D17: 0 | F17: La entidad no cuenta con gastos de fondos educativos por lo tanto el artículo no se aplica | G17: La entidad no cuenta con gastos de fondos educativos por lo tanto el artículo no se aplica | H17: 0 | I17: 0 | J17: 0
A18: Servicios Administrativos
A19: Artículo 15. Telefonía. | B19: O21202020080484120 Servicios de telefonía fija (acceso) | C19: 22311510 | D19: 20872086 | E19: =1-(D19/C19) -> 0.06451486251 | F19: Se redujeron la cantidad de líneas telefónicas a partir de un análisis previo sobre la necesidad de las mismas y su distribución en el edificio asegurando la atención a la ciudadanía. | G19: Las líneas telefónicas son asignadas a las dependencias y a los procesos misionales de la entidad para su funcionamiento y atención a la ciudadanía. Se tiene un plan fijo contrato con un operador garantizando el servicio. Se tiene restringidas las llamadas internacionales y no se cuenta con planes de telefonía móvil. | L19: 1
A20: Artículo 16 -. Vehículos oficiales. | B20: O2120201003033331101 Gasolina motor corriente O2120202008078714199 Servicio de mantenimiento y reparación de vehículo O232020200662291 Comercio al por menor de combustibles para vehícul O23202020088714199 Servicio de mantenimiento y reparación de vehículo | C20: 94103154 | D20: 224315000 | E20: -1.38371394 | F20: Conforme lo estipula el decreto El mantenimiento del parque automotor se adelantará de acuerdo con el plan programado para el año, a partir de los históricos de esta actividad y buscando economía en su ejecución con la aplicación del 1% de austeridad Actualmente la entidad cuenta con un contrato de combustible que controla el suministro a los vehículos por medio de un chip y tiene un límite establecido de consumo diario que no permite el llenado por cantidades mayores a las establecidas, de acuerdo a los parámetros técnicos establecidos para los recorridos y vehículos del acuerdo marco de precios. Lo anterior permite dar cumplimiento a lo estipulado en el decreto para austeridad | G20: Actualmente la entidad viene realizando reducción en los gastos mantenimientos ejecutados los cuales se van realizando de acuerdo a la situación particular de cada vehículo, es decir, que los mantenimientos se hacen efectivos de acuerdo a las necesidades presentadas y la programación para el año La entidad actualmente cumple con el requisito de austeridad en temas de consumo de gasolina y se lleva un seguimiento | H20: 0.01 | I20: 0.01 | J20: 0.01 | L20: 1
A21: Artículo 17 -. Adquisición de vehículos y maquinaria. | C21: 0 | D21: 0 | F21: Dado que la entidad no cuenta con vehículos suficientes para atender los requerimientos de movilidad y traslado para el desarrollo de las actividades misionales, se adelantará un proceso de adquisición de un vehículo. | G21: 1. Se solicitará concepto de viabilidad presupuestal de la Secretaría Distrital de Hacienda. 2. Se adelantará un proceso de selección objetiva para la adquisición de vehículos con sus debidos estudios demostrando la conveniencia y el ahorro para la entidad.
A22: Artículo 18 -. Fotocopiado, multicopiado e impresión. | B22: O21202020080585951 Servicios de copia y reproducción | C22: 0 | D22: 0 | F22: Se establecerá un cupo máximo de impresiones por subdirección, con el fin de controlar y reducir el uso de papel. Además, se llevará un registro detallado del número de impresiones realizadas por cada colaborador/a, permitiendo un seguimiento y evaluación continua del consumo de papel. Finalmente se promoverá el uso de medios digitales | G22: Reducir el 1% en el consumo de papel en la entidad teniendo como base la unidad de medida del año inmediatamente anterior, a partir de la generación de cupos de impresión por dependencia. | H22: 0.01 | I22: 0.01 | J22: 0.01
A23: Artículo 19 -. Publicidad distrital. | B23: O232020200883611 Servicios integrales de publicidad | C23: 200000000 | D23: 264806000 | E23: -0.32403 | F23: Fortalecer las alianzas de comunicación a fin de reducir el valor del contrato de divulgación de la información institucional con base en el valor de contrato de la vigencia. No se realizarán impresiones y reproducción de piezas comunicativas. | G23: Reducir el 5% en el valor contratado para la divulgación de la información relacionada con el cumplimiento de funciones. Se priorizará el uso de los diversos medios de comunicación tales como la página web y las Redes Sociales, que se encuentran a disposición de la ciudadanía en general. | H23: 0.05 | I23: 0.05 | J23: 0.05 | L23: 1
A24: Artículo 20 -. Cajas menores. | C24: 0 | D24: 0 | F24: La caja menor la cual se ceñirá estrictamente a los gastos que tengan carácter de imprevistos, urgentes, imprescindibles e inaplazables y enmarcados dentro de las políticas de racionalización del gasto. | G24: Informar a las dependencias sobre las necesidades priorizadas para el uso de la caja menor a fin de reducir el 1%. | H24: 0 | I24: 0.01 | J24: 0.01
A25: Artículo 21 -. Mantenimiento o reparación de bienes inmuebles o muebles. | B25: *O2320202005030253290 Otras obras de ingeniería civil
A26: Artículo 22 -. Suscripciones. | C26: 0 | D26: 0 | F26: La entidad no cuenta con gastos de Suscripciones por lo tanto el artículo no se aplica | G26: La entidad no cuenta con gastos de Suscripciones por lo tanto el artículo no se aplica | H26: 0 | I26: 0 | J26: 0
A27: Artículo 23 -. Servicios públicos. | B27: O21202020080686330 Servicios de distribución de agua por tubería O232020200886330 Servicios de distribución de agua por tubería O21202020080686312 Servicios de distribución de electricidad O232020200886312 Servicios de distribución de electricidad O232020200886320 Servicios de distribución de gas por tuberías | C27: =898966212+2030482488+12653136 -> 2942101836 | D27: =1089621064+2578917812+44585760 -> 3713124636 | E27: -0.2620652999 | F27: Fortalecer la concientización en los colaboradores de la entidad respecto a ahorro y uso eficiente de los recursos de agua y energía eléctrica, aportando en una reducción del 1.6 % teniendo como línea base el gasto generado por este concepto de la vigencia inmediatamente anterior | G27: Realizar una campaña anual enfocada en los beneficios del ahorro y uso eficiente de agua dirigido a los colaboradores de la Entidad (Sede administrativa). Elaborar un informe semestral de seguimiento y control a los servicios públicos de agua y energía eléctrica para establecer medidas de control. | H27: 0.016 | I27: 0.016 | J27: 0.016 | L27: 1

Sheet 0201-01 FFDS
A1: PLAN DE AUSTERIDAD EN EL GASTO 2025-2027
A2: Entidad
A3: Valores en Pesos Corrientes
A4: CONCEPTO (Decreto 062 de 2024) | B4: Posiciones Presupuestales Asociadas (Funcionamiento e Inversión) | C4: LÍNEA BASE | F4: PLAN DE AUSTERIDAD EN EL GASTO 2025-2027 | K4: SEGUIMIENTO RESULTADOS PLAN DE AUSTERIDAD 2025-2027
F5: ESTRATEGIAS 2025-2027 | G5: ACCIONES 2025-2027 | H5: META INDICADOR DE AUSTERIDAD
C6: AÑO 2023 | D6: AÑO 2024 | K6: AÑO 2025 | M6: AÑO 2026 | O6: AÑO 2027
C7: Valor EJECUTADO a 31/12/2023 | D7: Valor EJECUTADO a 31/12/2024 | E7: Resultado Indicador Austeridad | H7: AÑO 2025 | I7: AÑO 2026 | J7: AÑO 2027 | K7: Valor EJECUTADO a 31/12/2025 | L7: Resultado Indicador Austeridad | M7: Valor EJECUTADO a 31/12/2026 | N7: Resultado Indicador Austeridad | O7: Valor EJECUTADO a 31/12/2027 | P7: Resultado Indicador Austeridad
A8: Servicios de personal
A9: Artículo 6°.- Reducción del gasto en CPS profesionales y de apoyo a la gestión. | B9: N.A. Se registran totales. Corresponde con lo reportado en SIDEAP y SIVICOF. Nota: Se registran los valores reportados en el formato CB-0017. | C9: 126895389216 | D9: 104029203250 | E9: =1-(D9/C9) -> 0.180197138 | F9: Los contratos de prestación de servicios profesionales y de apoyo a la gestión se ajustará máximo con un incremento del IPC causado de cada vigencia. NOTA:Teniendo en cuenta que la reducción del 2023 frente al 2024 fue superior al 10% , se asume como linea base para el año 2024 solo una reducción del 10%. | G9: Realizar seguimiento mensual a la contratación de prestación de servicios profesionales de apoyo a la gestión para garantizar el cumplimiento de la estratégia. | H9: -0.052 | I9: -0.03 | J9: -0.03 | L9: =1-(K9/D9) -> 1 | N9: =1-(M9/K9) ->  | P9: =1-(O9/M9) -> 
A10: Artículo 7°.- Horas extras, dominicales y festivos. | B10: N/A | C10: N/A | D10: N/A | F10: N/A | G10: N/A | H10: N/A | I10: N/A | J10: N/A | L10: =1-(K10/D10) ->  | N10: =1-(M10/K10) -> 
A11: Artículo 8°.- Viáticos y gastos de viaje. | B11: N/A | C11: N/A | D11: N/A | F11: N/A | G11: N/A | H11: N/A | I11: N/A | J11: N/A
A12: Artículo 9°.- Compensación por vacaciones. | B12: N/A | C12: N/A | D12: N/A | F12: N/A | G12: N/A | H12: N/A | I12: N/A
A13: Artículo 10°.- Bono navideño. | B13: N/A | C13: N/A | D13: N/A | F13: N/A | H13: N/A | I13: N/A | J13: N/A
A14: Artículo 11 -. Capacitación. | B14: N/A | C14: N/A | D14: N/A | F14: N/A | G14: N/A | H14: N/A | I14: N/A | J14: N/A
A15: Artículo 12 -. Bienestar. | B15: O23011605560000007824 | C15: =202904086+28417914 -> 231322000 | D15: =248371043+31300000 -> 279671043 | E15: -0.2090118666 | F15: Se realizo la reducción del 8,5% para el recurso de inversión en las actividades de Bienestar | G15: Realizar las actividades de bienestar de acuerdo con el presupuesto asignado correspondiente a cada vigencia, el cual no superará el incremento del IPC. | H15: 0.085 | I15: -0.03 | J15: -0.03 | L15: 1
A16: Artículo 13 -. Eventos y conmemoraciones. | B16: N/A | C16: N/A | D16: N/A | F16: La entidad no realiza eventos y conmemoraciones. | G16: N/A | H16: N/A | I16: N/A | J16: N/A
A17: Artículo 14 -. Fondos educativos. | B17: N/A | C17: N/A | D17: N/A | F17: N/A | G17: N/A | H17: N/A | I17: N/A | J17: N/A
A18: Servicios Administrativos
A19: Artículo 15. Telefonía. | B19: N/A | C19: N/A | D19: N/A | E19: =1-(D19/C19) ->  | F19: N/A | G19: N/A | H19: N/A | I19: N/A | J19: N/A
A20: Artículo 16 -. Vehículos oficiales. | B20: N/A | C20: N/A | D20: N/A | F20: N/A | G20: N/A | H20: N/A | I20: N/A | J20: N/A
A21: Artículo 17 -. Adquisición de vehículos y maquinaria. | B21: N/A | C21: N/A | D21: N/A | F21: N/A | G21: N/A | H21: N/A | I21: N/A | J21: N/A
A22: Artículo 18 -. Fotocopiado, multicopiado e impresión. | B22: N/A | C22: N/A | D22: N/A | F22: N/A | G22: N/A | H22: N/A | I22: N/A | J22: N/A
A23: Artículo 19 -. Publicidad distrital. | B23: N/A | C23: N/A | D23: N/A | F23: N/A | G23: N/A | H23: N/A | I23: N/A | J23: N/A
A24: Artículo 20 -. Cajas menores. | B24: N/A | C24: N/A | D24: N/A | F24: N/A | G24: N/A | H24: N/A | I24: N/A | J24: N/A
A25: Artículo 21 -. Mantenimiento o reparación de bienes inmuebles o muebles. | B25: N/A | C25: N/A | D25: N/A | F25: N/A | G25: N/A | H25: N/A | I25: N/A | J25: N/A
A26: Artículo 22 -. Suscripciones. | B26: N/A | C26: N/A | D26: N/A | F26: N/A | G26: N/A | H26: N/A | I26: N/A | J26: N/A
A27: Artículo 23 -. Servicios públicos. | B27: N/A | C27: N/A | D27: N/A | F27: N/A | G27: N/A | H27: N/A | I27: N/A | J27: N/A

Sheet 0203-01 IDIGER
A1: PLAN DE AUSTERIDAD EN EL GASTO 2025-2027
A2: Entidad
A3: Valores en Pesos Corrientes
A4: CONCEPTO (Decreto 062 de 2024) | B4: Posiciones Presupuestales Asociadas (Funcionamiento e Inversión) | C4: LÍNEA BASE | F4: PLAN DE AUSTERIDAD EN EL GASTO 2025-2027 | K4: SEGUIMIENTO RESULTADOS PLAN DE AUSTERIDAD 2025-2027
F5: ESTRATEGIAS 2025-2027 | G5: ACCIONES 2025-2027 | H5: META INDICADOR DE AUSTERIDAD
C6: AÑO 2023 | D6: AÑO 2024 | K6: AÑO 2025 | M6: AÑO 2026 | O6: AÑO 2027
C7: Valor EJECUTADO a 31/12/2023 | D7: Valor EJECUTADO a 31/12/2024 | E7: Resultado Indicador Austeridad | H7: AÑO 2025 | I7: AÑO 2026 | J7: AÑO 2027 | K7: Valor EJECUTADO a 31/12/2025 | L7: Resultado Indicador Austeridad | M7: Valor EJECUTADO a 31/12/2026 | N7: Resultado Indicador Austeridad | O7: Valor EJECUTADO a 31/12/2027 | P7: Resultado Indicador Austeridad
A8: Servicios de personal
A9: Artículo 6°.- Reducción del gasto en CPS profesionales y de apoyo a la gestión. | B9: N.A. Se registran totales. Corresponde con lo reportado en SIDEAP y SIVICOF | C9: 0 | D9: 0 | E9: =1-(D9/C9) ->  | F9: N/A | G9: N/A | H9: 0 | I9: 0 | J9: 0 | K9: N/A | L9: =1-(K9/D9) ->  | N9: =1-(M9/K9) ->  | P9: =1-(O9/M9) -> 
A10: Artículo 7°.- Horas extras, dominicales y festivos. | B10: Funcionamiento - Factores constututivos de salario - horas extras | C10: 320614757 | D10: 504181790 | E10: -0.572547049 | F10: Es importante aclarar que la misonalidad de la Entidad es la coordinacion y la ejecucion de accines para la Gestion del Riesgo es imposible crear esttrategias para la disminucion del pago de Recagos, esto con el fin de cumplir con los objetivos institucionales y con la atención de emergencias y desastres que requiere la ciudad, toda vez que el personal a cargo de la Subdirección para el Manejo de Emergencias y Desastres debe estar las 24 horas del día brindando atención oportuna. | G10: Para la vigencia 2025, la subdireccion de emergencia realizara la programacion de los turnos del mes siguiente, con el a fin de que los funcionarios no sobrepasen las 190 horas mensuales disminuyendo el pago de horas extras solo se pague lo conserniente a recargos | H10: 0.01 | I10: 0.01 | J10: 0.01 | L10: =1-(K10/D10) -> 1 | N10: =1-(M10/K10) -> 
A11: Artículo 8°.- Viáticos y gastos de viaje. | B11: N.A. | C11: 187000 | D11: 0 | E11: 1 | F11: Actualmente la entidad no con cuenta con rubro de viaticos | G11: Se continuarán con las alianzas tanto nacionales como internaciones para el fortalecimiento de competencias formativas de los servidores públicos del IDIGER a costo cero (0). | H11: 0 | I11: 0 | J11: 0
A12: Artículo 9°.- Compensación por vacaciones. | B12: Funcionamiento -Remuneracion no cosntitutiva de factor salarial - Indemnizacion por Vaciones | C12: 40818314 | D12: 218894486 | E12: -4.362653783 | F12: Para la vigencia 2025- 2027 El Idiger realizara campañas de senbilizacion con el fin de que los funcionarios tomen los periodos que tienen pendientes evitando su acumulacion. de mas de dos periodos | G12: Los funcionarios no podran aculmular mas de dos periodos de vacaciones y si se interrumpen deberan ser justificas y se deberan tomar en la misma vigencia en la que se solicitaron para evitar reliquidaciones | H12: 0.01 | I12: 0.01 | J12: 0.01 | L12: 1
A13: Artículo 10°.- Bono navideño. | B13: Funcionamiento - Otros servicios deportivos y recreativos | C13: 19000000 | D13: 17500000 | E13: 0.07894736842 | F13: Se verificará la caracterización de los niños menores de 13 años y menores de 18 años en condición de discapacidad, con el fin de depurar a que población no le corresponde el beneficio en la vigencia 2025 | G13: Caracterizar a la poblacion de niños del IDIGER. | H13: 0.01 | I13: 0.01 | J13: 0.01 | L13: 1
A14: Artículo 11 -. Capacitación. | B14: Funcionamiento - servicios de apoyo educativo | C14: 50000000 | D14: 60000000 | E14: -0.2 | F14: En el marco del plan de austeridad 2025-2027 , se desarrollará una estrategia para el Plan Institucional de Capacitación 2025 de IDIGER, basada en el uso eficiente de los recursos y plataformas distritales disponibles. Estas plataformas ofrecen una amplia variedad de cursos, los cuales se integrarán en la planificación de las capacitaciones del personal. Además, se explorarán alianzas interadministrativas con otras entidades del sector público, con el fin de acceder a condiciones preferenciales y mejores precios en la contratación de cursos externos. Paralelamente, se realizará una investigación de nuevas plataformas que permitan optimizar los costos de formación, garantizando la calidad del aprendizaje y el cumplimiento de los objetivos institucionales, en línea con las directrices de austeridad. | G14: Se optimizarán los recursos en temas de capacitación con las alianzas que ofrece el Departamento Administrativo de Servicio Civil Distrital, el Departamento Administrativo de la Función Publica, la Comisión Nacional de Servicio Civil y La Escuelas Superior de Administración Pública en sus plataformas de capacitación. | H14: 0.01 | I14: 0.01 | J14: 0.01 | L14: 1
A15: Artículo 12 -. Bienestar. | B15: Funcionamiento - Otros servicios deportivos y recreativos | C15: 246346467 | D15: 320067627 | E15: -0.2992580364 | F15: Se contará con la oferta de actividades en relación a bienestar a costo cero (0) que ofertan las diferentes instituciones y cajas de compensación. | G15: Participar en la celebración de día de la secretaria y del conductor que oferta el DACSD Participar en las Olimpiadas del DACSD, y solo contratar actividades deportivas a bajo costo. En convenio con la caja de compensación realizar actividades del día de la familia y cierre de gestión. | H15: 0.01 | I15: 0.01 | J15: 0.01 | L15: 1
A16: Artículo 13 -. Eventos y conmemoraciones. | B16: Funcionamiento - Otros servicios deportivos y recreativos | C16: 163960000 | D16: 82386467 | E16: 0.497520938 | F16: Se contara con la oferta de actividade en realcion a conmeoraciones y eventos a costo cero (0) que ofertan las diefnetes instituciones y cajas de compensacion . | G16: Participar en las actividades de conmemoración de día de genero con el acompañamiento de la caja compensación. Dia del orgullo gay, temas de diversidad y la no violencia a las contra las mujeres se contará con el apoyo de las diferentes instituciones a costo (0). | H16: 0.01 | I16: 0.01 | J16: 0.01 | L16: 1
A17: Artículo 14 -. Fondos educativos. | B17: N.A | F17: La entidad no dispone de fondos educativos propios, la gestión se realiza a través del Fondo Educativo en Administración de Recursos para Capacitación Educativa de los Empleados Públicos del Distrito Capital (FRADEC). Este fondo ofrece créditos educativos que pueden ser condonados en su totalidad, en función de la prestación de servicios y el mérito académico. | G17: Continuar con la oferta de FRADEC que imparte el Departamento Admisnitrativo de Sercivio Civil Distrital
A18: Servicios Administrativos
A19: Artículo 15. Telefonía. | B19: INVERSION O232020200884190 Otros servicios de telecomunicaciones | C19: 31024640 | D19: 21685910 | E19: =1-(D19/C19) -> 0.3010101004 | F19: Realizar seguimiento mensual al consumo de las líneas telefonicas con el fin de identificar su utilidad. | G19: * Desactivacion de líneas telefonicas que presenten bajo consumo * Cambiar a planes más económicos | H19: 0.01 | I19: 0.01 | J19: 0.01 | L19: 1
A20: Artículo 16 -. Vehículos oficiales. | B20: INVERSION O23202020088714199 Servicio de mantenimiento y reparación de vehículos automotores n.c.p | C20: 163255743 | D20: 148239215 | E20: 0.09198162174 | F20: * Realizar seguimiento a los vehículos para determinar el estado de cada uno de esto | G20: *Realizar los mantenimientos preventivos, para evitar daños mayores, que impliquen altos costos para la Entidad | H20: 0.02 | I20: 0.02 | J20: 0.02 | L20: 1
A21: Artículo 17 -. Adquisición de vehículos y maquinaria. | B21: N.A | C21: N.A | D21: N.A | F21: N.A | G21: N.A | H21: N.A | I21: N.A | J21: N.A
A22: Artículo 18 -. Fotocopiado, multicopiado e impresión. | B22: O21202020070373125 -Servicios de arrendamiento sin opción de compra de equipos de telecomunicaciones sin operario | C22: 139680132 | D22: 201937557 | E22: -0.445714248 | F22: En el marco del plan de austeridad 2025-2027 , se ejecutaran estrategias para poder dar cumpliemiento a la reduccion de impresión y fotocopiado para la vigencia 2025, basada en el uso eficiente de los recursos y el incremento de herramientas digitales para el resguardo y presentacion de la informacion, evitando asi el aumento en cuanto a impresion y fotocopiado | G22: Establecer un tope de impresiones por dependencia para evitar que se incrementen las impresiones en la entidad. Establecerpoliticas donde se especifique el manejo de documento digitales, con el fin de disminuir la impresión de documentos Dar cumplimiento a las politicas de cero papel. Uso de herramientas colaborativas de google para las versiones finales de los documentos. Impresión de documentos doble cara | H22: 0.05 | I22: 0.05 | J22: 0.05 | L22: 1
A23: Artículo 19 -. Publicidad distrital. | B23: N.A | F23: N.A | G23: N.A | H23: N.A | I23: N.A | J23: N.A
A24: Artículo 20 -. Cajas menores. | B24: FUNCIONAMIENTO 1. O21202020060363399 Otros servicios de suministro de comidas 2, O21202020080282130 Servicios de documentación y certificación jurídica 3, O2120202008078715999 Servicio de mantenimiento y reparación de otros equipos n.c.p. 4, O2120202008098912197 Servicios de impresión litográfica n.c.p. | C24: 5971713 | D24: 0 | E24: 1 | F24: No se tiene programada la apertura de caja menor | G24: No se tiene programada la apertura de caja menor
A25: Artículo 21 -. Mantenimiento o reparación de bienes inmuebles o muebles. | B25: FUNCIONAMIENTO E INVERSION O21202020080585330 Servicios de limpieza general INVERSION Servicios generales de construcción de otros edificios no residenciales | C25: =26596290+277873924 -> 304470214 | D25: 297283770 | E25: 0.02360311016 | F25: *Establecer inspecciones mensuales para identificar problemas potenciales y evitar llegar a procedimientos correctivos *Realzar mantenimientos preventivos de los bienes, empezando por procesos de limpieza para asegurar su correcto funcionamiento. | G25: * Ejecutar plan de mantenimiento de infraestructura y aseo *Sustituír piezas desgastadas o dañadas de un bien antes de que puedan presentar fallas | H25: 0.01 | I25: 0.01 | J25: 0.01 | L25: 1
A26: Artículo 22 -. Suscripciones. | B26: N.A | C26: N.A | D26: N.A | F26: N.A | G26: N.A | H26: N.A | I26: N.A | J26: N.A
A27: Artículo 23 -. Servicios públicos. | B27: FUNCIONAMIENTO 1, O21202020080686312 Servicios de distribución de electricidad (a comisión o por bcontrato) 2. O21202020080686330 Servicios de distribución de agua por tubería (a comisión o por contrato) 3. O21202020090494239 Servicios generales de recolección de otros desechos | C27: =326751671+6004284 -> 332755955 | D27: =347014808+5734340 -> 352749148 | E27: -0.060083652 | F27: *Concientización y buenas prácticas: Envío de material informativo y promoción del apagado de equipos en horas no laborales. Flexibilidad laboral: Priorización del teletrabajo en días de restricciones por racionamiento *Reconversión tecnologica * Mantenimiento preventivo y correctivo de redes sanitarias *Campañas de concientización sobre el ahorro de agua * optimización de procesos para el ahorro de recursos naturales *Capacitaciones sensibilización getión de residuos | G27: *Implementacion de horario de ahorro de energía: Apagón diario de 12:00 a 2:00 pm. *Modernización de la iluminación: Sustitución de reflectores halógenos por LED solares y reparación de luminarias dañadas *Reducción de pérdidas por fugas a través de inspecciones y reparaciones * Sustitución de actividades de lavado y adaptación de las actividades a través de la implementación del teletrabajo en días de racionamiento * Capacitaciones de gestión de Residuos | H27: 0.01 | I27: 0.01 | J27: 0.01 | L27: 1

Sheet 0204-01 IDU
A1: PLAN DE AUSTERIDAD EN EL GASTO 2025-2027
A2: Entidad
A3: Valores en Pesos Corrientes
A4: CONCEPTO (Decreto 062 de 2024) | B4: Posiciones Presupuestales Asociadas (Funcionamiento e Inversión) | C4: LÍNEA BASE | F4: PLAN DE AUSTERIDAD EN EL GASTO 2025-2027 | K4: SEGUIMIENTO RESULTADOS PLAN DE AUSTERIDAD 2025-2027
F5: ESTRATEGIAS 2025-2027 | G5: ACCIONES 2025-2027 | H5: META INDICADOR DE AUSTERIDAD
C6: AÑO 2023 | D6: AÑO 2024 | K6: AÑO 2025 | M6: AÑO 2026 | O6: AÑO 2027
C7: Valor EJECUTADO a 31/12/2023 | D7: Valor EJECUTADO a 31/12/2024 | E7: Resultado Indicador Austeridad | H7: AÑO 2025 | I7: AÑO 2026 | J7: AÑO 2027 | K7: Valor EJECUTADO a 31/12/2025 | L7: Resultado Indicador Austeridad | M7: Valor EJECUTADO a 31/12/2026 | N7: Resultado Indicador Austeridad | O7: Valor EJECUTADO a 31/12/2027 | P7: Resultado Indicador Austeridad
A8: Servicios de personal
A9: Artículo 6°.- Reducción del gasto en CPS profesionales y de apoyo a la gestión. | B9: N.A. Se registran totales. Corresponde con lo reportado en SIDEAP y SIVICOF | E9: =1-(D9/C9) ->  | L9: =1-(K9/D9) ->  | N9: =1-(M9/K9) ->  | P9: =1-(O9/M9) -> 
A10: Artículo 7°.- Horas extras, dominicales y festivos. | L10: =1-(K10/D10) ->  | N10: =1-(M10/K10) -> 
A11: Artículo 8°.- Viáticos y gastos de viaje.
A12: Artículo 9°.- Compensación por vacaciones.
A13: Artículo 10°.- Bono navideño.
A14: Artículo 11 -. Capacitación.
A15: Artículo 12 -. Bienestar.
A16: Artículo 13 -. Eventos y conmemoraciones.
A17: Artículo 14 -. Fondos educativos.
A18: Servicios Administrativos
A19: Artículo 15. Telefonía. | E19: =1-(D19/C19) -> 
A20: Artículo 16 -. Vehículos oficiales.
A21: Artículo 17 -. Adquisición de vehículos y maquinaria.
A22: Artículo 18 -. Fotocopiado, multicopiado e impresión.
A23: Artículo 19 -. Publicidad distrital.
A24: Artículo 20 -. Cajas menores.
A25: Artículo 21 -. Mantenimiento o reparación de bienes inmuebles o muebles.
A26: Artículo 22 -. Suscripciones.
A27: Artículo 23 -. Servicios públicos.

Sheet 0206-01 FONCEP
A1: PLAN DE AUSTERIDAD EN EL GASTO 2025-2027
A2: Entidad
A3: Valores en Pesos Corrientes
A4: CONCEPTO (Decreto 062 de 2024) | B4: Posiciones Presupuestales Asociadas (Funcionamiento e Inversión) | C4: LÍNEA BASE | F4: PLAN DE AUSTERIDAD EN EL GASTO 2025-2027 | K4: SEGUIMIENTO RESULTADOS PLAN DE AUSTERIDAD 2025-2027
F5: ESTRATEGIAS 2025-2027 | G5: ACCIONES 2025-2027 | H5: META INDICADOR DE AUSTERIDAD
C6: AÑO 2023 | D6: AÑO 2024 | K6: AÑO 2025 | M6: AÑO 2026 | O6: AÑO 2027
C7: Valor EJECUTADO a 31/12/2023 | D7: Valor EJECUTADO a 31/12/2024 | E7: Resultado Indicador Austeridad | H7: AÑO 2025 | I7: AÑO 2026 | J7: AÑO 2027 | K7: Valor EJECUTADO a 31/12/2025 | L7: Resultado Indicador Austeridad | M7: Valor EJECUTADO a 31/12/2026 | N7: Resultado Indicador Austeridad | O7: Valor EJECUTADO a 31/12/2027 | P7: Resultado Indicador Austeridad
A8: Servicios de personal
A9: Artículo 6°.- Reducción del gasto en CPS profesionales y de apoyo a la gestión. | B9: O21202020080282199 O21202020080282210 O21202020080282221 O21202020080383132 O21202020080383990 | C9: 11935523321 | D9: 10742452911 | E9: =1-(D9/C9) -> 0.09995962288 | F9: La entidad se ajustará a las directrices de la Secretaria de Hacienda en cumplimiento del Decreto 062 de 2024. Para la vigencia 2025, la entidad generó un ahorro del 1% (que alcanzo la suma de $213.969.400) en el agredado de bienes y servicios, específicamente en el rubro de otros servicios profesionales y es asi que se expidió el CDP 208 de 2025. Adicionalmente el crecimiento en el gasto en OPS se limitará al IPC, es decir el 5.20% respecto a lo ejecutado en el 2024 por este concepto. Ademas, para las vigencias siguientes se tiene proyectado como crecimiento máximo los supuestos para IPC proyectados por SDH. | G9: Mantener el indicador de austeridad con un crecimiento máximo según los supuestos para IPC proyectados por SDH de acuerdo al literal b, numeral 3 de la circular externa No. SHD - 000002 del 10 de enero 2025, mediante seguimiento mensual y reportar a la Secretaría de Hcienda su cumplimiento. | H9: 0.052 | I9: 0.0323 | J9: 0.03 | K9: =+D9+(D9*H9) -> 1.130106046e+10 | L9: =1-(K9/D9) -> -0.052 | M9: =+K9+(K9*I9) -> 1.166608472e+10 | N9: =1-(M9/K9) -> -0.0323 | O9: =+M9+(M9*J9) -> 1.201606726e+10 | P9: =1-(O9/M9) -> -0.03
A10: Artículo 7°.- Horas extras, dominicales y festivos. | B10: O211010100101 | C10: 27889610 | D10: 32625431 | E10: -0.1698059241 | F10: Las horas extras serán autorizadas con el aval de la persona a quien se preste el servicio para atender asuntos reales e imprescindibles, esto es, en ningún caso de carácter permanente, cuyo valor reconocido no podra exceder los topes establecidos por la Ley. | G10: Para el otorgamiento de horas extras se debe contar con la aprobación del servidor a quien se preste el servicio, quien certificará que efectivamente se trata de asuntos imprescindibles y por la dinámica de la prestación del servicio, sin que en ningún caso pueda superar el IPC. | H10: 0.01 | I10: 0.01 | J10: 0.01 | K10: =+D10+(D10*H10) -> 32951685.31 | L10: =1-(K10/D10) -> -0.01 | M10: =+K10+(K10*I10) -> 33281202.16 | N10: =1-(M10/K10) -> -0.01 | O10: =+M10+(M10*J10) -> 33614014.18 | P10: -0.01
A11: Artículo 8°.- Viáticos y gastos de viaje. | C11: 0 | D11: 0 | F11: La entidad por medida de austeridad procurará no reconocer valor por concepto de Viáticos y Gastos de Viaje, sakvo disposición normativa exoresa que aspi lo exija. | G11: La entidad por medida de austeridad procurará no reconocer valor por concepto de Viáticos y Gastos de Viaje, sakvo disposición normativa exoresa que aspi lo exija | H11: 0.01 | I11: 0.01 | J11: 0.01 | K11: 0 | M11: 0 | O11: 0
A12: Artículo 9°.- Compensación por vacaciones. | B12: O211010300102 | C12: 513585355 | D12: 149908223 | E12: 0.7081142958 | F12: La entidad no autorizará a servidores activos la compensación en dinero de vacaciones causadas. | G12: Programación de vacaciones y seguimiento al cumplimiento de este, procurando que los servidores salgan al disfrute de vacaciones causadas en las respectivas vigencias. | H12: 0.01 | I12: 0.01 | J12: 0.01 | K12: 151407305.2 | L12: -0.01 | M12: 152921378.3 | N12: -0.01 | O12: 154450592.1 | P12: -0.01
A13: Artículo 10°.- Bono navideño. | B13: O21202020090696590 | C13: 26054809 | D13: 28739544 | E13: -0.1030418223 | F13: El valor de los bonos es dado por el ajuste del IPC, adicional el bono para los hijos de los funcionarios se entregará conforme con lo estipulado en la norma Distrital (Acuerdo 062 de 2024), respetando las condiciones y montos máximos establecidos , sin afectar la calidad del beneficio. Definir el monto del bono para los funcionarios de acuerdo el plan de austeridad, garantizando que sea menor al valor otorgado el año pasado, sin comprometer el bienestar básico de los funcionarios. En lo posible, el bono para los funcionarios(as) y sus hijos(as) se entregará de forma virtual (en lugar de físico), mediante vales electrónicos o tarjetas prepagas; esto permitirá reducir gastos en impresión, logística y distribución, maximizando el uso del presupuesto disponible. | G13: El bono navideño para los hijos de los funcionarios se entregará conforme con lo estipulado en la norma Distrital (Acuerdo 062 de 2024), respetando las condiciones y montos máximos establecidos , sin afectar la calidad del beneficio y acorde con el presupuesto asignado para esos efectos. Definir el monto del bono para los funcionarios de acuerdo el plan de austeridad, garantizando que sea menor al valor otorgado el año pasado, sin comprometer el bienestar básico de los funcionarios. En lo posible, el bono para los funcionarios se entregará de forma virtual (en lugar de físico), mediante vales electrónicos o tarjetas prepagas; esto permitirá reducir gastos en impresión, logística y distribución, maximizando el uso del presupuesto disponible. | H13: 0.052 | I13: 0.0323 | J13: 0.03 | K13: 30234000.29 | L13: -0.052 | M13: 31210558.5 | N13: -0.0323 | O13: 32146875.25 | P13: -0.03
A14: Artículo 11 -. Capacitación. | B14: O21202020090292913 | C14: 1835000 | D14: 51800525 | E14: -27.22916894 | F14: Deberá responder a las necesidades de capacitación institucional previamente definidas, de acuerdo con las consultas a los servidores, el Plan Estrategico Institucional y atendiendo a los compromisos previstos en el Acuerdo Laboral con las organizaciones sindicales | G14: Revisión de la oferta pública de capacitaciones, privilegiar el uso de las TICs para el desarrollo de capacitaciones virtuales con las entidades distritales y nacionales, apoyo de la caja de compensacion y ARL, aprovechar el potencial y la formación técnica de los servidores para que sean agentes de formación institucional en la transferencia de conocimientos. | H14: -0.052 | I14: -0.0323 | J14: -0.03 | K14: =+D14+(D14*H14) -> 49106897.7 | L14: 0.052 | M14: 47520744.9 | N14: 0.0323 | O14: 46095122.56 | P14: 0.03
A15: Artículo 12 -. Bienestar. | B15: O21202020090696590 | C15: 134946086 | D15: 173164852 | E15: -0.283215076 | F15: -Establecer alianzas con otras entidades para la ejecución de actividades que permitan reducir los costos -Promover el desarrollo de actividades virtuales en espacios de la entidad o del Distrito que sean gratuitos o con costos reducidos, -Realizar una planificación de actividades priorizadas para asegurar que las actividades respondan a las necesidades identificadas en el Plan de Bienestar. | G15: Consolidar actividades de bienestar en un solo evento masivo o en menor cantidad de días, lo que permitirá reducir costos asociados al desarrollo de estos . Implementar formularios electrónicos y plataformas online para inscripciones, registros y convocatorias, evitando el uso de materiales impresos y mejorando la eficiencia en la gestión de los participantes. Hacer que los eventos sean más breves y enfocados, eliminando actividades no esenciales y optimizando los tiempos de ejecución para reducir costos de organización. | H15: 0.052 | I15: 0.0323 | J15: 0.03 | K15: =+D15+(D15*H15) -> 182169424.3 | L15: -0.052 | M15: 188053496.7 | N15: -0.0323 | O15: 193695101.6 | P15: -0.03
A16: Artículo 13 -. Eventos y conmemoraciones. | B16: O21202020090696590 | C16: 108978369 | D16: 118301791 | E16: -0.0855529596 | F16: El FONCEP no destinará recursos presupuestales para llevar a cabo eventos que impliquen fiestas, agasajos u otros por fuera de las actividades del Plan de Bienestar y del debido desarrollo de las funciones misionales, como por ejemplo las actividades para la ejecución de la Política de Atención al Pensionado, dirigidas a este grupo de valor y en consonancia con la misionalidad; así como la celebración del Día Nacional de las Personas de la Tercera Edad y del Pensionado, enmarcado en la Ley 271 de 1996. Desde el área de Talento Humano se manejarán estrategias como: Establecer alianzas con otras entidades para la ejecución de actividades que permitan reducir los costos Promover el desarrollo de actividades virtuales, en espacios de la entidad o del distrito que sean gratuitos o con costos reducidos, evitando alquileres de lugares. Realizar una planificación de actividades bien definida y priorizada, para asegurar que las activdiades más importantes reciban mayor presupuesto y que otras se realicen con un presupuesto mínimo. | G16: Las actividades que desarrolle el equipo de comunicaciones dirigidas a sus grupos de valor serán, principalmente, a partir de la gestión con otras entidades y se darán en cumplimiento de la Polítia de Atención al Pensionado y/o de la misionalidad institucional. El área de Talento Humano implementara acciones: Consolidar actividades de bienestar en un solo evento masivo o en menor cantidad de días, lo que permitirá compartir gastos en catering, logística, personal y otros. Implementar formularios electrónicos y plataformas online para inscripciones, registros y convocatorias, evitando el uso de materiales impresos y mejorando la eficiencia en la gestión de los participantes. Hacer que los eventos sean más breves y enfocados, eliminando actividades no esenciales y optimizando los tiempos de ejecución para reducir costos de organización. | H16: 0.052 | I16: 0.0323 | J16: 0.03 | K16: =+D16+(D16*H16) -> 124453484.1 | L16: -0.052 | M16: 128473331.7 | N16: -0.0323 | O16: 132327531.6 | P16: -0.03
A17: Artículo 14 -. Fondos educativos. | C17: 0 | D17: 0 | F17: N/A | G17: N/A | H17: 0 | I17: 0 | J17: 0 | K17: 0 | M17: 0 | O17: 0
A18: Servicios Administrativos
A19: Artículo 15. Telefonía. | B19: O21202020080484120 O21202020080484133 | C19: 17725740 | D19: 11059890 | E19: =1-(D19/C19) -> 0.376054822 | F19: Manener el consumo de telefonía fija tomando como línea base el promedio de los dos últimos años inmediatamente anteriores. La medición se hará el pesos sobre valores facturados No adquirir planes ni equipos de telefonía móvil | G19: La Oficina de Informática y Sistemas implementa y supervisa las restricciones en llamadas a destinos nacionales, internacionales y a celulares, asegurando el cumplimiento de las políticas de austeridad Solicitar descuentos anuales al proveedor de telefonía fija | H19: 0.003 | I19: 0.003 | J19: 0.003 | K19: 11093069.67 | L19: -0.003 | M19: 11126348.88 | N19: -0.003 | O19: 11159727.93 | P19: -0.003
A20: Artículo 16 -. Vehículos oficiales. | B20: O2120201004064641004 O2120201004064693998 O2120201004094912996 O2120202008078714102 O2120202008078715299 O2120201003033331101 O2120201003033336103 | C20: 46267820 | D20: 24140749 | E20: 0.4782388926 | F20: Optimizar el uso de vehículos y generar controles de seguimiento Registro y seguimiento al consumo de combustible Evaluar la pertinencia de contar con vehículos en alquiler "Prestación de Servicios de Transporte Terrestre" La medición se realizará por el valor del consumo de combustible y mantenimientos de los vehículos en el taller más un incremento máximo del IPC y tomando como línea base el promedio de consumo de los dos años inmediatamente anteriores | G20: La asignación y uso de vehículos oficiales o contratados mediante procesos de selección objetiva con cargo a recursos de la entidad estarán autorizados exclusivamente para servidores públicos del nivel directivo Realizar monitoreo a los vehículos a través del GPS Capacitación a conductores sobre manejo defensivo y ecoeficiente Instalación de dispositivos tipo Chip para seguimiento y control del consumo de combustible Asignar tope máximo de consumo de combustible por vehículo | H20: 0.052 | I20: 0.0323 | J20: 0.03 | K20: 25396067.95 | L20: -0.052 | M20: 26216360.94 | N20: -0.0323 | O20: 27002851.77 | P20: -0.03
A21: Artículo 17 -. Adquisición de vehículos y maquinaria. | C21: 0 | D21: 0 | F21: Evitar la adquisición de vehículos | G21: N/A | H21: 0.052 | I21: 0.0323 | J21: 0.03 | K21: 0 | M21: 0 | O21: 0
A22: Artículo 18 -. Fotocopiado, multicopiado e impresión. | B22: O21202020080585951 | C22: 104808385 | D22: 57762989 | E22: 0.4488705365 | F22: Manener el consumo de los servicios de reprografía tomando como línea base el promedio de los dos últimos años más un incremento que no supere el IPC del anterior. La medición se hará el pesos La medición se realizará por el valor del consumo de los servicios de reprografía más un incremento máximo del IPC y tomando como línea base el promedio de consumo de los dos años inmediatamente anteriores | G22: Atender las solicitudes de documentos y/o expedientes por medio de los documentos que ya se tienen digitalizados y en algunos casos cargados en el gestor documental. Orientar a los usuarios para que consulten los documentos digitales. Llevar control del servicio de reprografía por usuario a través de un software instalado para tal fin. Publicación de piezas de comunicación de temas de austeridad en el manejo del servicio de reprografía. Solicitar a la OIS mediante GLPI, la activación de clave para el uso de las impresoras de modo que cada usuario deba ingresarla para imprimir o realizar cualquier otra actividad. Preferir el envío de comunicaciones externas, por medio del servicio de Notificación Electrónica Certificada. Incluir acciones positivas dentro del Plan Institucional de Gestión Ambiental-PIGA orientadas al buen uso de los recursos. | H22: 0.052 | I22: 0.0323 | J22: 0.03 | K22: 60766664.43 | L22: -0.052 | M22: 62729427.69 | N22: -0.0323 | O22: 64611310.52 | P22: -0.03
A23: Artículo 19 -. Publicidad distrital. | F23: Desde el equipo de Comunicaciones, el FONCEP no destina recursos ni celebra contratos de publicidad y/o propaganda personalizada. La estrategia de comunicaciones consiste en el la divulgación oportuna de información de interés para los grupos de valor mediante el uso orgánico de los canales con los que cuenta la entidad: correo electrónico, sitio web y teléfono, por ejemplo. | G23: Preferir los canales digitales para divulgar información de interés con los grupos de valor institucionales, teniendo en cuenta que se trata de personas adultos mayores, en tanto los canales de preferencia serán correo electrónico, teléfono y sitio web | H23: 0 | I23: 0 | J23: 0 | K23: 0 | M23: 0 | O23: 0
A24: Artículo 20 -. Cajas menores. | B24: O2120201003023211599 O2120201003063627099 O2120201003073711201 O2120201003083891201 O2120201004024299207 O2120201004024299210 O2120201004054513003 O21202020060464112 O21202020080282130 O21202020080585290 O2120202008078712001 O2120202008078715299 O2180151 | C24: 1082000 | D24: 2092759 | E24: -0.9341580407 | F24: Disminuir 0.5% el valor anual del presupuesto proyectado para la constitucion de la caja menor en cada vigencia y controlar que los gastos a realizar tengan el carácter de imprevistos, urgentes, imprescindibles e inaplazables según lo establecido la normatividad vigente. | G24: Dentro de la proyeccion del presupuesto de la caja menor evaluar los gastos por cada rubro con el fin de establecer un presupuesto que se ajuste a las posibles necesidades que se encuentren enmarcadas dentro imprevistos, urgentes, imprescindibles e inaplazables. | H24: -0.005 | I24: -0.005 | J24: -0.005 | K24: 2082295.205 | L24: 0.005 | M24: 2071883.729 | N24: 0.005 | O24: 2061524.31 | P24: 0.005
A25: Artículo 21 -. Mantenimiento o reparación de bienes inmuebles o muebles. | F25: N/A | G25: N/A | H25: 0.052 | I25: 0.0323 | J25: 0.03 | K25: 0 | M25: 0 | O25: 0
A26: Artículo 22 -. Suscripciones. | C26: 0 | D26: 0 | F26: Desde el equipo de Comunicaciones, el FONCEP no destina recursos para la suscripciones a bases de datos electrónicas, periódicos o revistas especializadas. | G26: El equipo de comunicaciones se informa mediante el usoo de medios confiables de información disponibles digitalmente y/o de manera gratuita. | H26: 0.052 | I26: 0.0323 | J26: 0.03 | K26: 0 | M26: 0 | O26: 0
A27: Artículo 23 -. Servicios públicos. | B27: O21202020080686312 | C27: 218818590 | D27: 274896010 | E27: -0.2562735643 | F27: Cumplir con las metas propuestas en el PIGA formulado para el periódo 2024-2028 para los programas de agua y energía (La entidad no cuenta cons ervicio de gas domiciliario) Metas PIGA: AGUA_: Mantener durante el periodo de vigencia del PIGA un consumo promedio de agua que no supere el 5%, equivalente al registro en metros cúbicos en las sedes de FONCEP, tomando como línea base los 987 m3 promedio por periodo de facturación del año 2024. ENERGIA_: Mantener durante el periodo de vigencia del PIGA un consumo promedio de energía que no supere el 2%, equivalente al aumento registrado en Kw/h mes entre 2021 y 2024 en las sedes de FONCEP, tomando como línea base los 24999 Kw/h consumidos en promedio de los anteriores 4 años. | G27: Desarrollar actividades de sensibilización frente al uso adecuado de los servicios públicos, implementando acciones de concientización dirigidas a los colaboradores del FONCEP. •Incluir acciones positivas dentro del Plan Institucional de Gestión Ambiental-PIGA orientadas al uso asdecuado de los recursos. •Armonizar campañas de sensibilización en los programas y estrategias a desarrollar en el PIGA. •Llevar registro del comportamiento mensual del consumo de agua y energía eléctrica. •Implementar la instalación progresiva de sistemas ahorradores. •Privilegiar el uso de lámparas ahorradores y sensores de movimiento para ahorrar energía. | H27: 0.14 | I27: 0.14 | J27: 0.14 | K27: 313381451.4 | L27: -0.14 | M27: 357254854.6 | N27: -0.14 | O27: 407270534.2 | P27: -0.14

Sheet 0206-02 FONCEP
A1: PLAN DE AUSTERIDAD EN EL GASTO 2025-2027
A2: Entidad
A3: Valores en Pesos Corrientes
A4: CONCEPTO (Decreto 062 de 2024) | B4: Posiciones Presupuestales Asociadas (Funcionamiento e Inversión) | C4: LÍNEA BASE | F4: PLAN DE AUSTERIDAD EN EL GASTO 2025-2027 | K4: SEGUIMIENTO RESULTADOS PLAN DE AUSTERIDAD 2025-2027
F5: ESTRATEGIAS 2025-2027 | G5: ACCIONES 2025-2027 | H5: META INDICADOR DE AUSTERIDAD
C6: AÑO 2023 | D6: AÑO 2024 | K6: AÑO 2025 | M6: AÑO 2026 | O6: AÑO 2027
C7: Valor EJECUTADO a 31/12/2023 | D7: Valor EJECUTADO a 31/12/2024 | E7: Resultado Indicador Austeridad | H7: AÑO 2025 | I7: AÑO 2026 | J7: AÑO 2027 | K7: Valor EJECUTADO a 31/12/2025 | L7: Resultado Indicador Austeridad | M7: Valor EJECUTADO a 31/12/2026 | N7: Resultado Indicador Austeridad | O7: Valor EJECUTADO a 31/12/2027 | P7: Resultado Indicador Austeridad
A8: Servicios de personal
A9: Artículo 6°.- Reducción del gasto en CPS profesionales y de apoyo a la gestión. | B9: N.A. Se registran totales. Corresponde con lo reportado en SIDEAP y SIVICOF | E9: =1-(D9/C9) ->  | L9: =1-(K9/D9) ->  | N9: =1-(M9/K9) ->  | P9: =1-(O9/M9) -> 
A10: Artículo 7°.- Horas extras, dominicales y festivos. | L10: =1-(K10/D10) ->  | N10: =1-(M10/K10) -> 
A11: Artículo 8°.- Viáticos y gastos de viaje.
A12: Artículo 9°.- Compensación por vacaciones.
A13: Artículo 10°.- Bono navideño.
A14: Artículo 11 -. Capacitación.
A15: Artículo 12 -. Bienestar.
A16: Artículo 13 -. Eventos y conmemoraciones.
A17: Artículo 14 -. Fondos educativos.
A18: Servicios Administrativos
A19: Artículo 15. Telefonía. | E19: =1-(D19/C19) -> 
A20: Artículo 16 -. Vehículos oficiales.
A21: Artículo 17 -. Adquisición de vehículos y maquinaria.
A22: Artículo 18 -. Fotocopiado, multicopiado e impresión.
A23: Artículo 19 -. Publicidad distrital.
A24: Artículo 20 -. Cajas menores.
A25: Artículo 21 -. Mantenimiento o reparación de bienes inmuebles o muebles.
A26: Artículo 22 -. Suscripciones.
A27: Artículo 23 -. Servicios públicos.

Sheet 0208-01 CVP
A1: PLAN DE AUSTERIDAD EN EL GASTO 2025-2027
A2: Entidad | B2: CVP
A3: Valores en Pesos Corrientes
A4: CONCEPTO (Decreto 062 de 2024) | B4: Posiciones Presupuestales Asociadas (Funcionamiento e Inversión) | C4: LÍNEA BASE | F4: PLAN DE AUSTERIDAD EN EL GASTO 2025-2027 | K4: SEGUIMIENTO RESULTADOS PLAN DE AUSTERIDAD 2025-2027
F5: ESTRATEGIAS 2025-2027 | G5: ACCIONES 2025-2027 | H5: META INDICADOR DE AUSTERIDAD
C6: AÑO 2023 | D6: AÑO 2024 | K6: AÑO 2025 | M6: AÑO 2026 | O6: AÑO 2027
C7: Valor EJECUTADO a 31/12/2023 | D7: Valor EJECUTADO a 31/12/2024 | E7: Resultado Indicador Austeridad | H7: AÑO 2025 | I7: AÑO 2026 | J7: AÑO 2027 | K7: Valor EJECUTADO a 31/12/2025 | L7: Resultado Indicador Austeridad | M7: Valor EJECUTADO a 31/12/2026 | N7: Resultado Indicador Austeridad | O7: Valor EJECUTADO a 31/12/2027 | P7: Resultado Indicador Austeridad
A8: Servicios de personal
A9: Artículo 6°.- Reducción del gasto en CPS profesionales y de apoyo a la gestión. | B9: N.A. Se registran totales. Corresponde con lo reportado en SIDEAP y SIVICOF | C9: 32152052360 | D9: 26612009727 | E9: =1-(D9/C9) -> 0.1723075893 | F9: La contratación de servicios profesionales y de apoyo en la CVP se realizara conforme con las normas vigentes en la materia y con la planeación institucional, incrementando maximo el ipc xon respecto al año anterior | G9: en la CVP se celebrarán los contratos que sean estrictamente necesarios para complementar el cumplimiento de las funciones y fines de la entidad, cuando dichas actividades no puedan realizarse con personal de planta. Se realizará una revisión minuciosa de las necesidades, actividades o tareas específicas que motiven o justifiquen dicha contratación para el cumplimiento de la misión o para el desarrollo de actividades relacionadas con la administración de la entidad, para poder determinar optimización en la cantidad de contratos a celebrar y los recursos asociados a los mismos, de igual forma, la contratación estará sujeta a la disponibilidad de recursos en el presupuesto de cada vigencia, tanto para funcionamiento como para inversión teniendo en cuenta lo estipulado por la normatividad en maeria de austeridad del gasto | H9: -0.052 | I9: -0.03 | J9: -0.03 | K9: =D9+(D9*5.2%) -> 2.799583423e+10 | L9: =1-(K9/D9) -> -0.052 | N9: =1-(M9/K9) -> 1 | P9: =1-(O9/M9) -> 
A10: Artículo 7°.- Horas extras, dominicales y festivos. | B10: O211010100102 Horas extras, dominicales, festivos y recargos | C10: 17253653 | D10: 20653929 | E10: -0.1970757149 | F10: la CVP tiene procedimientos y formatos que permiten llevar el control de las horas extras, evitando que se llegue a los topes de ley permitidos para el pago de las mismas; así mismo adelantar estrategias de compensación que permita la no incremento en la horas extras.Realizar un estricto control para el registro de las horas extras causadas, verificando que cuenten con la aprobación correspondiente. | G10: reorganización de las cargas, tareas, turnos, flexibilidad en horarios, procurando que las labores se adelanten durante la jornada laboral ordinaria. Los jefes de dependencia deberán valorar la necesidad del servicio, real e imprescindible de solicitar la autorización de horas extras | H10: 0 | I10: 0 | J10: 0 | L10: =1-(K10/D10) -> 1 | N10: =1-(M10/K10) -> 
A11: Artículo 8°.- Viáticos y gastos de viaje. | B11: O2120202010 Viáticos de los funcionarios en comisión | C11: 0 | D11: 21553993 | F11: Para el año 2025-2027, se continuará con la disminución, controles y de seguimiento a la generación de viáticos y gastos de viaje, priorizando actividades que no generen costo alguno y redunden en beneficio de las metas institucioales. | G11: para la vigencia 2025-2027, La administración priorizará la participación de invitaciones sin costo, realizará en lo posible reuniones y capacitaciones virtuales para evitar gastos de desplazamiento y compromisos que generen gastos. | H11: 0 | I11: 0 | J11: 0 | L11: 1
A12: Artículo 9°.- Compensación por vacaciones. | B12: O211010300102 Indemnización por vacaciones | C12: 10688031 | D12: 0 | E12: 1 | F12: La CVP fomentará la programación y disfrute oportuno de las vacaciones en el periodo de la vigencia para ser pagadas acorde sin ser acumuladas ni interrumpidas. | G12: acciones afirmativas mediante comunicacion, (circulares) para la programación de vacaciones de forma que no se acumulen y deben ser compensadas en dinero por retiro del servidor. | H12: 0 | I12: 0 | J12: 0
A13: Artículo 10°.- Bono navideño. | B13: O21202020080585999 Otros servicios de apoyo n.c.p. | C13: 5213328 | D13: 2461800 | E13: 0.5277872407 | F13: En cumplimiento con el Decreto 062 de 2024, se brinda bono decembrino a los hijos de los funcionarios menores de 13 años que no sobre pase de los 6 salarios minimos diarios. legales vigentes. | G13: La entidad continuará implementando su plan de bienestar, otorgando un bono navideño por cada hijo(a) de los funcionarios que cumpla con las siguientes condiciones: -Menores de 13 años. -Menores de 18 años en condición de discapacidad | H13: 0 | I13: 0 | J13: 0 | L13: 1
A14: Artículo 11 -. Capacitación. | B14: O21202020090292919 Otros tipos de servicios educativos y de formación | C14: 52138000 | D14: 56940000 | E14: -0.09210173002 | F14: La CVP Optimizará los recursos destinados a capacitaciones en el Plan Institucional de Capacitación (PIC), priorizando el uso de herramientas virtuales y la gestión de talleres presenciales únicamente cuando sean estratégicamente necesarios y financiados mediante alianzas o invitaciones externas gestionadas por el área correspondiente. | G14: Se propendrá por realizar las capacitaciones de forma virtual, disminuyendo los gastos relacionados con desplazamiento, uso de aulas y refrigerios para espacios de capacitación. | H14: 0 | I14: 0 | J14: 0 | L14: 1
A15: Artículo 12 -. Bienestar. | B15: O21202020080585999 Otros servicios de apoyo n.c.p. | C15: 125130000 | D15: 113054406 | E15: 0.09650438744 | F15: Las actividades se adelantaran en cumplimiento del marco normativo y el Plan de Bienestar e Incentivos Institucionales, sin superar los topes establecidos e implementado las medidas de austeridad correspondientes. | G15: Optimizar los recursos destinados al Plan de Bienestar sin desmejorar las condiciones de los empleados. Realizar eventos deportivos y recreativos, mediante alianzas administrativas con el apoyo de la caja de compensación de la entidad. Generar actividades de bienestar institucional por autogestión con la logistica del personal de la Dirección de Talento Humano. | H15: 0 | I15: 0 | J15: 0 | L15: 1
A16: Artículo 13 -. Eventos y conmemoraciones. | B16: O232020200883121 Servicios de relaciones públicas | C16: 0 | D16: 6220130 | F16: obtimizar los recursos asiganados en el plan de bienstar buscar añlisanzas con entidades distritales para el desarrollo de los eventos requeridos | G16: Priorizar la utilización de espacios públicos que no requieran alquiler. Además, se sugiere limitar el número de invitados y optar por formatos virtuales o híbridos cuando sea posible, lo que no solo disminuirá los costos, sino que también permitirá una mayor participación. | H16: 0 | I16: 0 | J16: 0 | L16: 1
A17: Artículo 14 -. Fondos educativos. | B17: NA | C17: 0 | D17: 0 | F17: N/A | G17: N/A | H17: 0 | I17: 0 | J17: 0
A18: Servicios Administrativos
A19: Artículo 15. Telefonía. | B19: O21202020080484120 Servicios de telefonia fija (acceso) O21202020080484210 Servicios basicos de Internet | C19: 76264212 | D19: 74581532 | E19: =1-(D19/C19) -> 0.02206382202 | F19: Mantener la política de no adquirir planes de celular para servidores públicos. | G19: La CVP adoptará modalidades de control para llamadas internacionales, nacionales y a teléfonos celulares, incluyendo la adopción de tecnología IP, las cuales sólo serán autorizados extensiones específicas, para el cumplimiento de los fines institucionales y previa justificación del jefe del área que requiera la habilitación de la línea | H19: 0.01 | I19: 0 | J19: 0 | L19: 1
A20: Artículo 16 -. Vehículos oficiales. | B20: O232020200664119 Otros servicios de transporte terrestre local de pasajero, O2120202008078714102 Servicio de mantenimiento y reparación de vehículos automóviles, O2120201003033331101 Gasolina motor corriente | C20: 6812073 | D20: 5816343 | E20: 0.1461713637 | F20: La CVP, evaluará los consumos de combustible con el fin de realizar los ajustes necesarios que impliquen ahorros de este suministro. | G20: La CVP adoptará sistemas de monitoreo (Sistema CHIP – Control de combustible) en el vehículo oficial, con el fin de establecer mecanismos de control de consumo de combustible, kilómetros y perímetros geográficos establecidos. | H20: 0.01 | I20: 0 | J20: 0 | L20: 1
A21: Artículo 17 -. Adquisición de vehículos y maquinaria. | B21: NA | C21: 0 | D21: 0 | F21: N/A | G21: N/A | H21: 0 | I21: 0 | J21: 0
A22: Artículo 18 -. Fotocopiado, multicopiado e impresión. | B22: O21202020080585951 - Servicios de copia y reproducción | C22: 20829685 | D22: 7501219 | E22: 0.6398784235 | F22: En concordancia con la normativa en austeridad del gasto desde la CVP, se planifica rigurosamente el gasto en materia de impresión, fotocopiado y multicopiado optimizando el gasto asignado a este rubro con acciones que impactan el medio ambiente en ahorro en el consumo de papel y energía eléctrica y el gasto en compra de maquinaria para tal propósito, buscamos que cada vez sea menos necesario la impresión y fotocopiado acudiendo mayormente a los archivos digitales | G22: Implementación de uso de papel 100% ecológico Fomento de impresión a blanco y negro, con el uso del papel a doble cara. - Ubicación de impresoras a blanco y negro centralizadas por piso. - Configuración de mecanismo de control para escáner e impresión mediante "Clave de 4 Dígitos (Asignada al Usuario por solicitud)". - Seguimiento al número de páginas impresas, y eliminación de archivos en cola de impresión. - Uso de medios digitales de manera preferente para la revisión documental, evitando impresiones. | H22: 0.01 | I22: 0 | J22: 0 | L22: 1
A23: Artículo 19 -. Publicidad distrital. | B23: NA | C23: 0 | D23: 0 | F23: N/A | G23: N/A | H23: 0 | I23: 0 | J23: 0
A24: Artículo 20 -. Cajas menores. | B24: 02120201003023219999 Artículos n.c.p- de pulpa de papel o cartón 021202020060464114 Servicios de transporte terrestre especial local de pasajeros 021202020080282130 Servicios de documentación y certificación jurídica 021202020080585951 Servicios de copia y reproducción O2120202008078714102 Servicio de mantenimiento y reparación de vehículos automóviles 02120202008078715999 Servicio de mantenimiento y reparación de otros equipos n.c.p | C24: 2297808 | D24: 4765000 | E24: -1.073715471 | F24: Garantizar el uso eficiente de los fondos de caja menor, limitándolo exclusivamente a gastos imprevistos, urgentes, imprescindibles e inaplazables, de acuerdo con la reglamentación vigente. | G24: Continuar con las medidas de austeridad para reducir el monto total ejecutado en cada vigencia. | H24: 0 | I24: 0 | J24: 0 | L24: 1
A25: Artículo 21 -. Mantenimiento o reparación de bienes inmuebles o muebles. | B25: O2120202008078715602 Servicio de mantenimiento y reparación de equipos de fuerza hidráulica | C25: 0 | D25: 8705398 | F25: Gestionar el funcionamiento de la entidad de manera amigable y responsable con el medio ambiente. garantizar el funcionamiento de las instalaciones hidráulicas y sanitarias de la entidad realizando mantenimiento preventivo, lavado de tanques y bombas hidráulicas, contribuyendo a la disminución de consumo del agua. | G25: Realizar visitas de inspección a las luminarias, redes eléctricas de la sede administrativa de la CVP, con el objetivo de identificar su estado y reportar daños. Realizar visitas de inspección a los baños, cocinas y demás infraestructura hidráulica de la sede administrativa de la CVP, con el objetivo de identificas el estado de las redes hidráulicas y reportar fugas o daños. | H25: 0 | I25: 0 | J25: 0 | L25: 1
A26: Artículo 22 -. Suscripciones. | B26: NA | C26: 0 | D26: 0 | F26: N/A | G26: N/A | H26: 0 | I26: 0 | J26: 0
A27: Artículo 23 -. Servicios públicos. | B27: O21202020090494239 Servicios generales de recolección de otros desechos, O21202020080686312 Servicios de distribución de electricidad (a comisión o por contrato), O21202020080686330 Servicios de distribución de agua por tubería (a comisión o por contrato) | C27: 140837272 | D27: 259284040 | E27: -0.841018619 | H27: 0 | I27: 0 | J27: 0 | L27: 1

Sheet 0211-01 IDRD
A1: PLAN DE AUSTERIDAD EN EL GASTO 2025-2027
A2: Entidad | B2: INSTITUTO DISTRITAL DE RECREACIÓN Y DEPORTE
A3: Valores en Pesos Corrientes
A4: CONCEPTO (Decreto 062 de 2024) | B4: Posiciones Presupuestales Asociadas (Funcionamiento e Inversión) | C4: LÍNEA BASE | F4: PLAN DE AUSTERIDAD EN EL GASTO 2025-2027 | K4: SEGUIMIENTO RESULTADOS PLAN DE AUSTERIDAD 2025-2027
F5: ESTRATEGIAS 2025-2027 | G5: ACCIONES 2025-2027 | H5: META INDICADOR DE AUSTERIDAD
C6: AÑO 2023 | D6: AÑO 2024 | K6: AÑO 2025 | M6: AÑO 2026 | O6: AÑO 2027
C7: Valor EJECUTADO a 31/12/2023 | D7: Valor EJECUTADO a 31/12/2024 | E7: Resultado Indicador Austeridad | H7: AÑO 2025 | I7: AÑO 2026 | J7: AÑO 2027 | K7: Valor EJECUTADO a 31/12/2025 | L7: Resultado Indicador Austeridad | M7: Valor EJECUTADO a 31/12/2026 | N7: Resultado Indicador Austeridad | O7: Valor EJECUTADO a 31/12/2027 | P7: Resultado Indicador Austeridad
A8: Servicios de personal
A9: Artículo 6°.- Reducción del gasto en CPS profesionales y de apoyo a la gestión. | B9: N.A. Se registran totales. Corresponde con lo reportado en SIDEAP y SIVICOF | C9: 117465235516 | E9: =1-(D9/C9) -> 1 | F9: Con el objetivo de cumplir con los nuevos retos del plan de desarrollo 2024-2027 , el cual incrementó las metas para el Instituto, el IDRD no podrá incluir este concepto en el plan de austeridad. | G9: No aplica | H9: No aplica | I9: No aplica | J9: No aplica | L9: =1-(K9/D9) ->  | N9: =1-(M9/K9) ->  | P9: =1-(O9/M9) -> 
A10: Artículo 7°.- Horas extras, dominicales y festivos. | L10: =1-(K10/D10) ->  | N10: =1-(M10/K10) -> 
A11: Artículo 8°.- Viáticos y gastos de viaje.
A12: Artículo 9°.- Compensación por vacaciones.
A13: Artículo 10°.- Bono navideño.
A14: Artículo 11 -. Capacitación.
A15: Artículo 12 -. Bienestar.
A16: Artículo 13 -. Eventos y conmemoraciones.
A17: Artículo 14 -. Fondos educativos.
A18: Servicios Administrativos
A19: Artículo 15. Telefonía. | C19: Monica | E19: =1-(D19/C19) ->  | F19: Mantener unicamente las lineas celulares destinadas para atención a la ciudadania
A20: Artículo 16 -. Vehículos oficiales. | C20: Monica | F20: Solo se tiene asignado vehicilo permanente para la Dirección General y temas misionales .
A21: Artículo 17 -. Adquisición de vehículos y maquinaria. | C21: 0 | D21: 0 | F21: Vehiculo hibrido
A22: Artículo 18 -. Fotocopiado, multicopiado e impresión. | C22: Hernan
A23: Artículo 19 -. Publicidad distrital.
A24: Artículo 20 -. Cajas menores.
A25: Artículo 21 -. Mantenimiento o reparación de bienes inmuebles o muebles. | C25: 0 | D25: 0
A26: Artículo 22 -. Suscripciones.
A27: Artículo 23 -. Servicios públicos. | C27: monica

Sheet 0213-01 IDPC
A1: PLAN DE AUSTERIDAD EN EL GASTO 2025-2027
A2: Entidad | B2: |
A3: Valores en Pesos Corrientes
A4: CONCEPTO (Decreto 062 de 2024) | B4: Posiciones Presupuestales Asociadas (Funcionamiento e Inversión) | C4: LÍNEA BASE | F4: PLAN DE AUSTERIDAD EN EL GASTO 2025-2027 | K4: SEGUIMIENTO RESULTADOS PLAN DE AUSTERIDAD 2025-2027
F5: ESTRATEGIAS 2025-2027 | G5: ACCIONES 2025-2027 | H5: META INDICADOR DE AUSTERIDAD
C6: AÑO 2023 | D6: AÑO 2024 | K6: AÑO 2025 | M6: AÑO 2026 | O6: AÑO 2027
C7: Valor EJECUTADO a 31/12/2023 | D7: Valor EJECUTADO a 31/12/2024 | E7: Resultado Indicador Austeridad | H7: AÑO 2025 | I7: AÑO 2026 | J7: AÑO 2027 | K7: Valor EJECUTADO a 31/12/2025 | L7: Resultado Indicador Austeridad | M7: Valor EJECUTADO a 31/12/2026 | N7: Resultado Indicador Austeridad | O7: Valor EJECUTADO a 31/12/2027 | P7: Resultado Indicador Austeridad
A8: Servicios de personal
A9: Artículo 6°.- Reducción del gasto en CPS profesionales y de apoyo a la gestión. | B9: N.A. Se registran totales. Corresponde con lo reportado en SIDEAP y SIVICOF | E9: =1-(D9/C9) ->  | L9: =1-(K9/D9) ->  | N9: =1-(M9/K9) ->  | P9: =1-(O9/M9) -> 
A10: Artículo 7°.- Horas extras, dominicales y festivos. | B10: O211010100102 Horas extras, dominicales, festivos y recargos | C10: 11379851 | D10: 11634735 | E10: -0.0223978328 | F10: Se reconocerán las horas extras a los funcionarios de los niveles técnico y asistencial, según la normativa vigente y las necesidades del servicio. | G10: Autorizar y registrar las horas extras de los funcionarios según la normativa vigente y las necesidades del servicio. | L10: =1-(K10/D10) -> 1 | N10: =1-(M10/K10) -> 
A11: Artículo 8°.- Viáticos y gastos de viaje. | B11: N/A | C11: 0 | D11: 0 | F11: Los eventos fuera del Distrito Capital serán financiados por invitaciones de los organizadores y la Dirección General, evitando gastos en nuestro presupuesto. | G11: Buscar gestionar las invitaciones y coordinar con la Dirección General el financiamiento de eventos fuera del Distrito Capital, sin afectar el presupuesto.
A12: Artículo 9°.- Compensación por vacaciones. | B12: O211010300102 Indemnización por vacaciones | C12: 58574020 | D12: 160724625 | E12: -1.74395756 | F12: La entidad promoverá la planificación y disfrute oportuno de las vacaciones dentro del período de vigencia, asegurando que sean pagadas de acuerdo con la normativa, sin ser acumuladas ni interrumpidas. | G12: Se adoptarán las medidas necesarias para que los servidores hagan uso de sus períodos de vacaciones en el año siguiente a su derecho adquirido, conforme a lo establecido por la normativa aplicable, evitando que, al momento de su retiro, existan períodos de vacaciones acumulados. | L12: 1
A13: Artículo 10°.- Bono navideño. | B13: O21202020090696990 - Otros servicios de diversión y entretenimiento n.c.p. | C13: 4531950 | D13: 4509570 | E13: 0.004938271605 | L13: 1
A14: Artículo 11 -. Capacitación.
A15: Artículo 12 -. Bienestar. | B15: O21202020090696990 - Otros servicios de diversión y entretenimiento n.c.p.
A16: Artículo 13 -. Eventos y conmemoraciones. | B16: O21202020090696990 - Otros servicios de diversión y entretenimiento n.c.p.
A17: Artículo 14 -. Fondos educativos.
A18: Servicios Administrativos
A19: Artículo 15. Telefonía. | B19: O21202020080484110 Servicios de operadores (conexión) O21202020080484120 Servicios de telefonía fija (acceso) | C19: 8680025 | D19: 4809423 | E19: =1-(D19/C19) -> 0.4459206051 | L19: 1
A20: Artículo 16 -. Vehículos oficiales. | B20: O2120202008078714102 Servicio de mantenimiento y reparación de vehículo O2120201003033331101 Gasolina motor corriente O2120201003033336103 Diésel oil ACPM (fuel gas gasoil marine gas) | C20: =30000000+31500000+1500000 -> 63000000 | D20: =28766000+35000000+1500000 -> 65266000 | E20: -0.03596825397 | F20: Mejorar la eficiencia en el uso de los vehículos institucionales, implementando controles rigurosos sobre los desplazamientos, el consumo de combustible y el mantenimiento preventivo, asegurando su asignación prioritaria para actividades administrativas y misionales claves. | G20: Implementar un sistema de registro para los viajes realizados con los vehículos institucionales, donde cada conductor anote el propósito del viaje, el kilometraje, el consumo de combustible y la fecha del mantenimiento. Este registro permitiría llevar un control más preciso y facilitar la asignación de los vehículos según las necesidades. | L20: 1
A21: Artículo 17 -. Adquisición de vehículos y maquinaria. | B21: N/A | C21: 0 | D21: 0
A22: Artículo 18 -. Fotocopiado, multicopiado e impresión. | B22: O21202020070373123 Servicios de arrendamiento sin opción de compra de | C22: 13000000 | D22: 0 | E22: 1
A23: Artículo 19 -. Publicidad distrital. | B23: N/A | C23: 0 | D23: 0
A24: Artículo 20 -. Cajas menores. | B24: O2120202008098912197 - Servicios de impresión litográfica n.c.p. O21202020080787390 - Servicios de instalación de otros bienes n.c.p. O2120202008078731099 - Servicio de instalación de otros productos metálicos elaborados n.c.p. O2120202008078724001 - Restauración y reparación de muebles O21202020080585951 - Servicios de copia y reproducción O21202020080282199 - Otros servicios jurídicos n.c.p. O21202020080282130 - Servicios de documentación y certificación jurídica O21202020060767430 - Servicios de parqueaderos O21202020060464220 - Servicios de transporte terrestre de pasajeros, diferente del transporte local y turístico de pasajeros O21202020080585951 - Servicios de copia y reproducción O2120202008078731099 - Servicio de instalación de otros productos metálicos elaborados n.c.p. O21202020080282130 - Servicios de documentación y certificación jurídica O21202020080282130 - Servicios de documentación y certificación jurídica O2120202008078724001 - Restauración y reparación de muebles O21202020080282130 - Servicios de documentación y certificación jurídica O21202020080282130 - Servicios de documentación y certificación jurídica O21202020080282130 - Servicios de documentación y certificación jurídica O21202020080787390 - Servicios de instalación de otros bienes n.c.p. | C24: 2301857 | D24: 1857400 | E24: 0.1930862777 | F24: Garantizar el uso eficiente de los fondos de caja menor, limitándolo exclusivamente a gastos imprevistos, urgentes, imprescindibles e inaplazables, de acuerdo con la reglamentación vigente. | G24: Continuar con las medidas de austeridad para reducir el monto total ejecutado en cada vigencia. | L24: 1
A25: Artículo 21 -. Mantenimiento o reparación de bienes inmuebles o muebles. | B25: O2120202008078715399 - Servicios de mantenimiento y reparación de equipos y aparatos de telecomunicaciones n.c.p. O21202020080787130 - Servicios de mantenimiento y reparación de computadores y equipos periféricos O2120202008078715701 - Servicio de mantenimiento y reparación de ascensores O2120202008078715602 - Servicio de mantenimiento y reparación de equipos de fuerza hidráulica y de potencia neumática, bombas, compresores y válvulas O2120202008078715701 - Servicio de mantenimiento y reparación de ascensores | C25: 14000000 | D25: 59459000 | E25: -3.247071429 | L25: 1
A26: Artículo 22 -. Suscripciones. | B26: N/A | C26: 0 | D26: 0
A27: Artículo 23 -. Servicios públicos. | B27: O21202020080383151 Servicios de alojamiento de sitios web (hosting) O21202020080484150 Servicios de transmisión de datos O21202020080484290 Otros servicios de telecomunicaciones vía Internet O21202020080686312 Servicios de distribución de electricidad (a comis O21202020080686330 Servicios de distribución de agua por tubería (a c O21202020090494239 Servicios generales de recolección de otros desech O232020200884290 Otros servicios de telecomunicaciones vía Internet O232020200886312 Servicios de distribución de electricidad (a comis O232020200886330 Servicios de distribución de agua por tubería (a c O232020200994239 Servicios generales de recolección de otros desech | C27: 483426328 | D27: 452806291 | E27: 0.06333961397 | L27: 1

Sheet 0214-01 IDIPRON
A1: PLAN DE AUSTERIDAD EN EL GASTO 2025-2027
A2: Entidad
A3: Valores en Pesos Corrientes
A4: CONCEPTO (Decreto 062 de 2024) | B4: Posiciones Presupuestales Asociadas (Funcionamiento e Inversión) | C4: LÍNEA BASE | F4: PLAN DE AUSTERIDAD EN EL GASTO 2025-2027 | K4: SEGUIMIENTO RESULTADOS PLAN DE AUSTERIDAD 2025-2027
F5: ESTRATEGIAS 2025-2027 | G5: ACCIONES 2025-2027 | H5: META INDICADOR DE AUSTERIDAD
C6: AÑO 2023 | D6: AÑO 2024 | K6: AÑO 2025 | M6: AÑO 2026 | O6: AÑO 2027
C7: Valor EJECUTADO a 31/12/2023 | D7: Valor EJECUTADO a 31/12/2024 | E7: Resultado Indicador Austeridad | H7: AÑO 2025 | I7: AÑO 2026 | J7: AÑO 2027 | K7: Valor EJECUTADO a 31/12/2025 | L7: Resultado Indicador Austeridad | M7: Valor EJECUTADO a 31/12/2026 | N7: Resultado Indicador Austeridad | O7: Valor EJECUTADO a 31/12/2027 | P7: Resultado Indicador Austeridad
A8: Servicios de personal
A9: Artículo 6°.- Reducción del gasto en CPS profesionales y de apoyo a la gestión. | B9: N.A. Se registran totales. Corresponde con lo reportado en SIDEAP y SIVICOF | C9: 29524231001 | D9: 26781473393 | E9: =1-(D9/C9) -> 0.09289852826 | F9: Mejorar el apoyo a la gestión y el desempeño institucional dentro del IDIPRON. De acuerdo con la circular 000002 se tendrá un incremento máximo de este concepto con las proyecciones macro dispuestas por la SHD, por lo tanto, no se presentará ahorro en las metas 2025-2027 | G9: Racionalizar la contratación de recurso humano de apoyo a la gestión de la entidad No incremento de honorarios de los contratistas Uso de tecnologías y herramientas digitales Contratos a largo plazo Optimización de procesos internos | H9: 0 | I9: 0 | J9: 0 | L9: =1-(K9/D9) -> 1 | N9: =1-(M9/K9) ->  | P9: =1-(O9/M9) -> 
A10: Artículo 7°.- Horas extras, dominicales y festivos. | B10: O211010100102 Horas extras y dominicales | C10: 9546574 | D10: 12694259 | E10: -0.329718808 | F10: Realizar un estricto control para el pago de las horas extras causadas, verificando que cuenten con la aprobación correspondiente. | G10: Los jefes de dependencia deberán valorar por cada caso la necesidad del servicio, real e imprescindible de solicitar la autorización de horas extras y de ser posible evitarla, acudiendo a estrategias de reorganización de las cargas, tareas, turnos, flexibilidad en horarios, procurando que las labores se adelanten durante la jornada laboral ordinaria | H10: 0 | I10: 0 | J10: 0 | L10: =1-(K10/D10) -> 1 | N10: =1-(M10/K10) -> 
A11: Artículo 8°.- Viáticos y gastos de viaje. | B11: N/A | C11: 0 | D11: 0 | F11: Continuar con la disminución y controles a la generación de viáticos y gastos de viaje, priorizando actividades que no generen costo alguno y redunden en beneficio de las metas institucionales. | G11: Priorizar la participación de invitaciones sin costo y realizar en la medida de las posibilidades reuniones y capacitaciones virtuales para evitar gastos de desplazamiento y compromisos que generen gastos. | H11: 1 | I11: 1 | J11: 1
A12: Artículo 9°.- Compensación por vacaciones. | B12: O211010300102 Indemnización por vacaciones | C12: 0 | D12: 0 | F12: La entidad fomentará la programación y disfrute oportuno de las vacaciones en el periodo de la vigencia para ser pagadas acorde sin ser acumuladas ni interrumpidas. | G12: Difundir sobre la toma de vacaciones en el periodo establecido para que estas no se acumulen ni se han interrumpidas. | H12: 1 | I12: 1 | J12: 1
A13: Artículo 10°.- Bono navideño. | B13: O21202020090696590 Otros servicios deportivos y recreativos | C13: 13607040 | D13: 13428000 | E13: 0.01315789474 | F13: Se continuarán implementado acciones para racionalizar los recursos por este concepto. | G13: Los bonos navideños, continuarán siendo entregados a los hijos de los funcionarios que cumplan con las condiciones que señala la norma. | H13: 0 | I13: 0 | J13: 0.01 | L13: 1
A14: Artículo 11 -. Capacitación. | B14: O21202020090292913 Servicios de educación para la formación y el trabajo | C14: 132400000 | D14: 120000000 | E14: 0.09365558912 | F14: Optimizar los recursos destinados a capacitaciones mediante la implementación del Plan Institucional de Capacitación (PIC), priorizando el uso de herramientas virtuales y la gestión de talleres presenciales únicamente cuando sean estratégicamente necesarios y financiados mediante alianzas o invitaciones externas gestionadas por el área correspondiente. | G14: Continuar con la programación anual de capacitaciones basadas en necesidades prioritarias, favoreciendo la modalidad virtual para reducir costos, y gestionar alianzas estratégicas con entidades externas para acceder a talleres presenciales sin incurrir en gastos adicionales. | H14: 0 | I14: 0 | J14: 0 | L14: 1
A15: Artículo 12 -. Bienestar. | B15: O21202020090696590 Otros servicios deportivos y recreativos | C15: 251899214 | D15: 272658832 | E15: -0.08241239689 | F15: Mejorar el apoyo a la gestión y el desempeño institucional dentro del IDIPRON. | G15: Optimizar los recursos destinados al Plan de Bienestar sin desmejorar las condiciones de los empleados. | H15: 0 | I15: 0 | J15: 0 | L15: 1
A16: Artículo 13 -. Eventos y conmemoraciones. | B16: O21202020090696590 Otros servicios deportivos y recreativos | C16: 251899214 | D16: 272658832 | E16: -0.08241239689 | F16: Mejorar el apoyo a la gestión y el desempeño institucional dentro del IDIPRON. | G16: Optimizar los recursos destinados al Plan de Bienestar sin desmejorar las condiciones de los empleados. Fomentar que todo evento que se realice debe cumplir con los criterios de sencillez, moderación y austeridad. | H16: 0 | I16: 0 | J16: 0 | L16: 1
A17: Artículo 14 -. Fondos educativos. | C17: 23765492 | D17: 19461700 | E17: 0.181094168 | F17: Mejorar el apoyo a la gestión y el desempeño institucional dentro del IDIPRON. | G17: Incentivar la oferta distrital en el Fondo Educativo en Administración de Recursos para Capacitación Educativa de los Empleados Públicos del Distrito Capital - FRADEC y el Fondo Educativo del Distrito para hijos de empleados - FEDHE, para optimizar los recursos y evitar duplicar esfuerzos y recursos financieros e institucionales destinados a este fin. | H17: 0 | I17: 0 | J17: 0 | L17: 1
A18: Servicios Administrativos
A19: Artículo 15. Telefonía. | B19: O232020200884131 Servicios Móviles de voz | C19: 18305088 | D19: 6489044 | E19: =1-(D19/C19) -> 0.6455059927 | F19: Mejorar el apoyo a la gestión y el desempeño institucional dentro de la Entidad. | G19: Mantener la política de no adquirir planes de celular para servidores públicos. Controlar y monitorear las llamadas nacionales y a celulares, autorizándolas únicamente para asuntos misionales. | H19: 0 | I19: 0 | J19: 0 | L19: 1
A20: Artículo 16 -. Vehículos oficiales. | B20: O23202020088714199 Servicio de mantenimiento y reparación de vehiculos automoteres NCP O2320201003033331101 Gasolina motor corriente O21202020080484190 Otros servicios de telecomunicaciones (GPS) | C20: 1106689910 | D20: 915208015 | E20: 0.1730221747 | F20: Gestionar el funcionamiento de la entidad de manera amigable y responsable con el medio ambiente. Optimizar el uso de los vehículos institucionales mediante controles de desplazamientos, consumo de combustible y mantenimiento preventivo, priorizando su asignación para asuntos administrativos y misionales esenciales. | G20: Realizar el cierre de los parqueaderos el primer jueves hábil de cada mes, para vehiculos particulares de los funcionarios y/o contratistas, para incentivar el uso de medios de trasporte sostenibles y amigables con el medio ambiente Realizar jornadas de promoción para la personalización de la Tarjeta Tullave en la Sedes Administrativas y Unidades de Protección Integral del IDIPRON, con el objetivo de insentivar el uso del tranporte publico y movilidad sostenible Realizar seguimiento al consumo de combustible de la flota propia del IDIPRON Realizar seguimiento al mantenimiento preventivo y correctivo de la flota propia del IDIPRON Realizar el seguimiento de los servicios y tarifas del transporte contratado | H20: 0.01 | I20: 0.005 | J20: 0.005 | L20: 1
A21: Artículo 17 -. Adquisición de vehículos y maquinaria. | B21: N/A | C21: 0 | D21: 0 | F21: Adecuar, mantener y mejorar la infraestructura física del instituto para garantizar el óptimo funcionamiento administrativo y operativo de las unidades de protección integral y las sedes administrativas. | G21: Optimizar adquisiciones no esenciales | H21: 1 | I21: 1 | J21: 1
A22: Artículo 18 -. Fotocopiado, multicopiado e impresión. | B22: O232020200885951 Servicios de copia y reproducción | C22: 234501047 | D22: 184208574 | E22: 0.2144658783 | F22: Gestionar el funcionamiento de la entidad de manera amigable y responsable con el medio ambiente. | G22: Realizar campañas de comunicación sobre la implementación de la política de cero papel. Realizar seguimiento al consumo de papel utilizado en las impresoras y/o fotocopiadoras por dependencias que permitan generar alertas de consumo excesivo de papel en las sedes administrativas del IDIPRON. | H22: 0.02 | I22: 0.01 | J22: 0.005 | L22: 1
A23: Artículo 19 -. Publicidad distrital. | B23: N/A | C23: 0 | D23: 0 | F23: Mejorar el apoyo a la gestión y el desempeño institucional dentro de la Entidad. | G23: Optimizar adquisiciones no esenciales | H23: 1 | I23: 1 | J23: 1
A24: Artículo 20 -. Cajas menores. | B24: N/A | C24: 0 | D24: 0 | F24: Mejorar el apoyo a la gestión y el desempeño institucional dentro de la Entidad. | G24: Optimizar adquisiciones no esenciales | H24: 1 | I24: 1 | J24: 1
A25: Artículo 21 -. Mantenimiento o reparación de bienes inmuebles o muebles. | B25: Pospres asociadas a ferretería | C25: 1018738044 | D25: 649747227 | E25: 0.3622038258 | F25: Adecuar, mantener y mejorar la infraestructura física del Instituto para garantizar el óptimo funcionamiento administrativo y operativo de las unidades de protección integral y las sedes administrativas. Gestionar el funcionamiento de la entidad de manera amigable y responsable con el medio ambiente. | G25: Realizar visitas de inspeccion a las luminarias, redes eléctricas de las sedes administrativas y/o Unidades de Protección Integral, con el objetivo de identificar su estado y reportar daños. Realizar visitas de inspeccion a los baños, cocinas y demas infraestructura hidraulica de las sedes administrativas y/o unidades de protección integral, con el objetivo de identificas el estado de las redes hídraulicas y reportar fugas o daños. Realizar seguimiento del servicio de vigilancia en todas las Unidades de Protección Integral y las sedes administrativas del IDIPRON, para la protección de los bienes muebles e inmuebles de la entidad. | H25: 0 | I25: 0 | J25: 0 | L25: 1
A26: Artículo 22 -. Suscripciones. | B26: O232020200884633 Servicio y distribución de programas multicanal en paquete controlado de programación | C26: 17735778 | D26: 20527700 | E26: -0.1574175094 | F26: Mejorar el apoyo a la gestión y el desempeño institucional dentro de la Entidad. | G26: Optimizar adquisiciones no esenciales | H26: 0 | I26: 0 | J26: 0 | L26: 1
A27: Artículo 23 -. Servicios públicos. | B27: O232020200994110 Servicio de alcantarillado y tratamiento de aguas residuales O232020200669112 Servicio y distribución de electricidad O232020200669120 Servicios de distribución de gas por tubería O232020200669210 Servicio y distribución de agua por tubería O2380156 Impuesto de alumbrado público O232020200994110 Servicio de alcantarillado y tratamiento de aguas residuales O230117410420240041 Servicios generales de recolección de otros desechos | C27: 1832745886 | D27: 1829647770 | E27: 0.00169042311 | F27: Gestionar el funcionamiento de la entidad de manera amigable y responsable con el medio ambiente. Mejorar el apoyo a la gestión y el desempeño institucional dentro de la Entidad. | G27: Realizar campañas de comunicación para el ahorro de agua. Realizar campañas de comunicación para el ahorro de energía. Realizar sensibilización para disminución de consumo de aguas en las sedes administrativas y Unidades de Protección Integral del IDIPRON habilitadas y en operación con población de NNAJ Realizar sensibilización para la disminución de consumos de energía eléctrica en las sedes administrativas y Unidades de Protección Integral del IDIPRON habilitadas y en operación con población de NNAJ Realizar seguimiento a los consumos de agua generados en las sedes administrativas y Unidades de Protección Integral del IDIPRON Gestionar la implementacion de sistemas de captación de agua lluvia en las sedes administrativas y unidades de protección integral donde se tengan implementados los jardines verticales, las zonas verdes y/o huertas escolares. Realizar seguimiento del manejo y pagos de los servicios públicos | H27: 0.001 | I27: 0.001 | J27: 0.001 | L27: 1

Sheet 0215-01 FUGA
A1: PLAN DE AUSTERIDAD EN EL GASTO 2025-2027
A2: Entidad
A3: Valores en Pesos Corrientes
A4: CONCEPTO (Decreto 062 de 2024) | B4: Posiciones Presupuestales Asociadas (Funcionamiento e Inversión) | C4: LÍNEA BASE | F4: PLAN DE AUSTERIDAD EN EL GASTO 2025-2027 | K4: SEGUIMIENTO RESULTADOS PLAN DE AUSTERIDAD 2025-2027
F5: ESTRATEGIAS 2025-2027 | G5: ACCIONES 2025-2027 | H5: META INDICADOR DE AUSTERIDAD
C6: AÑO 2023 | D6: AÑO 2024 | K6: AÑO 2025 | M6: AÑO 2026 | O6: AÑO 2027
C7: Valor EJECUTADO a 31/12/2023 | D7: Valor EJECUTADO a 31/12/2024 | E7: Resultado Indicador Austeridad | H7: AÑO 2025 | I7: AÑO 2026 | J7: AÑO 2027 | K7: Valor EJECUTADO a 31/12/2025 | L7: Resultado Indicador Austeridad | M7: Valor EJECUTADO a 31/12/2026 | N7: Resultado Indicador Austeridad | O7: Valor EJECUTADO a 31/12/2027 | P7: Resultado Indicador Austeridad
A8: Servicios de personal
A9: Artículo 6°.- Reducción del gasto en CPS profesionales y de apoyo a la gestión. | B9: N.A. Se registran totales. Corresponde con lo reportado en SIDEAP y SIVICOF | C9: 5501547300 | D9: 5771270731 | E9: =1-(D9/C9) -> -0.04902683123 | F9: La contratación de servicios profesionales y de apoyo se realizara conforme con las normas vigentes en la materia y de acuerdo a los procesos de planeación institucional. | G9: Se celebrarán los contratos que sean estrictamente necesarios para coadyuvar al cumplimiento de las funciones y fines de la entidad, cuando dichas actividades no puedan realizarse con personal de planta. Se realizará una revisión minuciosa de las necesidades, actividades o tareas específicas que motiven o justifiquen dicha contratación para el cumplimiento de la misión o para el desarrollo de actividades relacionadas con la administración de la entidad, para poder determinar optimización en la cantidad de contratos a celebrar y los recursos asociados a los mismos, de igual forma, la contratación estará sujeta a la disponibilidad de recursos en el presupuesto de cada vigencia, tanto para funcionamiento como para inversión | L9: =1-(K9/D9) -> 1 | N9: =1-(M9/K9) ->  | P9: =1-(O9/M9) -> 
A10: Artículo 7°.- Horas extras, dominicales y festivos. | B10: O211010100102 Horas extras, dominicales, festivos y recargos | C10: 5574924 | D10: 10155110 | E10: -0.8215692268 | F10: Realizar un estricto control para el pago de las horas extras causadas, verificando que cuenten con la aprobación correspondiente. Adicionalmente la FUGA tiene procedimientos y formatos que permiten llevar el control de las horas extras, evitando que se llegue a los topes de ley permitidos para el pago de las mismas; así mismo adelantar estrategias de compensación que permita la no incremento en la horas extras. | G10: Los jefes de dependencia deberán valorar por cada caso la necesidad del servicio, real e imprescindible de solicitar la autorización de horas extras y de ser posible evitarla, acudiendo a estrategias de reorganización de las cargas, tareas, turnos, flexibilidad en horarios, procurando que las labores se adelanten durante la jornada laboral ordinaria | H10: =(-3.23%) -> -0.0323 | I10: =(-3%) -> -0.03 | J10: =(-3%) -> -0.03 | L10: =1-(K10/D10) -> 1 | N10: =1-(M10/K10) -> 
A11: Artículo 8°.- Viáticos y gastos de viaje. | B11: O2120202010 Viáticos de los funcionarios en comisión | C11: 2750000 | D11: 3105242 | E11: -0.1291789091 | F11: Racionalización en la autorización de viáticos y gastos de viaje. | G11: Realizar la valoración de la necesidad de la participación de la entidad en los eventos donde se requiera la erogación de gasto que afecte el concepto. Se Priorizara la participación en eventos nacionales e internacionales de forma virtual, en atención al Decreto 062 del 2024. Se continuará implementando y riorizando la estrategía para que las autorizaciones de comisiones sean aquellas que cuentan con financiación del organizador al 100%. | H11: =(-3.23%) -> -0.0323 | I11: =(-3%) -> -0.03 | J11: =(-3%) -> -0.03 | K11: =+D11*0.052+D11 -> 3266714.584 | L11: -0.052 | N11: 1
A12: Artículo 9°.- Compensación por vacaciones. | B12: O211010300102 - Indemnización por vacaciones | C12: 69766643 | D12: 184605699 | E12: -1.646045317 | F12: Control de vacaciones anual y no capitalización de periodos sin disfrute de las mismas. | G12: Adoptar medidas para que los servidores disfruten sus periodos de vacaciones al siguiente año de cumplirlas y así evitar que al momento del retiro el servidor tenga periodos acumulados , las acciones contemplan: 1. Comunicacion interna dirigida a los jefes de las dependencias para que los funcionarios a su cargo, toman los periodos de vacaciones acumulados. 2. Expedir circular de programación y disfrute de vacaciones a los directivos de la entidad. | H12: N/A | I12: N/A | J12: N/A | L12: 1
A13: Artículo 10°.- Bono navideño. | B13: La entidad no incurre en este gasto | C13: N/A | D13: N/A | F13: N/A | G13: N/A | H13: N/A | I13: N/A | J13: N/A
A14: Artículo 11 -. Capacitación. | B14: O21202020090292913 Servicios de educación para la formación y el trabajo | C14: 43655000 | D14: 36204148 | E14: 0.1706757989 | F14: La entidad se ceñirá a los lineamientos señalados en su Plan Institucional de Capacitación PIC de la vigencia correspondiente, así como por las disposiciones normativas vigentes. | G14: Para la definición del PIC, la Entidad deberá considerar e integrar la oferta transversal de otros entes públicos del orden distrital o nacional, en especial la del Departamento Administrativo del Servicio Civil Distrital -DASCD, así como a través de las capacidades existentes al interior de la Entidad, buscando ahorrar costos y optimizar los recursos destinados al fortalecimiento de las competencias laborales y comportamentales de los servidores públicos. Se propendrá por realizar las capacitaciones de forma virtual, disminuyendo los gastos relacionados con desplazamiento, uso de aulas y refrigerios para espacios de capacitación. | H14: =(-3.23%) -> -0.0323 | I14: =(-3%) -> -0.03 | J14: -0.03 | L14: 1
A15: Artículo 12 -. Bienestar. | B15: O21202020090696990 - Otros servicios de diversión y entretenimiento n.c.p. - (Bienestar) | C15: 43752937 | D15: 34186168 | E15: 0.2186543271 | F15: Las actividades se adelantaran en cumplimiento del marco normativo y el Plan de Bienestar e Incentivos Institucionales, sin superar los topes establecidos e implementado las medidas de austeridad correspondientes. | G15: 1. Abstenernos de efectuar actividades que no se encuentren en el marco normativo y/o el plan de bienestar e incentivos institucionales 2. Realizar eventos deportivos y recreativos, mediante alianzas administrativas . 3. Generar actividades de bienestar institucional por autogestión con la logistica del personal de la Dirección de Talento Humano | H15: =(-3.23%) -> -0.0323 | I15: -0.03 | J15: -0.03 | L15: 1
A16: Artículo 13 -. Eventos y conmemoraciones. | B16: O21202020080585961 - Servicios de organización y asistencia de convenciones - (Bienestar) | C16: 9148944 | D16: 8712234 | E16: 0.04773337775 | F16: Considerar la realización de eventos virtuales o híbridos para ampliar la participación . Utilizar plataformas digitales para la promoción y difusión del evento, | G16: Priorizar la utilización de espacios públicos que no requieran alquiler. Además, se sugiere limitar el número de invitados y optar por formatos virtuales o híbridos cuando sea posible, lo que no solo disminuirá los costos, sino que también permitirá una mayor participación. | H16: =(-3.23%) -> -0.0323 | I16: -0.03 | J16: -0.03 | L16: 1
A17: Artículo 14 -. Fondos educativos. | B17: L a entidad no incurre en este gasto | C17: N/A | D17: N/A | F17: N/A | G17: N/A | H17: N/A | I17: N/A | J17: N/A
A18: Servicios Administrativos
A19: Artículo 15. Telefonía. | B19: O21202020080484131 Servicios móviles de voz | C19: 3689383 | D19: 2276826 | E19: =1-(D19/C19) -> 0.3828707944 | F19: Se eligió este concepto como gasto elegible y se tiene previsto la reducción de por lo menos el 10% del valor total facturado en 2024, y de manera progresiva para llegar a un ahorro del 30% en el 2027 tomando como línea base los siguientes datos: Valor facturado 2024: $2.276. 826 Fuente: Reporte SAP | G19: En cuanto a la reducción de los costos de telefonía móvil se realizarán acciones encaminadas a reducir el valor de los planes y revisar las condiciones de estos para garantizar el mejor precio con las mejores garantías que permita dar cumplimiento a la meta de reducción a mediano plazo del 30%, iniciando en la vigencia 2025 con un ahorro del 10%. | H19: 0.1 | I19: 0.1111 | J19: 0.125 | L19: 1
A20: Artículo 16 -. Vehículos oficiales. | B20: O23011605560000007760 - Modernización de la Arquitectura Institucional de la FUGA O23011601210000007682 - Desarrollo y fomento a las prácticas artísticas y culturales para dinamizar el centro de Bogotá O23011601240000007674 - Desarrollo del Bronx Distrito Creativo en Bogotá O21202020060666019 - Otros servicios de alquiler de vehículos de trasporte con operario n.c.p. | C20: 298905220 | D20: 394994198 | E20: -0.3214697221 | F20: La entidad no cuenta con vehiculos oficiales, sin embargo el proceso de transporte contratado se ajustara a los valores del mercado manteniendo las condiciones vigentes. | G20: Optimizar el uso de los vehiculos dando cumplimiento establecido en el Decreto 062 de 2024 a partir de procesos de selección objetiva. | H20: =(-3.23%) -> -0.0323 | I20: =(-3%) -> -0.03 | J20: =(-3%) -> -0.03 | L20: 1
A21: Artículo 17 -. Adquisición de vehículos y maquinaria. | B21: La entidad no incurre en este gasto | C21: 0 | D21: 0 | F21: N/A | G21: N/A | H21: N/A | I21: N/A | J21: N/A
